Cogmind - Beta 12 X4 @@@ ROGUE MODE // 2022.11.27 @ 13:39:33 // Winter2019/RPGLIKE Player: aoemica Result: Escaped singularity! Performance ------------- Evolutions (9) 4500 Regions Visited (66) 13200 Robots Destroyed (4599) 22995 Value Destroyed (238999) 238999 Prototype IDs (316) 6320 Alien Tech Used (12) 2400 Bonus (303113) 303113 TOTAL SCORE: 591527 Bonus ------- Triggered High Security 12000 High Alert Combat Kills 229653 Follower Combat Kills 2302 Entered Garrisons 2600 Network Hubs Disabled 800 Aligned with FarCom 300 Met Data Miner 300 Met Imprinter 300 Destroyed Z-Imprinter 1000 Met Zhirov 300 Met R17 at Cetus 500 Used Core Reset Matrix 3000 Met R17 at Research 2000 Scanned by Researcher 500 Pursued by Intercept 2500 Recovered Sigix Corpse 4000 Destroyed MAIN.C Guards 500 Met MAIN.C 5000 Destroyed MAIN.C Shell 5000 Destroyed MAIN.C 10000 Met Architect 300 Started Test 138-B 500 Destroyed A8 300 Destroyed A6 400 Destroyed A5 500 Destroyed A4 700 Destroyed A3 800 Destroyed A2 1000 Destroyed Architect 15000 Win 3000 Friendly Fire -1942 Cogmind --------- Core Integrity 870/1050 Matter 655/675 Energy 842/870 System Corruption 0% Temperature Cool (56) Movement Hovering (20) Location Near Former Tau Ceti IV Parts ------- > --- POWER (3) -------- Zero-point Reactor Zero-point Reactor Zero-point Reactor > --- PROPULSION (7) --- Combat Linear Gravjet Combat Linear Gravjet Combat Linear Gravjet Combat Linear Gravjet Combat Linear Gravjet Combat Linear Gravjet Combat Linear Gravjet > --- UTILITY (11) ----- Experimental Power Amplifier Zionite Metafield Generator Experimental Target Analyzer Experimental Core Analyzer Improved Armor Integrity Analyzer Quantum Capacitor Experimental Reaction Control System Experimental Phase Shifter Centrium Medium Armor Plating AEGIS Remote Shield > --- WEAPON (5) ------- Null Cannon Enhanced Autogun Hypervelocity Railgun Hypervelocity Railgun 8R-AWN's Boregun > --- INVENTORY (6) ---- Protomatter-80 Protomatter-39 High-powered Transdimensional Reconstructor 8R-AWN's Boregun Sigix Corpse Sigix Corpse Peak State ------------ > --- POWER ------------ Zero-point Reactor Zero-point Reactor Zero-point Reactor > --- PROPULSION ------- Combat Linear Gravjet Combat Linear Gravjet Combat Linear Gravjet Combat Linear Gravjet Combat Linear Gravjet Combat Linear Gravjet Combat Linear Gravjet > --- UTILITY ---------- Advanced Power Amplifier Zionite Metafield Generator Experimental Target Analyzer Experimental Core Analyzer Improved Armor Integrity Analyzer Precision Matter Filter Experimental Weapon Cycler Experimental Reaction Control System Experimental Phase Shifter Centrium Medium Armor Plating AEGIS Remote Shield > --- WEAPON ----------- Null Cannon Enhanced Autogun Hypervelocity Railgun Hypervelocity Railgun 8R-AWN's Boregun > --- INVENTORY -------- Protomatter Protomatter Quantum Capacitor Subatomic Replicator 8R-AWN's Boregun [Rating: 238] Favorites ----------- Power Light Neutrino Core Engine Improved Ion Engine Power Core Light Neutrino Core Reactor Improved Quantum Reactor Propulsion Combat Linear Gravjet Treads Improved Treads Leg Aluminum Leg Hover Unit Combat Linear Gravjet Flight Unit Nuclear Pulse Array Utility Experimental Core Analyzer Device Experimental Reaction Control System Storage Advanced Energy Well Processor Experimental Core Analyzer Protection Centrium Medium Armor Plating Weapon 8R-AWN's Boregun Energy Gun Gamma Rifle Energy Cannon Null Cannon Ballistic Gun 8R-AWN's Boregun Ballistic Cannon Heavy Linear Accelerator Launcher Neutron Missile Launcher Special Weapon Remote Datajack Impact Weapon Makeshift Hammer Build | -11 -10 -10 -9 -9 -9 -8 -8 -8 -8 -8 -8 -8 -8 -8 -8 -8 -7 -7 -7 -7 -7 -7 -7 -7 -7 -6 -6 -6 -6 -6 -6 -6 -6 -6 -5 -5 -5 -5 -5 -5 -5 -5 -5 -5 -5 -5 -4 -4 -4 -4 -4 -4 -4 -4 -3 -3 -3 -3 -3 -2 -2 -1 -1 -1 -1 -1 ------- Run | Scr Mat Min Mat Min Exi Min Mat Gar Mat Gar Mat Gar Mat Gar Mat Gar Fac Gar Fac Gar Fac Low Low Zio Dee Pro Fac Was Fac Gar Fac Low Low Dat Pro Fac Was Fac Gar Fac Gar Fac Ext Cet Arc Hub Fac Was Fac Gar Fac Upp Upp Zhi Pro Res Qua Sec Gar Res Tes Acc Gar Acc Com Ac0 Slots Evolved 21 | 3 2 . 1 . 3 . . 1 . 1 1 . . . . . . . . . . . . . 1 . 2 . . . . . . . . 1 . . . 1 . . . 1 . . . . 1 . . . . . . . . . . . . . . 1 1 . Power 2 | . . . . . . . . . . . . . . . . . . . . . . . . . . . 1 . . . . . . . . 1 . . . . . . . . . . . . . . . . . . . . . . . . . . . . . . Propulsion 5 | 1 . . . . 1 . . . . . 1 . . . . . . . . . . . . . 1 . . . . . . . . . . . . . . . . . . . . . . . . . . . . . . . . . . . . . . 1 . . Utility 10 | 1 . . 1 . 2 . . 1 . 1 . . . . . . . . . . . . . . . . 1 . . . . . . . . . . . . . . . . 1 . . . . 1 . . . . . . . . . . . . . . . 1 . Weapon 4 | 1 2 . . . . . . . . . . . . . . . . . . . . . . . . . . . . . . . . . . . . . . 1 . . . . . . . . . . . . . . . . . . . . . . . . . . Parts Attached 668 | 3 23 2 9 4 23 17 1 1 . 4 7 3 4 4 7 . 6 2 15 4 7 2 . 7 21 1 23 2 13 8 21 . 1 . . 3 . 19 4 12 11 24 11 7 20 13 1 2 39 3 14 . . 4 2 6 25 14 . 12 33 10 2 27 79 26 Power 30 | . 1 . 1 . 2 3 . . . . . . . . . . . . 1 . . . . . 1 . 1 . . . . . . . . 2 . 4 . . 2 1 . . . 1 . . 2 . 2 . . . . 2 . . . 1 . . . . 3 . Engine 2 | . 1 . 1 . . . . . . . . . . . . . . . . . . . . . . . . . . . . . . . . . . . . . . . . . . . . . . . . . . . . . . . . . . . . . . . Core 12 | . . . . . 2 2 . . . . . . . . . . . . 1 . . . . . . . 1 . . . . . . . . 2 . 3 . . . 1 . . . . . . . . . . . . . . . . . . . . . . . . Reactor 16 | . . . . . . 1 . . . . . . . . . . . . . . . . . . 1 . . . . . . . . . . . . 1 . . 2 . . . . 1 . . 2 . 2 . . . . 2 . . . 1 . . . . 3 . Propulsion 61 | 1 3 1 . . 1 . 1 . . . 5 . 1 . 1 . 1 . 2 . . . . . 6 1 2 1 3 . . . . . . 1 . 2 . 1 2 3 . . . 2 . . 7 . . . . . . . . . . . . . . 1 12 . Treads 11 | . 2 1 . . 1 . 1 . . . 1 . . . . . . . . . . . . . . . . . . . . . . . . . . . . . . . . . . . . . . . . . . . . . . . . . . . . . 5 . Leg 2 | 1 1 . . . . . . . . . . . . . . . . . . . . . . . . . . . . . . . . . . . . . . . . . . . . . . . . . . . . . . . . . . . . . . . . . Wheel . | . . . . . . . . . . . . . . . . . . . . . . . . . . . . . . . . . . . . . . . . . . . . . . . . . . . . . . . . . . . . . . . . . . . Hover 46 | . . . . . . . . . . . 4 . 1 . 1 . 1 . 2 . . . . . 6 1 2 1 2 . . . . . . 1 . 2 . 1 2 2 . . . 2 . . 7 . . . . . . . . . . . . . . 1 7 . Flight 2 | . . . . . . . . . . . . . . . . . . . . . . . . . . . . . 1 . . . . . . . . . . . . 1 . . . . . . . . . . . . . . . . . . . . . . . . Utility 282 | . 3 1 1 2 12 6 . 1 . 4 2 1 2 4 2 . 1 2 6 4 7 2 . 5 14 . 12 1 10 8 19 . 1 . . . . 7 4 5 7 12 7 6 8 7 . 2 16 3 7 . . 4 . 4 9 10 . 5 2 . . 7 13 4 Device 215 | . 1 . 1 2 8 2 . . . 3 1 1 1 4 1 . . 2 5 3 7 1 . 3 11 . 9 1 7 6 17 . 1 . . . . 6 2 4 4 10 6 4 6 6 . 2 12 3 6 . . 3 . 4 6 10 . 2 2 . . 6 9 4 Storage 5 | . . . . . . 1 . . . . . . . . . . . . 1 1 . . . . 1 . . . . . . . . . . . . . . . . . . . . . . . . . . . . 1 . . . . . . . . . . . . Processor 18 | . . . . . 1 . . 1 . 1 . . . . . . 1 . . . . . . 2 . . 2 . 2 . . . . . . . . . . . 1 1 . . . . . . 2 . . . . . . . . . . 2 . . . . 2 . Hackware . | . . . . . . . . . . . . . . . . . . . . . . . . . . . . . . . . . . . . . . . . . . . . . . . . . . . . . . . . . . . . . . . . . . . Protection 44 | . 2 1 . . 3 3 . . . . 1 . 1 . 1 . . . . . . 1 . . 2 . 1 . 1 2 2 . . . . . . 1 2 1 2 1 1 2 2 1 . . 2 . 1 . . . . . 3 . . 1 . . . 1 2 . Artifact . | . . . . . . . . . . . . . . . . . . . . . . . . . . . . . . . . . . . . . . . . . . . . . . . . . . . . . . . . . . . . . . . . . . . Weapon 295 | 2 16 . 7 2 8 8 . . . . . 2 1 . 4 . 4 . 6 . . . . 2 . . 8 . . . 2 . . . . . . 6 . 6 . 8 4 1 12 3 1 . 14 . 5 . . . 2 . 16 4 . 6 31 10 2 19 51 22 Energy Gun 19 | 1 . . . . . . . . . . . . . . . . . . 1 . . . . . . . . . . . . . . . . . . . . . . . . . . . . . 2 . . . . . . . . . . . 3 . . . 12 . Energy Cannon 30 | . . . . . . . . . . . . . . . . . . . . . . . . . . . . . . . . . . . . . . . . . . 1 . . . . . . . . . . . . . . . 1 . 1 6 5 1 2 3 10 Ballistic Gun 177 | 1 9 . 5 1 7 8 . . . . . 1 1 . 3 . 3 . 3 . . . . 1 . . 4 . . . 1 . . . . . . 3 . 6 . 4 2 1 6 3 1 . 11 . 5 . . . 2 . 11 2 . 3 16 4 1 10 26 12 Ballistic Cannon 6 | . 2 . . . . . . . . . . . . . . . . . . . . . . . . . . . . . . . . . . . . . . . . . . . . . . . 1 . . . . . . . . . . . . . . . 3 . Launcher 60 | . 5 . 2 1 1 . . . . . . 1 . . 1 . . . 2 . . . . . . . 3 . . . 1 . . . . . . 3 . . . 3 2 . 6 . . . . . . . . . . . 5 1 . 2 6 1 . 7 7 . Special Weapon 2 | . . . . . . . . . . . . . . . . . 1 . . . . . . . . . 1 . . . . . . . . . . . . . . . . . . . . . . . . . . . . . . . . . . . . . . . Impact Weapon 1 | . . . . . . . . . . . . . . . . . . . . . . . . 1 . . . . . . . . . . . . . . . . . . . . . . . . . . . . . . . . . . . . . . . . . . Slashing Weapon . | . . . . . . . . . . . . . . . . . . . . . . . . . . . . . . . . . . . . . . . . . . . . . . . . . . . . . . . . . . . . . . . . . . . Piercing Weapon . | . . . . . . . . . . . . . . . . . . . . . . . . . . . . . . . . . . . . . . . . . . . . . . . . . . . . . . . . . . . . . . . . . . . Special Melee Weapon . | . . . . . . . . . . . . . . . . . . . . . . . . . . . . . . . . . . . . . . . . . . . . . . . . . . . . . . . . . . . . . . . . . . . Unidentified Prototypes 65 | . . . . 1 5 5 . . . 1 . . . . . . . . 4 . . . . 1 7 . . . 3 . . . 1 . . . . 1 . 3 2 3 . 1 . . . . 7 . . . . 2 . . 2 . . . 4 . . 2 10 . Parts Lost . | . . . . . . . . . . . . . . . . . . . . . . . . . . . . . . . . . . . . . . . . . . . . . . . . . . . . . . . . . . . . . . . . . . . Power . | . . . . . . . . . . . . . . . . . . . . . . . . . . . . . . . . . . . . . . . . . . . . . . . . . . . . . . . . . . . . . . . . . . . Propulsion . | . . . . . . . . . . . . . . . . . . . . . . . . . . . . . . . . . . . . . . . . . . . . . . . . . . . . . . . . . . . . . . . . . . . Utility . | . . . . . . . . . . . . . . . . . . . . . . . . . . . . . . . . . . . . . . . . . . . . . . . . . . . . . . . . . . . . . . . . . . . Weapon . | . . . . . . . . . . . . . . . . . . . . . . . . . . . . . . . . . . . . . . . . . . . . . . . . . . . . . . . . . . . . . . . . . . . Highest Loss Streak . | . . . . . . . . . . . . . . . . . . . . . . . . . . . . . . . . . . . . . . . . . . . . . . . . . . . . . . . . . . . . . . . . . . . To Critical Strikes . | . . . . . . . . . . . . . . . . . . . . . . . . . . . . . . . . . . . . . . . . . . . . . . . . . . . . . . . . . . . . . . . . . . . Average Slot Usage (%) 97 | . 97 100 100 99 76 78 84 84 85 85 86 93 93 100 99 100 100 100 99 99 99 100 100 100 99 100 99 100 99 100 100 100 99 95 95 99 100 100 100 99 99 100 100 100 100 99 100 100 100 100 100 100 100 98 100 100 99 99 100 100 99 100 100 99 95 97 Engine 1 | . 12 11 10 10 5 . . . . . . . . . . . . . . . . . . . . . . . . . . . . . . . . . . . . . . . . . . . . . . . . . . . . . . . . . . . . . Core 4 | . . . . . 3 5 7 7 7 6 6 6 6 6 6 6 6 6 6 6 6 6 6 6 4 . 4 5 5 5 5 5 5 5 5 5 9 9 9 9 9 9 9 8 8 8 8 8 5 4 4 4 4 4 4 4 4 4 4 4 4 4 4 4 1 . Reactor 3 | . . . . . . . . . . . . . . . . . . . . . . . . . . 5 5 5 5 5 5 5 5 5 5 4 4 4 4 4 4 4 4 4 4 4 4 4 6 8 8 8 8 8 8 8 8 8 8 8 8 8 8 8 10 11 Treads 4 | . 19 22 20 20 20 23 23 22 21 20 18 . . . . . . . . . . . . . . . . . . . . . . . . . . . . . . . . . . . . . . . . . . . . . . . . . . . . . 1 . Hover 19 | . . . . . . . . . . . 2 25 25 25 24 25 25 25 25 25 25 25 25 25 27 29 26 26 25 26 26 26 25 25 25 29 28 28 28 27 26 27 27 26 26 26 26 26 25 25 25 25 25 25 25 25 25 25 25 25 25 25 25 26 23 26 Device 21 | . 11 11 15 19 16 7 7 7 7 9 13 18 18 25 23 18 17 12 11 11 11 16 12 12 17 17 20 21 21 20 19 21 20 20 20 19 19 19 18 18 17 21 21 21 25 21 21 21 26 29 29 29 29 30 33 33 33 32 33 33 33 33 33 32 30 24 Processor 8 | . . . . . . 7 7 10 14 13 12 12 12 12 12 12 12 18 18 18 18 18 18 18 17 17 15 15 11 10 10 10 10 10 10 9 9 9 9 9 9 9 9 8 8 8 8 8 8 8 8 8 8 6 4 4 4 4 4 4 4 4 4 4 4 11 Protection 7 | . 10 11 10 10 7 5 7 7 7 6 5 6 6 6 7 12 12 12 12 12 12 7 12 11 5 5 5 5 8 10 11 10 10 10 10 9 9 9 9 9 9 4 4 7 4 8 8 8 6 4 4 4 4 4 4 4 3 4 4 4 4 4 4 3 3 3 Ballistic Gun 23 | . 31 44 41 39 20 27 30 29 28 27 25 25 25 25 24 25 24 25 24 25 25 25 25 24 23 23 21 21 21 21 20 21 20 20 20 19 19 18 19 19 22 21 21 21 18 20 21 21 20 20 20 20 20 20 20 20 19 19 20 20 19 19 20 19 15 16 Naked Turns . | . . . . . . . . . . . . . . . . . . . . . . . . . . . . . . . . . . . . . . . . . . . . . . . . . . . . . . . . . . . . . . . . . . . Heaviest Build 155 | 6 21 21 26 26 63 51 51 51 51 55 55 39 36 36 37 37 37 36 37 36 36 36 36 36 38 38 53 53 55 55 56 55 55 55 55 63 63 68 63 69 74 75 75 70 79 70 71 71 86 87 89 89 89 90 90 100 115 115 111 116 118 117 111 117 155 120 Greatest Support 260 | 20 46 46 45 45 65 65 67 67 67 67 67 37 37 37 37 37 38 38 40 40 40 40 40 40 64 64 64 71 71 71 71 71 71 71 71 80 80 80 79 82 84 84 82 82 82 95 82 82 107 107 107 107 107 107 107 107 117 117 117 117 117 117 117 134 260 134 Greatest Overweight (x) 6 | . . . . . 1 4 . . . . 2 1 4 . 1 . . . . . . . . . 1 . . . 1 . . . . . . . . . . . 1 . . . . . . . 1 . . . . . . . . 1 . 3 1 . . 1 6 . Average Overweight (x) . | . . . . . . . . . . . . . . . . . . . . . . . . . . . . . . . . . . . . . . . . . . . . . . . . . . . . . . . . . . . . . . . . . . . Largest Inventory Capacity 6 | . 2 3 3 3 4 4 4 5 5 5 5 5 5 5 5 5 5 5 5 5 5 5 5 5 5 5 5 5 5 5 5 5 5 5 5 5 5 5 5 5 5 5 5 5 5 5 5 5 5 5 5 5 5 5 5 5 5 5 5 5 5 5 5 5 6 6 Average Capacity 4 | . 1 2 3 3 3 4 4 4 5 5 5 5 5 5 5 5 5 5 5 5 5 5 5 5 5 5 5 5 5 5 5 5 5 5 5 5 5 5 5 5 5 5 5 5 5 5 5 5 5 5 5 5 5 5 5 5 5 5 5 5 5 5 5 5 5 6 Most Carried 6 | . 2 3 3 3 4 4 4 5 5 5 5 5 5 5 5 5 5 5 5 5 5 5 5 5 5 5 5 5 5 5 5 5 5 5 5 5 5 5 5 5 5 5 5 5 5 5 5 5 5 5 5 5 5 5 5 5 5 5 5 5 5 5 5 5 6 6 Average Carried 4 | . 1 2 3 3 2 3 3 4 5 4 4 4 5 5 5 5 4 4 5 5 5 5 5 5 4 5 4 4 4 5 4 5 5 5 5 5 5 4 5 4 5 4 5 4 5 5 5 5 4 5 5 5 5 4 5 4 4 4 5 4 4 5 5 5 4 5 Final Capacity 6 | . 2 3 3 3 4 4 4 5 5 5 5 5 5 5 5 5 5 5 5 5 5 5 5 5 5 5 5 5 5 5 5 5 5 5 5 5 5 5 5 5 5 5 5 5 5 5 5 5 5 5 5 5 5 5 5 5 5 5 5 5 5 5 5 5 6 6 Final Carried 6 | . 2 3 3 3 4 4 4 5 5 4 5 5 5 5 5 5 5 5 5 5 5 5 5 5 5 5 5 5 5 5 5 5 5 5 5 5 5 5 5 5 5 5 5 5 5 5 5 5 5 5 5 5 5 5 5 5 5 5 5 5 5 5 5 5 6 6 Class Distribution -------------------- 39% | Scavenger-Sprinter 27% | Scavenger-Mutant 14% | Alien-Sprinter 5% | Gunner 4% | Mutant 3% | Tank Dominant Class ---------------- Mutant | -10/Materials Gunner | -10/Mines Tank | -9/Materials Tank | -9/Mines Mutant | -9/Exiles Scavenger-Mutant | -8/Mines Scavenger-Mutant | -8/Materials Scavenger-Mutant | -8/Garrison Scavenger-Mutant | -8/Materials Scavenger-Mutant | -8/Garrison Scavenger-Mutant | -8/Materials Scavenger-Mutant | -8/Garrison Scavenger-Mutant | -8/Materials Scavenger-Mutant | -8/Garrison Scavenger-Mutant | -8/Materials Scavenger-Mutant | -8/Garrison Scavenger-Mutant | -7/Factory Scavenger-Mutant | -7/Garrison Scavenger-Mutant | -7/Factory Scavenger-Mutant | -7/Garrison Scavenger-Mutant | -7/Factory Scavenger-Mutant | -7/Lower Caves Scavenger-Mutant | -7/Lower Caves Scavenger-Mutant | -7/Zion Scavenger-Mutant | -7/Deep Caves Scavenger-Mutant | -6/Proximity Caves Scavenger-Sprinter | -6/Factory Scavenger-Sprinter | -6/Waste Scavenger-Sprinter | -6/Factory Scavenger-Sprinter | -6/Garrison Scavenger-Sprinter | -6/Factory Scavenger-Sprinter | -6/Lower Caves Scavenger-Sprinter | -6/Lower Caves Scavenger-Sprinter | -6/Data Miner Commander-Sprinter | -5/Proximity Caves Scavenger-Sprinter | -5/Factory Scavenger-Sprinter | -5/Waste Scavenger-Sprinter | -5/Factory Scavenger-Sprinter | -5/Garrison Scavenger-Sprinter | -5/Factory Scavenger-Sprinter | -5/Garrison Scavenger-Sprinter | -5/Factory Scavenger-Sprinter | -5/Extension Scavenger-Sprinter | -5/Cetus Scavenger-Sprinter | -5/Archives Scavenger-Sprinter | -5/Hub_04(d) Scavenger-Sprinter | -4/Factory Scavenger-Sprinter | -4/Waste Scavenger-Sprinter | -4/Factory Scavenger-Gunner | -4/Garrison Scavenger-Sprinter | -4/Factory Scavenger-Sprinter | -4/Upper Caves Scavenger-Sprinter | -4/Upper Caves Scavenger-Sprinter | -4/Zhirov Scavenger-Sprinter | -3/Proximity Caves Scavenger-Sprinter | -3/Research Scavenger-Sprinter | -3/Quarantine Alien-Sprinter | -3/Section 7 Alien-Sprinter | -3/Garrison Alien-Sprinter | -2/Research Alien-Sprinter | -2/Testing Alien-Sprinter | -1/Access Alien-Sprinter | -1/Garrison Alien-Sprinter | -1/Access Scavenger-Sprinter | -1/Command Scavenger-Sprinter | -1/Access_0 Resources | -11 -10 -10 -9 -9 -9 -8 -8 -8 -8 -8 -8 -8 -8 -8 -8 -8 -7 -7 -7 -7 -7 -7 -7 -7 -7 -6 -6 -6 -6 -6 -6 -6 -6 -6 -5 -5 -5 -5 -5 -5 -5 -5 -5 -5 -5 -5 -4 -4 -4 -4 -4 -4 -4 -4 -3 -3 -3 -3 -3 -2 -2 -1 -1 -1 -1 -1 ----------- Run | Scr Mat Min Mat Min Exi Min Mat Gar Mat Gar Mat Gar Mat Gar Mat Gar Fac Gar Fac Gar Fac Low Low Zio Dee Pro Fac Was Fac Gar Fac Low Low Dat Pro Fac Was Fac Gar Fac Gar Fac Ext Cet Arc Hub Fac Was Fac Gar Fac Upp Upp Zhi Pro Res Qua Sec Gar Res Tes Acc Gar Acc Com Ac0 Matter Collected 126271 | 231 1204 398 1784 231 1038 816 921 738 415 875 681 644 750 1042 634 870 1001 992 2310 824 3322 250 238 1432 708 250 3059 276 1380 1587 5184 900 598 . 1612 834 420 3291 1512 1996 1512 6825 4536 4322 1346 5898 . 376 5362 1598 4899 364 616 . 152 4634 2614 3571 1422 3595 3190 3149 1468 6562 9670 1342 Remotely 298 | . . . . . . . . . . . . . . 184 114 . . . . . . . . . . . . . . . . . . . . . . . . . . . . . . . . . . . . . . . . . . . . . . . . . . . Salvage Created 326683 | . 1055 351 2576 141 706 1056 2136 1366 1204 1617 1333 689 1030 1666 1396 1564 2227 1719 5545 1786 8746 425 846 1857 975 273 8226 2235 3217 2134 11137 1686 975 . 1842 1672 1604 6930 1476 3890 2568 14981 11847 10425 6688 13020 . 1192 10245 3220 11520 1066 1249 . 187 14219 11103 13032 3687 12817 13247 14809 3911 19507 37724 3110 Parts 15585 | . 92 27 154 22 83 57 140 70 77 92 103 82 75 106 114 99 126 119 353 108 559 23 24 153 87 38 473 55 178 144 539 60 49 . 135 101 47 374 101 215 139 689 410 311 344 597 . 40 516 204 618 49 67 . 22 627 523 512 234 547 406 472 232 901 1441 230 Haulers Intercepted 126 | . 2 . 6 . . . 4 . 5 . 5 . 2 . 4 . 3 . 6 . 2 . . . . . 6 . 4 . 4 . . . . 2 . 10 . 5 . 11 2 . . 7 . . 9 . 3 . . . . 9 . 2 . 2 1 7 . 3 . . Recyclers Shooed 43 | . 1 . . . . 2 . . 1 . . . 1 . . . 1 . 3 . 1 . . . . . 8 . 2 . 2 . . . . . . . . 1 . 5 2 . . . . . 1 . . . . . . 4 . . . 1 . 4 . 1 2 . Parts Field Recycled . | . . . . . . . . . . . . . . . . . . . . . . . . . . . . . . . . . . . . . . . . . . . . . . . . . . . . . . . . . . . . . . . . . . . Retrieved Matter . | . . . . . . . . . . . . . . . . . . . . . . . . . . . . . . . . . . . . . . . . . . . . . . . . . . . . . . . . . . . . . . . . . . . Parts Self-Destructed 457 | . . . . . . . . . . . . . . . . . . . . . . 19 19 . . 38 . . . . . 46 49 . 141 . . . . . . . . . . . . . . . . 49 74 . 22 . . . . . . . . . . . Prevented 9 | . . . . . . . . . . . . . . . . . . . . . . 1 2 . . . . . . . . . . . . . . . . . . . . . . . . . . . . . 6 . . . . . . . . . . . . . Kills | -11 -10 -10 -9 -9 -9 -8 -8 -8 -8 -8 -8 -8 -8 -8 -8 -8 -7 -7 -7 -7 -7 -7 -7 -7 -7 -6 -6 -6 -6 -6 -6 -6 -6 -6 -5 -5 -5 -5 -5 -5 -5 -5 -5 -5 -5 -5 -4 -4 -4 -4 -4 -4 -4 -4 -3 -3 -3 -3 -3 -2 -2 -1 -1 -1 -1 -1 ------- Run | Scr Mat Min Mat Min Exi Min Mat Gar Mat Gar Mat Gar Mat Gar Mat Gar Fac Gar Fac Gar Fac Low Low Zio Dee Pro Fac Was Fac Gar Fac Low Low Dat Pro Fac Was Fac Gar Fac Gar Fac Ext Cet Arc Hub Fac Was Fac Gar Fac Upp Upp Zhi Pro Res Qua Sec Gar Res Tes Acc Gar Acc Com Ac0 Combat Hostiles Destroyed 4225 | . 31 14 55 13 6 8 37 28 12 26 18 25 15 34 18 27 22 38 71 31 136 11 7 9 15 13 76 6 36 38 150 24 16 . 40 17 6 69 37 46 44 170 152 148 135 165 . 6 101 59 145 19 24 . 3 148 147 135 48 151 138 146 62 223 530 45 Guns 3763 | . 24 14 46 11 2 8 37 28 12 26 17 25 15 34 18 27 22 38 63 31 136 11 7 9 15 13 76 6 35 38 146 24 16 . 40 17 6 69 37 46 44 170 144 148 55 165 . 6 97 59 140 19 24 . 3 148 105 133 48 143 109 139 62 170 353 34 Cannons 20 | . 4 . . . . . . . . . . . . . . . . . . . . . . . . . . . . . . . . . . . . . . . . . . . . . . . . . . . . . . . . . . . . 7 . . 2 7 AOE 431 | . 3 . 9 2 4 . . . . . 1 . . . . . . . 8 . . . . . . . . . 1 . 4 . . . . . . . . . . . 8 . 80 . . . 4 . 5 . . . . . 42 2 . 8 29 . . 53 168 . Classes Destroyed 40 | . 10 . 4 . 3 1 . 1 . 1 . 1 . 1 . . . . . 1 . 1 . 2 1 . 1 1 . . . . . . 1 . . . 1 . 1 1 . . . . . . . . . . . . 1 3 1 1 . . 1 . . . . . Worker 198 | . 3 . 1 . . 2 1 . 4 . 2 . . . 4 . 5 . 7 . 1 . . . . . 20 . 3 . 8 . . . . 2 . 28 . 5 . 14 5 . . 10 . . 12 . 1 . . . . 2 1 3 . 3 6 9 . 11 25 . Builder 112 | . 1 1 2 . . 4 1 . 2 . 2 . . . 3 . 1 . 2 . 2 . . . . . 9 . 1 . 5 . . . 1 4 . 5 . 4 . 12 3 . . 5 . . 9 . . . . . . 1 . 1 . 1 6 6 . 18 . . Tunneler 27 | . 1 . . . . 1 1 . . . 1 . . . 1 . 3 . 1 . . . . . . . 2 . 1 . . . . . . . . 1 . 1 . 3 1 . . 3 . . 1 . 1 . . . . . . . . . . . . 4 . . Hauler 126 | . 2 . 6 . . . 4 . 5 . 5 . 2 . 4 . 3 . 6 . 2 . . . . . 6 . 4 . 4 . . . . 2 . 10 . 5 . 11 2 . . 7 . . 9 . 3 . . . . 9 . 2 . 2 1 7 . 3 . . Recycler 170 | . 2 . 3 . . 8 2 . 2 . . . 1 . 1 . 3 . 5 . 1 . . . . . 16 . 3 . 8 . . . 1 3 . 6 . 3 . 19 17 . . 11 . . 9 . . . . . . 13 . 3 . . 5 9 . 6 10 . Carrier 170 | . . . . . . . . . . . . 1 . . . 1 . . 3 . 8 . . . . . 1 . 1 . 5 . . . . . . 1 . 1 . 7 6 12 8 9 . . 2 1 11 . . . . 9 11 10 2 7 13 15 . 11 14 . Minesweeper 1 | . . . . . . . . . . . . . . . . . . . . . . . . . . . . . . . . . . . . . . . . . . . . . . . . . . . . . . . 1 . . . . . . . . . . . Mechanic 136 | . 1 . 1 . . . 1 . . . . . . . . . 1 . 5 . 11 . . . . . 2 . 2 . 7 . . . . . . 1 . . . 5 2 8 11 6 . . . . 7 . . . . 5 11 9 . 6 8 6 . 9 11 . Operator 35 | . 1 . 2 . . . . . 1 . 2 . 1 . . . . . 1 . 1 . . . . . 3 . 1 . 1 . . . . . . 1 . 1 . 2 . . . 2 . . 3 . 1 . . . . 1 2 1 . 1 . . . 2 4 . Drone 9 | . . . . . . . . . . . . . . . . . . . . . . . . . . . . . . . . . . . . . . . . . . . . . . . . . . . . . . . . 1 . . . . 4 4 . . . . Turret 1 | . . . . . 1 . . . . . . . . . . . . . . . . . . . . . . . . . . . . . . . . . . . . . . . . . . . . . . . . . . . . . . . . . . . . . Watcher 133 | . 3 . 3 . . . 2 . 3 1 3 . 3 . 5 . 4 . 8 . 3 . . . . . 6 . 1 . 5 . . . 2 3 . 8 . 5 . 6 2 1 . 5 . . 8 . 8 . . . . 2 3 5 . 9 2 3 1 3 7 . Swarmer 416 | . 3 9 6 13 . . 11 10 5 3 3 4 3 7 5 7 . 11 1 8 3 5 1 . . 8 7 . 3 4 . 3 1 . 17 5 . 7 8 2 9 4 9 10 . 4 . . 10 19 . 10 11 . . 15 5 3 5 11 . 11 28 13 56 . Cutter 32 | . . . . . . . . . . . . . . . . . . . . . . . . . . . . . . . . . . . . . . . 1 . 2 . . . . 6 . . 4 2 . . . . . . . 3 . . . . 5 . 9 . Saboteur 127 | . . . . . . . . . . . . . . . . . . . . . . . . . . . 3 . . . 7 . . . . . . 2 . 3 . 9 9 7 9 8 . . . . 5 . . . . 2 9 6 . 7 9 5 . 8 19 . Grunt 1464 | . 28 5 27 . . 6 14 13 4 14 11 15 9 19 4 8 14 18 39 11 50 1 5 . . 3 39 . 15 10 72 8 4 . 10 6 . 31 14 18 11 85 41 41 34 30 . . 42 17 46 4 6 . . 59 40 52 17 46 63 53 9 75 148 . Brawler 246 | . . . 2 . . . 1 . . 1 . 1 . . 1 2 1 2 9 1 15 2 . . . 1 7 . 2 3 13 3 3 . 1 . . 2 3 6 1 9 5 8 11 10 . . 2 3 5 1 3 . . 3 12 12 . 8 8 11 3 12 37 . Duelist 207 | . . . 7 . . . 1 . . . . 1 . . . 2 1 . 6 . 12 1 . . . . 3 . 2 2 9 5 2 . 2 . . 1 1 1 2 10 9 5 6 12 . . 2 1 5 1 . . . 5 14 9 . 5 6 8 2 16 30 . Protector 152 | . . . 3 . . . 1 . . . . . . . . . . . 3 1 11 . . . . . . . 2 . 7 . . . 1 . . . . 1 . 5 7 4 9 14 . . 1 . 12 . . . . 1 10 7 . 7 7 5 . 12 21 . Researcher 3 | . . . . . . . . . . . . . . . . . . . . . . . . . . . . . . . . . . . . . . . . . . . . . . . . . . . . . . . . . . . . . 3 . . . . . Sentry 334 | . . . 10 . . . 7 4 3 6 4 3 3 2 6 6 3 4 5 8 4 1 1 . . 1 8 . 4 6 10 1 1 . 7 3 . 4 6 4 6 6 13 12 15 10 . . 14 6 9 2 2 . 1 20 12 6 13 18 . 6 3 17 8 . Demolisher 58 | . . . . . . . . . . . . . . . . . . . . 1 4 . . . . . . . . . 9 . . . . . . . . . . . 13 12 1 . . . . . 1 . . . . 3 . . . . . . . 2 12 . Specialist 61 | . . . . . . . . . . . . . . 2 . . . . . . 1 . . . . . . . 3 2 6 . 1 . . . . 2 . . 2 . 6 9 . . . . . . . . . . . . . . 2 . . . . 1 24 . Hunter 390 | . . . . . . 1 2 . . 1 . 1 . 1 2 1 2 3 1 1 27 . . . . . 5 . 3 9 6 . 4 . 1 3 . 9 2 6 3 21 12 14 26 41 . . 10 6 15 . 2 . . 16 19 10 2 8 8 12 6 8 60 . Programmer 437 | . . . . . . . . 1 . . . . . 3 . 1 1 . 7 . 9 . . . . . 4 . 2 1 10 . . . . . . 10 1 5 6 19 25 18 24 20 . . 14 3 47 1 . . 2 12 19 16 7 19 14 16 4 29 67 . Heavy 9 | . . . . . . . . . . . . . . . . . . . . . . . . . . . . . . . . . . . . . . . . . . 1 . . . . . . 1 . . . . . . . . . . 1 . . . 4 2 . Q-Series 4 | . . . . . . . . . . . . . . . . . . . . . . . . . . . . . . . . . . . . . . . . . . . . . . . . . . . . . . . . . . . . . 2 2 . . . . Behemoth 28 | . . . . . . . . . . 1 . . . . . . . . . . . . . . . . . . . 1 1 . . . 1 . . 1 1 . . 1 2 . . 1 . . 1 2 . . . . . . . 2 2 2 . . 1 6 2 . Compactor 18 | . . . . . . . . . . . . . . . . . . . . . . . . . . . . 6 . . . . . . . . 6 . . . . . . . . . . 6 . . . . . . . . . . . . . . . . . . Cetus Guard 8 | . . . . . . . . . . . . . . . . . . . . . . . . . . . . . . . . . . . . . . . . . . . . 8 . . . . . . . . . . . . . . . . . . . . . . M Guard 2 | . . . . . . . . . . . . . . . . . . . . . . . . . . . . . . . . . . . . . . . . . . . . . . . . . . . . . . . . . . . . . . . . . 2 . Enhanced Grunt 29 | . . . . . . . . . . . . . . . . . . . . . . . . . . . . . . . . . . . . . . . . . . . . . . . . . . . . . . . . . . . . . . . . . . 29 Enhanced Sentry 3 | . . . . . . . . . . . . . . . . . . . . . . . . . . . . . . . . . . . . . . . . . . . . . . . . . . . . . . . . . . . . . . . . . . 3 Enhanced Hunter 6 | . . . . . . . . . . . . . . . . . . . . . . . . . . . . . . . . . . . . . . . . . . . . . . . . . . . . . . . . . . . . . . . . . . 6 Lightning 9 | . . . . . . . . . . . . . . . . . . . . . . . . . . . . . . . . . . . . . . . . . . . . . . 9 . . . . . . . . . . . . . . . . . . . . Tracker 10 | . . . . . . . . . . . . . . . . . . . . . . . . . . . . . . . . . . . . . . . . . . . . . . . . . . . . . . . . . . 1 . 4 2 2 . 1 . . Combat Programmer 12 | . . . . . . . . . . . . . . . . . . . . . . . . . . . . . . . . . . . . . . . . . . . . . . . . . . . . . . . . . . . . 4 2 2 . 2 2 . Investigator 10 | . . . . . . . . . . . . . . . . . . . . . . . . . . . . . . . . . . . . . . . . . . . . . . . . . . . . . . . . . 1 2 . 2 1 1 . 2 1 . Striker 48 | . . . . . . . . . . . . . . . . . . . . . . . . . . . . . . . . . . . . . . . . . . . . . . . . . . . . . . . . 9 2 4 . 5 7 6 1 5 9 . Executioner 52 | . . . . . . . . . . . . . . . . . . . . . . . . . . . . . . . . . . . . . . . . . 2 . . . . . . . . . . . . . . 1 5 2 . 6 4 3 . 11 18 . Alpha 7 5 | . . . . . . . . . . . . . . . . . . . . . . . . . . . . . . . . . . . . . . . . . . . . . . . . . . . . . . . . . . 2 . . 1 . . . 2 . Protovariant H 1 | . . . . . . . . . . . . . . . . . . . . . . . . . . . . . . . . . . . . . . . . . . . . . . . . . . . . . . . . . . . . . 1 . . . . . Zionite 51 | . . . . . 8 . . . . . . . . . . . . . . . . . . 43 . . . . . . . . . . . . . . . . . . . . . . . . . . . . . . . . . . . . . . . . . . Z-Light 11 | . . . . . . . . . . . . . . . . . . . . . . . . . 11 . . . . . . . . . . . . . . . . . . . . . . . . . . . . . . . . . . . . . . . . . Decomposer 9 | . . . . . . . . . . . . . . . . . . . . . . . 4 . . . . . . . . 2 . . 2 . . . . . . . . . . . . . . . . . 1 . . . . . . . . . . . . . Packrat 5 | . . . . . . . . . . . . . . . . . . . . . . . 1 . . . . . . . . 2 2 . . . . . . . . . . . . . . . . . . . . . . . . . . . . . . . . . Samaritan 1 | . . . . . . . . . . . . . . . . . . . . . . . . . . . . . . . . . . . 1 . . . . . . . . . . . . . . . . . . . . . . . . . . . . . . . Tinkerer 3 | . . . . . . . . . . . . . . . . . . . . . . . . 3 . . . . . . . . . . . . . . . . . . . . . . . . . . . . . . . . . . . . . . . . . . Thief 1 | . . . . . . . . . . . . . . . . . . . . . . 1 . . . . . . . . . . . . . . . . . . . . . . . . . . . . . . . . . . . . . . . . . . . . Assembled 12 | . . . . . 5 . . . . . . . . . . . . . . . . . . . 3 . . . . . . . . . . . . . . . . . . . . . . . . . . . . . . . . . . . . . . . 4 . Thug 3 | . . . . . . . . . . . . . . . . . . . . . . . . 1 . . . . . . . 1 . . . . . . . . . . 1 . . . . . . . . . . . . . . . . . . . . . . . Savage 1 | . . . . . . . . . . . . . . . . . . . . . . . . . . . . . . . . . . . . . . . . . . . 1 . . . . . . . . . . . . . . . . . . . . . . . Butcher 3 | . . . . . . . . . . . . . . . . . . . . . . . . . . . . . . . . 3 . . . . . . . . . . . . . . . . . . . . . . . . . . . . . . . . . . Martyr 1 | . . . . . . . . . . . . . . . . . . . . . . . . 1 . . . . . . . . . . . . . . . . . . . . . . . . . . . . . . . . . . . . . . . . . . Marauder 1 | . . . . . . . . . . . . . . . . . . . . . . . . 1 . . . . . . . . . . . . . . . . . . . . . . . . . . . . . . . . . . . . . . . . . . Mutant 5 | . . . . . . . . . . . . . . . . . . . . . . . . 5 . . . . . . . . . . . . . . . . . . . . . . . . . . . . . . . . . . . . . . . . . . Infiltrator 4 | . . . . . . . . . . . . . . . . . . . . 1 . . . . . . . . . . . . . . . . . . . 1 . . . . . . . . . . . . . . . . . . . . . . . 2 . . Revision 1 | . . . . . . . . . . . . . . . . . . . . . . . . . . . . . . . . . . . . . . . . . . . . . . . . . . . . . . . . 1 . . . . . . . . . . Best Kill Streak 100 | . 6 3 11 4 10 4 11 4 7 7 6 7 18 8 10 13 13 12 10 7 34 7 4 31 9 6 24 6 14 9 45 12 7 . 13 15 5 44 8 11 23 45 65 39 41 77 . 6 27 16 33 7 9 . 2 30 41 36 23 35 37 41 25 52 100 7 Combat Bots Only 100 | . 6 3 9 4 5 3 10 4 4 7 4 7 6 8 6 12 5 12 8 7 18 7 4 3 9 6 13 6 10 9 39 12 7 . 13 7 5 14 8 9 23 30 60 32 36 36 . 6 15 16 27 7 9 . 2 25 34 26 22 29 28 31 25 40 100 7 Max Kills in Single Turn 18 | . 2 2 3 2 3 1 3 2 3 2 2 1 1 1 2 3 2 2 3 3 4 2 1 3 2 2 4 1 3 3 5 2 2 . 3 3 1 3 2 3 4 4 4 4 9 4 . 1 4 3 5 4 2 . 2 4 10 5 3 5 7 4 3 9 18 2 Gunslinging 2 | . . 1 2 1 . . 1 1 1 1 . . . . . 1 . 1 1 1 1 . . 1 1 1 1 . 1 1 1 . 1 . 2 1 . 1 1 2 2 2 1 2 1 2 . . 1 1 2 2 1 . . 2 2 2 1 1 2 2 1 1 2 1 Exploded 18 | . 2 . 2 2 3 . . . . . 1 . . . . . . . 3 . . . . . . . . . 1 . 4 . . . . . . . . . . . 3 . 9 . . . 3 . 4 . . . . . 9 2 . 4 6 . . 6 18 . Melee . | . . . . . . . . . . . . . . . . . . . . . . . . . . . . . . . . . . . . . . . . . . . . . . . . . . . . . . . . . . . . . . . . . . . Uniques/NPCs Destroyed 16 | . . . . . 4 1 . . . . . . . . . . . . . . . . . 1 1 . . . . . . . . . . . . . . . . . . . . . . . . . . . . . . . . . . . . . . . 2 7 8R-AWN (-9/Exiles) EX-HEX (-9/Exiles) EX-BIN (-9/Exiles) EX-DEC (-9/Exiles) 1C-UTU (-8/Mines) 12-ASH (-7/Zion) Z-Imprinter (-7/Deep Caves) MAIN.C Shell (-1/Command) MAIN.C (-1/Command) A8 (-1/Access_0) A6 (-1/Access_0) A5 (-1/Access_0) A2 (-1/Access_0) A4 (-1/Access_0) A3 (-1/Access_0) Architect (-1/Access_0) Combat | -11 -10 -10 -9 -9 -9 -8 -8 -8 -8 -8 -8 -8 -8 -8 -8 -8 -7 -7 -7 -7 -7 -7 -7 -7 -7 -6 -6 -6 -6 -6 -6 -6 -6 -6 -5 -5 -5 -5 -5 -5 -5 -5 -5 -5 -5 -5 -4 -4 -4 -4 -4 -4 -4 -4 -3 -3 -3 -3 -3 -2 -2 -1 -1 -1 -1 -1 -------- Run | Scr Mat Min Mat Min Exi Min Mat Gar Mat Gar Mat Gar Mat Gar Mat Gar Fac Gar Fac Gar Fac Low Low Zio Dee Pro Fac Was Fac Gar Fac Low Low Dat Pro Fac Was Fac Gar Fac Gar Fac Ext Cet Arc Hub Fac Was Fac Gar Fac Upp Upp Zhi Pro Res Qua Sec Gar Res Tes Acc Gar Acc Com Ac0 Damage Taken 33826 | . 678 232 721 112 781 291 440 258 90 1031 123 128 133 422 162 390 205 503 347 300 1316 84 63 268 799 40 388 . 209 234 719 13 81 . 332 153 . 444 221 214 301 678 773 435 482 1816 14 . 497 325 799 67 129 . 36 886 497 1156 259 1926 1577 733 382 2628 2997 1508 Core 23667 | . 510 162 552 71 609 179 238 159 51 616 58 96 104 257 121 260 137 341 251 217 897 56 44 150 609 29 273 . 131 135 460 4 35 . 227 72 . 278 125 116 169 490 549 271 346 1149 1 . 334 241 596 52 103 . 28 674 383 819 190 1421 1102 522 270 1967 2224 1136 Absorbed by Shields 19205 | . . . 126 48 294 . . 13 . 20 52 48 50 159 63 153 82 190 136 125 469 31 26 99 230 14 123 . 81 88 266 5 28 . 121 57 . 167 83 80 110 249 272 160 174 514 5 . 179 122 289 25 47 . 12 323 521 1192 267 1378 1649 766 397 2646 2916 1465 Reduced by Siege Mode 14 | . . . . . . . . . . . . . . . . . . . . . . . . . . . . . . . . . . . . . . . . . . . . . . . . . . . . . . . . . . . . . . . . . 14 . Redirected to Core 21230 | . 418 156 480 59 581 142 223 143 36 526 58 83 68 247 121 234 124 297 202 184 802 56 44 141 566 19 232 . 131 126 361 4 35 . 183 72 . 257 112 104 130 462 526 243 321 991 1 . 311 241 498 52 81 . 28 568 272 766 190 1345 1007 490 260 1803 2031 986 Redirected to Shielding 885 | . . . . . . . . . . . . . . . . 19 3 31 13 12 70 . . 11 . . . . 8 32 71 8 20 . 24 29 . 58 42 45 68 . . 68 18 186 12 . 37 . . . . . . . . . . . . . . . . . Regen/Repaired (Parts) 97 | . 7 . . . . . . . . . . . . . . . . . . . . . . . . . . . . . . . . . . . . . . . . . . . . . . . . . . . . . . . . . . . . . . . 90 . Core Remaining (%) 98 | 100 . 98 . . . 100 . . . . . . . . . 100 . . . . . . . . . 100 . . . . . . . . 100 . . . . . . . . . . 100 . . . . . . . . 100 . . . 100 . 100 . . . . 82 Volleys Fired 7992 | 1 129 21 119 13 59 77 86 53 40 58 52 65 45 84 58 62 79 81 190 60 267 20 19 108 42 17 224 13 69 103 299 47 38 . 81 41 25 159 74 95 67 293 217 195 93 258 1 13 194 105 232 16 28 . 5 276 178 250 102 254 211 251 104 468 789 219 Largest 5 | 1 4 4 4 4 4 2 2 2 2 4 2 2 3 2 2 2 4 2 2 2 2 2 2 4 4 4 4 4 4 4 4 4 4 . 4 4 4 4 4 5 5 5 5 5 5 5 5 5 5 5 5 5 5 . 5 5 5 5 5 5 5 5 5 5 5 5 Hottest 375 | 20 92 92 92 92 92 60 60 60 60 106 60 60 83 60 60 60 110 60 60 60 60 60 60 110 110 110 110 110 110 110 110 110 110 . 110 110 110 110 110 145 145 145 145 145 145 145 150 150 165 165 165 165 165 . 165 165 165 165 165 165 165 165 165 165 375 165 Shots Fired 29372 | 1 255 84 409 49 159 128 172 102 80 132 104 128 93 167 116 123 158 162 374 120 534 40 38 248 96 48 476 51 241 275 938 178 113 . 298 160 100 591 294 375 294 1346 887 840 360 1188 5 63 943 483 1121 80 140 . 25 1273 786 1141 510 1223 1002 1108 516 2166 3219 443 Gun 28769 | 1 190 84 391 48 155 128 172 102 80 132 104 127 93 167 116 123 157 162 370 120 534 40 38 248 96 48 471 51 241 275 935 178 113 . 298 160 100 588 294 375 294 1344 883 840 344 1188 5 63 943 483 1121 80 140 . 25 1273 769 1128 510 1220 991 1078 516 2139 3006 281 Cannon 421 | . 28 . . . . . . . . . . . . . . . . . . . . . . . . . . . . . . . . . . . . . . . . . . . . . . . . . . . . . . . . 12 . . 4 29 . 6 180 162 Launcher 180 | . 37 . 18 1 4 . . . . . . 1 . . . . . . 4 . . . . . . . 4 . . . 3 . . . . . . 3 . . . 2 4 . 16 . . . . . . . . . . . 17 1 . 3 7 1 . 21 33 . Special 2 | . . . . . . . . . . . . . . . . . 1 . . . . . . . . . 1 . . . . . . . . . . . . . . . . . . . . . . . . . . . . . . . . . . . . . . . Kinetic 28722 | 1 184 84 391 48 155 128 172 102 80 132 104 127 93 167 116 123 157 162 370 120 534 40 38 248 96 48 471 51 241 275 935 178 113 . 298 160 100 588 294 375 294 1344 883 840 344 1188 5 63 943 483 1121 80 140 . 25 1273 769 1128 510 1220 990 1078 516 2139 2966 281 Thermal 356 | . 34 . . . . . . . . . . . . . . . . . . . . . . . . . . . . . . . . . . . . . . . . . . . . . . . . . . . . . . . . . . . 5 29 . 6 120 162 Explosive 180 | . 37 . 18 1 4 . . . . . . 1 . . . . . . 4 . . . . . . . 4 . . . 3 . . . . . . 3 . . . 2 4 . 16 . . . . . . . . . . . 17 1 . 3 7 1 . 21 33 . Electromagnetic 112 | . . . . . . . . . . . . . . . . . . . . . . . . . . . . . . . . . . . . . . . . . . . . . . . . . . . . . . . . . . 12 . . . . . . 100 . Robot Hit Streak 109 | 1 16 10 28 6 27 33 18 9 23 41 21 16 17 22 23 34 23 19 22 13 35 14 20 21 21 13 36 19 56 31 35 17 29 . 33 30 45 51 32 52 59 82 53 56 59 73 9 30 37 41 49 18 21 . 28 69 70 64 87 89 62 62 74 107 109 40 Robot Miss Streak 7 | . 4 2 4 3 3 4 4 3 4 2 2 1 4 3 2 2 2 2 3 2 3 2 1 3 3 2 3 1 3 2 4 2 2 . 3 2 1 3 2 1 2 3 3 3 3 5 . 1 3 3 2 1 3 . . 2 4 4 1 4 3 7 2 3 3 2 Penetration Max 4 | . . . . . 1 1 2 1 2 2 1 1 1 1 1 1 2 2 2 2 2 1 1 2 1 1 2 1 2 1 2 1 2 . 2 1 . 2 1 2 2 2 2 2 2 2 . 1 2 2 2 2 1 . 1 3 2 3 2 2 3 2 2 2 4 2 Secondary Targets 1092 | . . 3 12 2 . 2 6 7 2 1 1 1 . 1 . 6 1 6 9 3 25 . 2 10 3 3 9 1 12 4 35 . 2 . 6 5 1 21 8 16 10 46 55 45 20 55 . . 19 17 46 5 4 . . 28 41 66 11 61 66 69 14 77 97 14 Max Gunslinging Chain 3 | . . 1 2 1 . 1 1 1 1 1 1 1 . 1 . 1 1 1 1 1 1 . 1 1 1 1 2 1 2 1 2 . 1 . 2 2 1 2 1 2 2 3 2 2 2 2 . . 2 1 3 2 1 . . 2 3 3 2 2 3 3 2 2 2 1 Capacitor 108 | . . . . . . . . . . . . . . . . . . . . . . . . . . . . . . . . . . . . . . . . . . . . . . . . . . . . . . . . . . . . . . . . . . 108 Shots Hit Robots 19813 | 1 123 49 250 19 105 84 109 54 57 93 76 78 60 113 69 84 95 88 257 64 404 24 31 175 69 34 324 45 181 161 670 125 80 . 213 96 88 466 173 285 204 861 684 596 265 733 5 49 620 321 722 59 88 . 22 863 504 809 322 899 804 724 310 1351 2074 352 Core Hits 11834 | . 60 18 124 13 43 35 68 35 37 43 39 43 31 46 43 43 63 62 184 52 309 14 18 83 33 17 230 14 106 88 414 55 37 . 101 58 22 248 84 152 103 490 416 356 283 476 1 20 341 139 403 36 47 . 7 438 425 469 149 485 484 412 141 772 1617 159 Critical Kills 3311 | . . . . . 4 13 30 19 12 18 22 21 11 26 25 17 30 30 64 22 129 8 11 21 8 8 96 6 30 29 124 12 9 . 19 12 4 68 24 41 21 141 98 108 39 144 . 5 117 45 140 12 12 . 4 151 95 131 49 141 108 155 51 171 313 37 Critical Parts Destroyed 3817 | . . . 1 . 13 15 25 17 18 26 26 24 27 31 19 13 34 26 71 22 150 6 11 37 2 6 104 . 21 25 127 19 13 . 27 9 2 74 24 36 37 161 137 145 29 137 1 2 122 44 171 11 9 . 3 179 104 164 29 150 166 158 48 220 446 43 Critical Strikes 7760 | . 5 . 1 . 18 29 55 36 30 45 48 47 38 58 45 37 64 56 140 45 288 14 22 59 14 15 207 18 51 62 257 32 25 . 52 21 17 147 50 80 62 310 245 270 79 290 1 13 247 103 315 24 22 . 8 359 213 338 102 329 301 330 121 462 895 93 Burn 3 | . 3 . . . . . . . . . . . . . . . . . . . . . . . . . . . . . . . . . . . . . . . . . . . . . . . . . . . . . . . . . . . . . . . . . Meltdown 4 | . . . . . . . . . . . . . . . . . . . . . . . . . . . . . . . . . . . . . . . . . . . . . . . . . . . . . . . . . . . . . . . . . . 4 Destroy 7746 | . . . 1 . 18 29 55 36 30 45 48 47 38 58 45 37 64 56 140 45 288 14 22 59 14 15 207 18 51 62 257 32 25 . 52 21 17 147 50 80 62 310 245 270 79 290 1 13 247 103 315 24 22 . 8 359 213 338 102 329 301 330 121 462 890 89 Blast 5 | . 2 . . . . . . . . . . . . . . . . . . . . . . . . . . . . . . . . . . . . . . . . . . . . . . . . . . . . . . . . . . . . . . . 3 . Corrupt 2 | . . . . . . . . . . . . . . . . . . . . . . . . . . . . . . . . . . . . . . . . . . . . . . . . . . . . . . . . . . . . . . . . . 2 . Melee Attacks 5 | . . . . . . . . . . . . . . . . . . . . . . . . 5 . . . . . . . . . . . . . . . . . . . . . . . . . . . . . . . . . . . . . . . . . . Impact 5 | . . . . . . . . . . . . . . . . . . . . . . . . 5 . . . . . . . . . . . . . . . . . . . . . . . . . . . . . . . . . . . . . . . . . . Slashing . | . . . . . . . . . . . . . . . . . . . . . . . . . . . . . . . . . . . . . . . . . . . . . . . . . . . . . . . . . . . . . . . . . . . Piercing . | . . . . . . . . . . . . . . . . . . . . . . . . . . . . . . . . . . . . . . . . . . . . . . . . . . . . . . . . . . . . . . . . . . . Sneak Attacks . | . . . . . . . . . . . . . . . . . . . . . . . . . . . . . . . . . . . . . . . . . . . . . . . . . . . . . . . . . . . . . . . . . . . Combat Hostiles . | . . . . . . . . . . . . . . . . . . . . . . . . . . . . . . . . . . . . . . . . . . . . . . . . . . . . . . . . . . . . . . . . . . . Follow-up Attacks . | . . . . . . . . . . . . . . . . . . . . . . . . . . . . . . . . . . . . . . . . . . . . . . . . . . . . . . . . . . . . . . . . . . . Damage Inflicted 472343 | 9 2243 799 5437 549 2180 1574 2197 1138 1263 1669 1763 1792 1281 2114 1420 1675 2465 2063 6901 1632 10505 484 654 3248 1290 673 8019 877 3912 3081 15292 2116 1270 . 3349 1613 1591 9243 2962 5692 4246 20086 17896 14371 21428 17013 78 767 10550 4185 12538 849 1118 . 330 13309 19500 13541 4290 16552 17305 13100 4793 33367 78272 14824 Guns 356120 | 9 1494 796 3899 339 1845 1512 2166 1138 1181 1669 1551 1792 1281 2114 1420 1675 2465 2063 5723 1632 10505 484 654 3248 1290 673 7888 877 3604 3081 14195 2116 1270 . 3349 1613 1591 9243 2962 5692 4246 19745 15943 14371 5485 16531 78 767 9531 4185 11467 849 1118 . 330 13309 7881 13097 4245 14231 11645 10669 4793 20256 36309 2940 Cannons 18694 | . 255 . . . . . . . . . . . . . . . . . . . . . . . . . . . . . . . . . . . . . . . . . . . . . . . . . . . . . . . . 92 . . . 2431 . . 4032 11884 Explosions 97083 | . 442 . 1509 160 258 . . . . . 152 . . . . . . . 1178 . . . . . . . 131 . 308 . 1097 . . . . . . . . . . 341 1953 . 15943 482 . . 1019 . 1071 . . . . . 11619 352 45 2321 5660 . . 13111 37931 . Melee . | . . . . . . . . . . . . . . . . . . . . . . . . . . . . . . . . . . . . . . . . . . . . . . . . . . . . . . . . . . . . . . . . . . . Ramming 446 | . 52 3 29 50 77 62 31 . 82 . 60 . . . . . . . . . . . . . . . . . . . . . . . . . . . . . . . . . . . . . . . . . . . . . . . . . . . . . . . Kinetic 358385 | 9 1412 796 3899 339 1845 1512 2166 1138 1181 1669 1551 1792 1281 2114 1420 1675 2465 2063 5723 1632 10505 484 654 3248 1290 673 7888 877 3604 3081 14195 2116 1270 . 3349 1613 1591 9243 2962 5692 4246 19745 15943 14371 5485 16531 78 767 9531 4185 11467 849 1118 . 330 13309 7881 13097 4245 14231 11645 10669 4793 20256 38656 2940 Thermal 26920 | . 337 . . . . . . . . . . . . . . . . . . . . . . . . . . . . . 26 . . . . . . . . . . 204 . . 887 . . . 491 . 1047 . . . . . 982 . . 823 296 2431 . 1427 6085 11884 Explosive 84309 | . 442 . 1509 160 258 . . . . . 152 . . . . . . . 1178 . . . . . . . 131 . 308 . 1071 . . . . . . . . . . 137 1953 . 15056 . . . 528 . . . . . . . 10637 352 45 1498 5364 . . 11684 31846 . Electromagnetic 2283 | . . . . . . . . . . . . . . . . . . . . . . . . . . . . . . . . . . . . . . . . . . . . . . 482 . . . . 24 . . . . . . 92 . . . . . . 1685 . Impact . | . . . . . . . . . . . . . . . . . . . . . . . . . . . . . . . . . . . . . . . . . . . . . . . . . . . . . . . . . . . . . . . . . . . Slashing . | . . . . . . . . . . . . . . . . . . . . . . . . . . . . . . . . . . . . . . . . . . . . . . . . . . . . . . . . . . . . . . . . . . . Piercing . | . . . . . . . . . . . . . . . . . . . . . . . . . . . . . . . . . . . . . . . . . . . . . . . . . . . . . . . . . . . . . . . . . . . Highest Corruption 8 | . . . 3 3 3 . . . . . . . . 1 . . . . 2 . 2 . . . . . 5 8 3 3 4 . . . . . . 2 . . . 4 2 1 2 4 . 5 1 . 3 . . . . 1 3 . . . . . . . . . Average Corruption 2 | . . . 2 3 2 . . . . . . . . 1 . . . . 1 . 1 . . . . . 2 5 2 1 1 . . . . . . 1 . . . 1 1 1 1 1 . 3 1 . 1 . . . . 1 1 . . . . . . . . . Corruption Purged 81 | . . . . . 3 . . . . . . . . 1 . . . . 2 . 3 . . . . . 6 6 2 3 12 . . . . . . 4 . . . 7 2 2 2 10 . 5 1 . 4 . . . . 1 5 . . . . . . . . . Corruption Blocked . | . . . . . . . . . . . . . . . . . . . . . . . . . . . . . . . . . . . . . . . . . . . . . . . . . . . . . . . . . . . . . . . . . . . Effects 149 | . . . 41 22 40 . . . . . . . . . . . . . 2 . 4 . . . . . 3 4 4 1 8 . . . . . . 1 . . . 2 3 1 1 7 . . . . 1 . . . . . 4 . . . . . . . . . Message Errors 30 | . . . 7 4 11 . . . . . . . . . . . . . . . 2 . . . . . 1 . 1 . 1 . . . . . . 1 . . . 1 . . 1 . . . . . . . . . . . . . . . . . . . . . Matter Fused 37 | . . . 12 4 14 . . . . . . . . . . . . . . . . . . . . . . 1 . 1 1 . . . . . . . . . . 1 . . . 2 . . . . . . . . . . 1 . . . . . . . . . Heat Flow Errors 24 | . . . 6 5 7 . . . . . . . . . . . . . 1 . . . . . . . . . 1 . 1 . . . . . . . . . . . . . . 3 . . . . . . . . . . . . . . . . . . . . Energy Discharges 16 | . . . 4 3 2 . . . . . . . . . . . . . 1 . . . . . . . . 1 1 . 1 . . . . . . . . . . . 1 . . . . . . . . . . . . . 2 . . . . . . . . . Parts Rejected 3 | . . . 1 . . . . . . . . . . . . . . . . . 1 . . . . . . . . . 1 . . . . . . . . . . . . . . . . . . . . . . . . . . . . . . . . . . . Data Loss (minor) 19 | . . . 7 3 2 . . . . . . . . . . . . . . . 1 . . . . . 2 1 . . 2 . . . . . . . . . . . . . . . . . . . 1 . . . . . . . . . . . . . . . Data Loss (major) 1 | . . . . 1 . . . . . . . . . . . . . . . . . . . . . . . . . . . . . . . . . . . . . . . . . . . . . . . . . . . . . . . . . . . . . . Misfires 5 | . . . 1 1 1 . . . . . . . . . . . . . . . . . . . . . . . . . . . . . . . . . . . . . . . . 1 . . . . . . . . . . 1 . . . . . . . . . Alerts 4 | . . . 1 1 2 . . . . . . . . . . . . . . . . . . . . . . . . . . . . . . . . . . . . . . . . . . . . . . . . . . . . . . . . . . . . . Weapon Failures 10 | . . . 2 . 1 . . . . . . . . . . . . . . . . . . . . . . 1 1 . 1 . . . . . . . . . . . 2 1 . 1 . . . . . . . . . . . . . . . . . . . . Overload Shots . | . . . . . . . . . . . . . . . . . . . . . . . . . . . . . . . . . . . . . . . . . . . . . . . . . . . . . . . . . . . . . . . . . . . Overflow Damage 4167 | . 14 . 35 40 . . . . . . 3 . . . . . . . 27 . . . . . . . . . . . 25 . . . . . . . . . . 66 36 . 762 . . . 35 . 211 . . . . . 309 40 . 84 125 152 . 566 1237 400 Projectiles 605 | . 12 . . . . . . . . . . . . . . . . . . . . . . . . . . . . . . . . . . . . . . . . . . . . . . . . . . . . . . . . 16 . . . 152 . . 25 400 Explosions 3562 | . 2 . 35 40 . . . . . . 3 . . . . . . . 27 . . . . . . . . . . . 25 . . . . . . . . . . 66 36 . 762 . . . 35 . 211 . . . . . 309 24 . 84 125 . . 566 1212 . Melee . | . . . . . . . . . . . . . . . . . . . . . . . . . . . . . . . . . . . . . . . . . . . . . . . . . . . . . . . . . . . . . . . . . . . Knockbacks 10 | . 5 . . 1 . 1 . . . . . . . . . . . . . . . . . . . . . . . . . . . . . . . . . . . . . . . . . . . . . . . . . . . . . . . . . . 3 . Impact 2 | . . . . 1 . 1 . . . . . . . . . . . . . . . . . . . . . . . . . . . . . . . . . . . . . . . . . . . . . . . . . . . . . . . . . . . . Kinetic 8 | . 5 . . . . . . . . . . . . . . . . . . . . . . . . . . . . . . . . . . . . . . . . . . . . . . . . . . . . . . . . . . . . . . . 3 . Secondary . | . . . . . . . . . . . . . . . . . . . . . . . . . . . . . . . . . . . . . . . . . . . . . . . . . . . . . . . . . . . . . . . . . . . Self-Inflicted Damage 571 | . 27 . . . . . . . . . . . . . 34 . 96 . . . . . . . . . . . . . . . . . . . . . . . . . . . . 228 . . . . . . . . . . . . . 2 . . . . 184 . Shots 10 | . 1 . . . . . . . . . . . . . 1 . 2 . . . . . . . . . . . . . . . . . . . . . . . . . . . . 3 . . . . . . . . . . . . . 1 . . . . 2 . Rammed 83 | . 9 2 7 10 30 7 4 . 10 . 3 . . . 1 . . . . . . . . . . . . . . . . . . . . . . . . . . . . . . . . . . . . . . . . . . . . . . . . . . . Targets Rammed 89 | . 10 2 7 10 30 9 4 . 11 . 5 . . . 1 . . . . . . . . . . . . . . . . . . . . . . . . . . . . . . . . . . . . . . . . . . . . . . . . . . . Kicked 1 | . 1 . . . . . . . . . . . . . . . . . . . . . . . . . . . . . . . . . . . . . . . . . . . . . . . . . . . . . . . . . . . . . . . . . Crushed 5 | . . . . . . 2 . . 1 . 2 . . . . . . . . . . . . . . . . . . . . . . . . . . . . . . . . . . . . . . . . . . . . . . . . . . . . . . . Highest Temperature 342 | . 217 57 261 214 184 84 26 22 15 313 . 3 24 14 5 14 44 14 165 7 22 . 8 241 63 28 128 153 151 36 120 48 36 . 51 53 149 9 9 100 100 212 162 134 205 342 20 86 173 62 78 64 69 . 11 38 . 36 24 34 24 72 24 115 115 51 Average Temperature 40 | . 50 26 42 98 80 18 4 4 3 60 . 1 7 2 2 4 7 3 25 3 4 . 4 77 24 16 38 61 14 9 15 15 11 . 13 16 65 4 4 29 40 46 44 34 56 50 15 38 39 28 29 31 31 . 11 15 . 17 18 19 19 35 18 88 40 19 Received Heat Transfer 4471 | . 321 54 179 . . 171 117 72 18 336 36 68 62 145 24 98 60 139 91 94 280 18 39 6 225 . 101 . 56 19 197 . 6 . 86 33 . 66 48 30 18 18 18 6 43 102 . . 106 24 60 6 15 . . 78 46 99 42 65 144 48 12 112 60 54 Siege Activations 2 | . . . . . . . . . . . . . . . . . . . . . . . . . . . . . . . . . . . . . . . . . . . . . . . . . . . . . . . . . . . . . . . . . 2 . Total Turns 63 | . . . . . . . . . . . . . . . . . . . . . . . . . . . . . . . . . . . . . . . . . . . . . . . . . . . . . . . . . . . . . . . . . 63 . Longest Duration 51 | . . . . . . . . . . . . . . . . . . . . . . . . . . . . . . . . . . . . . . . . . . . . . . . . . . . . . . . . . . . . . . . . . 51 . Robots Corrupted 7 | . . . . . . . . . . . . . . . . . . . . . . . . . . . . . . . . . . . . . . . . . . . . . . . . . . . . . . . . . . . . . . . . . 7 . Combat Hostiles 7 | . . . . . . . . . . . . . . . . . . . . . . . . . . . . . . . . . . . . . . . . . . . . . . . . . . . . . . . . . . . . . . . . . 7 . Parts Fried 35 | . . . . . . . . . . . . . . . . . . . . . . . . . . . . . . . . . . . . . . . . . . . 1 . . . . . . . . . . . . . . . . . . . . . 34 . Impact Corruptions . | . . . . . . . . . . . . . . . . . . . . . . . . . . . . . . . . . . . . . . . . . . . . . . . . . . . . . . . . . . . . . . . . . . . Robots Melted 4 | . . . . . . . . . . . . . . . . . . . . . . . . . . . . . . . . . . . . . . . . . . . . . . . . . . . . . . . . . . . . . . . . . . 4 Combat Hostiles 4 | . . . . . . . . . . . . . . . . . . . . . . . . . . . . . . . . . . . . . . . . . . . . . . . . . . . . . . . . . . . . . . . . . . 4 Parts Melted 87 | . 3 . . . . . . . . . . . . . . . . . . . . . . . . . . . . . 1 . . . . 1 . . . . . . . . . . . . . . . . . . . . . 1 . . . 1 . 79 1 . Heat Transferred 14633 | . 1221 . . . . . . . . . . . . . . . . . . . . . . . . . . . . . 50 . . . . . . . . . . 150 . . 725 . . . 350 . 575 . . . . . 1030 . . 550 250 1300 . 1000 4125 3307 Parts Sabotaged . | . . . . . . . . . . . . . . . . . . . . . . . . . . . . . . . . . . . . . . . . . . . . . . . . . . . . . . . . . . . . . . . . . . . Parts Stolen . | . . . . . . . . . . . . . . . . . . . . . . . . . . . . . . . . . . . . . . . . . . . . . . . . . . . . . . . . . . . . . . . . . . . Parts Stripped . | . . . . . . . . . . . . . . . . . . . . . . . . . . . . . . . . . . . . . . . . . . . . . . . . . . . . . . . . . . . . . . . . . . . Power Chain Reactions 49 | . 1 . . . . . . . . . . . . . . . . . . . . . . . . . . . . . . . . . . . . . . . . . . . 8 1 . . . . . . . . . . 7 . . 3 7 . . 10 12 . Missiles Intercepted . | . . . . . . . . . . . . . . . . . . . . . . . . . . . . . . . . . . . . . . . . . . . . . . . . . . . . . . . . . . . . . . . . . . . Alert | -11 -10 -10 -9 -9 -9 -8 -8 -8 -8 -8 -8 -8 -8 -8 -8 -8 -7 -7 -7 -7 -7 -7 -7 -7 -7 -6 -6 -6 -6 -6 -6 -6 -6 -6 -5 -5 -5 -5 -5 -5 -5 -5 -5 -5 -5 -5 -4 -4 -4 -4 -4 -4 -4 -4 -3 -3 -3 -3 -3 -2 -2 -1 -1 -1 -1 -1 ------- Run | Scr Mat Min Mat Min Exi Min Mat Gar Mat Gar Mat Gar Mat Gar Mat Gar Fac Gar Fac Gar Fac Low Low Zio Dee Pro Fac Was Fac Gar Fac Low Low Dat Pro Fac Was Fac Gar Fac Gar Fac Ext Cet Arc Hub Fac Was Fac Gar Fac Upp Upp Zhi Pro Res Qua Sec Gar Res Tes Acc Gar Acc Com Ac0 Peak Influence 23726 | . 1376 688 1341 954 . 125 621 1211 1020 1457 1081 1454 1255 2046 1340 1759 1628 2276 2870 3348 6009 . . . . . 2024 1115 1790 2630 5679 . . . . 1852 1115 2262 2928 2583 3181 7426 8403 8700 6836 8002 3942 1379 3877 4594 7164 . . . . 4671 6966 8046 7882 9184 8870 9676 9981 14365 23726 . Initial 9193 | . . 536 173 522 . . . 403 590 469 709 427 708 753 997 797 923 1139 1202 2009 1757 . . . . . 191 1100 780 1253 1380 . . . . 706 1100 398 1583 1537 1808 1669 3638 4705 3480 2392 3920 1379 965 2713 2411 . . . . 50 2627 3918 6034 4433 5166 5321 7740 5988 9193 . Average 3721 | . 436 517 654 741 . 54 342 847 768 1080 758 1141 1055 1648 1143 1493 1275 2000 1958 2870 3536 . . . . . 1396 1110 1339 2243 3082 . . . . 1384 815 1181 2598 2135 2796 4204 5617 6458 5146 5060 3923 1379 2303 3893 4851 . . . . 2281 5058 5560 7202 6899 6607 7388 9518 11851 16034 . Maximum Alert Level 5 | . 4 2 4 3 . . 2 4 3 4 3 4 4 5 4 5 5 5 5 5 5 . . . . . 5 4 5 5 5 . . . . 5 4 5 5 5 5 5 5 5 5 5 5 4 5 5 5 . . . . 5 5 5 5 5 5 5 5 5 5 . Low Security (%) 3 | 100 28 . . . . 100 26 . . . . . . . . . . . . . . . . . . . . . . . . . . . . . . . . . . . . . . . . . . . . . . . . 4 . . . . . . . . . . Level 1 4 | . 44 . 30 . . . 25 . . . . . . . . . . . . . . . . . . . 3 . . . . . . . . . . 2 . . . . . . . . . . . . . . . . . 3 . . . . . . . . . . Level 2 8 | . 5 100 24 23 . . 47 29 27 13 31 15 . . . . . . . . . . . . . . 8 . . . . . . . . . 36 7 . . . . . . . . . . . . . . . . . 3 . . . . . . . . . . Level 3 11 | . 11 . 37 76 . . . 41 72 39 68 17 42 11 27 12 26 . 3 . . . . . . . 20 . 29 . . . . . . 29 42 16 . . . . . . . . . . 5 . . . . . . 9 . . . . . . . . . . Level 4 13 | . 10 . 6 . . . . 28 . 47 . 67 57 23 72 25 69 10 28 . . . . . . . 22 100 63 12 33 . . . . 41 21 62 1 4 . . . . . . . 100 22 . . . . . . 23 . . . . . . . . . . Level 5 30 | . . . . . . . . . . . . . . 65 . 62 . 89 68 100 19 . . . . . 43 . 2 87 7 . . . . 21 . 10 98 94 100 56 28 12 2 19 100 . 70 100 16 . . . . 3 3 49 100 28 47 30 100 . 34 . High Security 28 | . . . . . . . . . . . . . . . . . 3 . . . 80 . . . . . . . 4 . 59 . . . . 7 . . . 1 . 43 71 87 97 80 . . 1 . 83 . . . . 52 96 50 . 71 52 69 . 99 65 . Max Security . | . . . . . . . . . . . . . . . . . . . . . . . . . . . . . . . . . . . . . . . . . . . . . . . . . . . . . . . . . . . . . . . . . . . Sterilizations 16 | . . . 1 . . . . . . . . . . . . . . . . . 1 . . . . . . . . . 1 . . . . . . . . . . 1 1 1 1 1 . . . . 1 . . . . 1 1 1 . 1 1 1 . 1 . . Squads Dispatched 693 | . 11 1 11 . . . 5 . 5 . 4 . 3 . 1 . 5 . 23 . 36 . . . . . 21 . 7 . 33 . 1 . . 3 . 12 . 18 . 39 25 22 32 41 1 . 35 . 34 . . . . 9 34 33 . 36 36 39 . 38 39 . Investigation 48 | . 10 1 2 . . . 3 . 1 . 2 . 1 . . . . . 3 . . . . . . . 3 . 1 . 3 . . . . . . 1 . 2 . 2 . . . 2 . . 4 . . . . . . 4 . . . 1 1 . . . 1 . Extermination 21 | . . . . . . . . . . . . . . . . . . . 5 . . . . . . . 3 . . . . . . . . . . 3 . 1 . 1 . . . . . . 3 . . . . . . . . 1 . 1 2 1 . . . . Reinforcement 63 | . 1 . 3 . . . 1 . 1 . 2 . 2 . 1 . 4 . 2 . . . . . . . 3 . . . 2 . . . . 1 . 3 . 1 . 5 1 . . 5 . . 7 . . . . . . 5 . 3 . 2 2 4 . . 2 . Assault 486 | . . . 6 . . . 1 . . . . . . . . . 1 . 10 . 33 . . . . . 5 . 2 . 25 . 1 . . . . 3 . 7 . 30 24 22 32 33 . . 8 . 34 . . . . . 33 28 . 25 28 25 . 34 36 . Garrison 59 | . . . . . . . . . 3 . . . . . . . . . 3 . 3 . . . . . 7 . 4 . 3 . . . . 2 . 2 . 7 . 1 . . . 1 1 . 13 . . . . . . . 1 . . 1 . 6 . 1 . . Intercept 16 | . . . . . . . . . . . . . . . . . . . . . . . . . . . . . . . . . . . . . . . . . . . . . . . . . . . . . . . . . . 1 . 6 3 3 . 3 . . Searches Triggered . | . . . . . . . . . . . . . . . . . . . . . . . . . . . . . . . . . . . . . . . . . . . . . . . . . . . . . . . . . . . . . . . . . . . Data Miner Redirects 32 | . . . . . . . . . . . . . . . . . . . . . . . . . . . . . . . . . . . . . . 3 . 5 . 4 2 . . 1 . . 6 . . . . . . . . 4 . 1 4 2 . . . . Construction Impeded 11 | . . . 1 . . . 1 . . . . . . . . . . . 1 . . . . . . . 1 . . . 1 . . . . . . . . . . 1 1 . . 1 . . . . . . . . . . . . . . 1 2 . . . . Haulers Reinforced 22 | . . . . . . . . . . . . . . . . . 2 . . . . . . . . . 2 . . . 1 . . . . 1 . 3 . 1 . 2 . . . . . . 4 . . . . . . 2 . 1 . 1 . 2 . . . . Active Scanning Responses . | . . . . . . . . . . . . . . . . . . . . . . . . . . . . . . . . . . . . . . . . . . . . . . . . . . . . . . . . . . . . . . . . . . . Cargo Convoy Interrupts 6 | . . . . . . . . . . . . . . . . . . . 1 . . . . . . . . . 1 . . . . . . . . 1 . 1 . 1 . . . . . . 1 . . . . . . . . . . . . . . . . . Stealth | -11 -10 -10 -9 -9 -9 -8 -8 -8 -8 -8 -8 -8 -8 -8 -8 -8 -7 -7 -7 -7 -7 -7 -7 -7 -7 -6 -6 -6 -6 -6 -6 -6 -6 -6 -5 -5 -5 -5 -5 -5 -5 -5 -5 -5 -5 -5 -4 -4 -4 -4 -4 -4 -4 -4 -3 -3 -3 -3 -3 -2 -2 -1 -1 -1 -1 -1 --------- Run | Scr Mat Min Mat Min Exi Min Mat Gar Mat Gar Mat Gar Mat Gar Mat Gar Fac Gar Fac Gar Fac Low Low Zio Dee Pro Fac Was Fac Gar Fac Low Low Dat Pro Fac Was Fac Gar Fac Gar Fac Ext Cet Arc Hub Fac Was Fac Gar Fac Upp Upp Zhi Pro Res Qua Sec Gar Res Tes Acc Gar Acc Com Ac0 Distress Signals 66 | . 4 . 5 . . . 2 . 1 . . . 1 . 1 . . . 1 . 1 . . . . . . . 1 . 1 . . . 2 4 . 2 . 5 . 2 2 2 . 5 . . 4 . . . . . . 4 1 3 . 4 . 3 . 1 4 . Communications Jammed 10 | . . . . . . . . . . . . . 1 . 7 . 2 . . . . . . . . . . . . . . . . . . . . . . . . . . . . . . . . . . . . . . . . . . . . . . . . . Distress Signals 10 | . . . . . . . . . . . . . 1 . 7 . 2 . . . . . . . . . . . . . . . . . . . . . . . . . . . . . . . . . . . . . . . . . . . . . . . . . Times Spotted 5088 | . 35 14 78 12 20 7 38 28 20 28 25 23 17 32 18 23 22 42 99 31 228 7 7 48 15 13 88 5 41 30 211 22 14 . 38 24 5 82 36 64 44 220 198 199 143 229 2 6 112 58 201 17 22 . 3 145 172 194 40 212 183 176 44 270 547 61 Peak Tracking Total 66 | . 5 3 7 4 9 3 5 4 3 6 4 3 3 7 3 8 4 5 8 5 22 1 3 6 4 3 12 2 7 6 17 7 11 . 11 6 2 10 6 7 6 19 21 25 20 18 2 3 6 6 15 7 8 . 1 16 21 15 7 18 14 15 9 21 66 7 Tactical Retreats 189 | . 1 . 1 . 2 1 1 3 . 2 5 3 . 3 . . . 5 2 . 14 . . 5 1 1 3 . 1 . 12 1 2 . . 1 . . 3 3 . 9 10 5 . 6 . . 6 2 7 . 2 . . 11 1 12 2 8 3 3 1 2 21 2 Traps | -11 -10 -10 -9 -9 -9 -8 -8 -8 -8 -8 -8 -8 -8 -8 -8 -8 -7 -7 -7 -7 -7 -7 -7 -7 -7 -6 -6 -6 -6 -6 -6 -6 -6 -6 -5 -5 -5 -5 -5 -5 -5 -5 -5 -5 -5 -5 -4 -4 -4 -4 -4 -4 -4 -4 -3 -3 -3 -3 -3 -2 -2 -1 -1 -1 -1 -1 ------- Run | Scr Mat Min Mat Min Exi Min Mat Gar Mat Gar Mat Gar Mat Gar Mat Gar Fac Gar Fac Gar Fac Low Low Zio Dee Pro Fac Was Fac Gar Fac Low Low Dat Pro Fac Was Fac Gar Fac Gar Fac Ext Cet Arc Hub Fac Was Fac Gar Fac Upp Upp Zhi Pro Res Qua Sec Gar Res Tes Acc Gar Acc Com Ac0 Traps Triggered 180 | . 3 1 2 . . . 1 1 1 3 1 7 1 6 2 12 . 4 3 10 1 . . . . . 4 . 1 4 11 . . . . 1 . 8 14 1 11 10 2 . . 5 1 . 2 8 3 . . . . 1 1 . 14 2 2 . 6 6 3 . Indirectly 1 | . . . . . . . . . . . . . . . . . . . . . . . . . . . . . . . . . . . . . . . . . . . . . . 1 . . . . . . . . . . . . . . . . . . . . Trap Hack Attempts . | . . . . . . . . . . . . . . . . . . . . . . . . . . . . . . . . . . . . . . . . . . . . . . . . . . . . . . . . . . . . . . . . . . . Triggered . | . . . . . . . . . . . . . . . . . . . . . . . . . . . . . . . . . . . . . . . . . . . . . . . . . . . . . . . . . . . . . . . . . . . Disarmed . | . . . . . . . . . . . . . . . . . . . . . . . . . . . . . . . . . . . . . . . . . . . . . . . . . . . . . . . . . . . . . . . . . . . Reprogrammed . | . . . . . . . . . . . . . . . . . . . . . . . . . . . . . . . . . . . . . . . . . . . . . . . . . . . . . . . . . . . . . . . . . . . Reused . | . . . . . . . . . . . . . . . . . . . . . . . . . . . . . . . . . . . . . . . . . . . . . . . . . . . . . . . . . . . . . . . . . . . Traps Extracted . | . . . . . . . . . . . . . . . . . . . . . . . . . . . . . . . . . . . . . . . . . . . . . . . . . . . . . . . . . . . . . . . . . . . Installed . | . . . . . . . . . . . . . . . . . . . . . . . . . . . . . . . . . . . . . . . . . . . . . . . . . . . . . . . . . . . . . . . . . . . Triggered 8 | . . . . . . . . . . . . . . . . . . . 2 . . 1 2 . . . . . . . . . . . . . . . . . . . . . . . . . . . . . 3 . . . . . . . . . . . . . Exploded 2 | . . . . . 2 . . . . . . . . . . . . . . . . . . . . . . . . . . . . . . . . . . . . . . . . . . . . . . . . . . . . . . . . . . . . . Machines | -11 -10 -10 -9 -9 -9 -8 -8 -8 -8 -8 -8 -8 -8 -8 -8 -8 -7 -7 -7 -7 -7 -7 -7 -7 -7 -6 -6 -6 -6 -6 -6 -6 -6 -6 -5 -5 -5 -5 -5 -5 -5 -5 -5 -5 -5 -5 -4 -4 -4 -4 -4 -4 -4 -4 -3 -3 -3 -3 -3 -2 -2 -1 -1 -1 -1 -1 ---------- Run | Scr Mat Min Mat Min Exi Min Mat Gar Mat Gar Mat Gar Mat Gar Mat Gar Fac Gar Fac Gar Fac Low Low Zio Dee Pro Fac Was Fac Gar Fac Low Low Dat Pro Fac Was Fac Gar Fac Gar Fac Ext Cet Arc Hub Fac Was Fac Gar Fac Upp Upp Zhi Pro Res Qua Sec Gar Res Tes Acc Gar Acc Com Ac0 Machines Disabled 480 | . 27 1 2 3 14 . 6 1 3 3 5 6 2 6 4 3 9 2 30 2 16 2 . 4 . . 9 . 9 5 18 . 1 . 5 8 . 11 4 1 7 36 4 3 5 24 . . 22 10 38 1 . . . 6 12 11 10 8 8 2 9 12 22 8 Max in Single Turn 10 | . 3 1 1 1 2 . 2 1 1 2 2 3 1 3 2 1 4 1 7 1 4 1 . 1 . . 3 . 4 1 4 . 1 . 1 3 . 1 1 1 1 6 1 1 1 10 . . 4 1 7 1 . . . 1 1 1 2 1 1 1 2 1 2 1 Garrison Access 18 | . . . . . . . . . . . . . . . . . . . 1 . 1 . . . . . . . . . 2 . . . . 2 . . . 1 . 2 . . . 2 . . . . . . . . . 2 1 . . 2 . . . 2 . . Garrison Relay 37 | . . . . . . . . . . 1 . 3 . 2 . 2 . 1 . 1 . . . . . . . . . 5 . . . . . . . . 4 . 4 . . . . . . . . 5 . . . . . . . . 5 . . . 4 . . . Phase Generator 6 | . . . . . . . . . . 1 . 1 . 1 . . . . . . . . . . . . . . . . . . . . . . . . . . . . . . . . . . . 1 . . . . . . . . 1 . . . 1 . . . Network Hub 4 | . . . . . . . . . . . . . . . . . . . . . . . . . . . . . . . . . . . . . . . . . . . . . . 4 . . . . . . . . . . . . . . . . . . . . Energy Cycler 2 | . . . . . . . . . . . . . . . . . . . . . . . . . . . . . . . . . . . . . . . . . . . . . . . . . . . . . . . . . . . . . . . . 2 . . Machines Sabotaged 1 | . 1 . . . . . . . . . . . . . . . . . . . . . . . . . . . . . . . . . . . . . . . . . . . . . . . . . . . . . . . . . . . . . . . . . Overloaded Fab Kills . | . . . . . . . . . . . . . . . . . . . . . . . . . . . . . . . . . . . . . . . . . . . . . . . . . . . . . . . . . . . . . . . . . . . Hacking | -11 -10 -10 -9 -9 -9 -8 -8 -8 -8 -8 -8 -8 -8 -8 -8 -8 -7 -7 -7 -7 -7 -7 -7 -7 -7 -6 -6 -6 -6 -6 -6 -6 -6 -6 -5 -5 -5 -5 -5 -5 -5 -5 -5 -5 -5 -5 -4 -4 -4 -4 -4 -4 -4 -4 -3 -3 -3 -3 -3 -2 -2 -1 -1 -1 -1 -1 --------- Run | Scr Mat Min Mat Min Exi Min Mat Gar Mat Gar Mat Gar Mat Gar Mat Gar Fac Gar Fac Gar Fac Low Low Zio Dee Pro Fac Was Fac Gar Fac Low Low Dat Pro Fac Was Fac Gar Fac Gar Fac Ext Cet Arc Hub Fac Was Fac Gar Fac Upp Upp Zhi Pro Res Qua Sec Gar Res Tes Acc Gar Acc Com Ac0 Machines Accessed 281 | . 10 3 9 1 2 . 7 2 5 4 9 2 4 5 10 3 6 2 16 2 2 1 . . . . 13 . 8 3 11 1 1 4 3 5 . 8 2 9 3 9 1 . . 11 3 . 15 4 8 2 1 4 . 16 1 10 3 2 1 3 4 . 6 1 Terminals 191 | . 7 1 7 . . . 5 2 4 4 6 2 2 5 9 3 4 2 14 2 . . . . . . 7 . 4 3 9 . . . 2 2 . 5 2 4 3 6 1 . . 9 1 . 7 4 6 . . . . 10 1 9 3 2 1 1 4 . 6 . Fabricators 6 | . . . . . . . . . . . . . . . . . . . . . . . . . . . 1 . . . 1 . . . 1 . . . . . . . . . . . . . 3 . . . . . . . . . . . . . . . . . Repair Stations 1 | . 1 . . . . . . . . . . . . . . . . . . . . . . . . . . . . . . . . . . . . . . . . . . . . . . . . . . . . . . . . . . . . . . . . . Recycling Units 25 | . 2 . 2 . . . 1 . . . 1 . 1 . . . . . . . 1 . . . . . 4 . 2 . . . . . . 1 . . . 3 . 1 . . . . 2 . . . 2 . . . . 2 . . . . . . . . . . Scanalyzers 7 | . . . . . . . . . . . 1 . . . . . 1 . . . . . . . . . 1 . . . . . . . . . . 1 . . . . . . . . . . 1 . . . . . . 2 . . . . . . . . . . Garrison Access 31 | . . . . . . . 1 . 1 . 1 . 1 . 1 . 1 . 2 . 1 . . . . . . . 2 . 1 . . . . 2 . 2 . 2 . 2 . . . 2 . . 4 . . . . . . 2 . 1 . . . 2 . . . . Total Hacks 959 | . 29 6 19 1 3 . 18 6 13 13 27 5 11 14 28 9 17 5 46 4 5 1 . . . . 37 . 17 7 40 1 4 30 6 9 . 14 4 22 8 27 8 . . 41 5 . 70 20 46 4 1 17 . 96 4 42 22 14 4 9 22 . 25 3 Successful 494 | . 20 5 11 1 3 . 10 3 5 6 13 3 8 3 11 3 7 4 20 3 2 1 . . . . 18 . 9 3 21 1 4 30 4 5 . 7 1 13 3 15 5 . . 23 2 . 41 8 21 4 1 17 . 45 1 18 6 5 . 3 7 . 8 3 Failed 465 | . 9 1 8 . . . 8 3 8 7 14 2 3 11 17 6 10 1 26 1 3 . . . . . 19 . 8 4 19 . . . 2 4 . 7 3 9 5 12 3 . . 18 3 . 29 12 25 . . . . 51 3 24 16 9 4 6 15 . 17 . Catastrophic 85 | . 1 1 3 . . . 3 1 2 1 3 1 2 . 2 . 2 . 7 . . . . . . . 3 . 2 1 2 . . . 1 2 . 1 1 2 . 1 . . . . 2 . 3 6 6 . . . . 4 . 4 2 1 . 3 1 . 8 . Database Lockouts . | . . . . . . . . . . . . . . . . . . . . . . . . . . . . . . . . . . . . . . . . . . . . . . . . . . . . . . . . . . . . . . . . . . . Manual 371 | . 20 4 10 . 1 . 9 1 5 7 10 3 8 3 17 3 6 2 17 2 5 . . . . . 13 . 8 . 21 . . . . 2 . 2 1 7 2 13 6 . . 24 3 . 26 15 14 . . . . 23 1 16 4 10 4 7 7 . 9 . Terminals 737 | . 19 4 17 . . . 16 6 10 13 24 5 9 14 27 9 12 5 42 4 . . . . . . 17 . 13 7 37 . . . 3 5 . 11 4 12 8 19 8 . . 37 2 . 49 20 37 . . . . 77 4 40 22 14 4 4 22 . 25 . Fabricators 13 | . . . . . . . . . . . . . . . . . . . . . . . . . . . 2 . . . 1 . . . 3 . . . . . . . . . . . . . 7 . . . . . . . . . . . . . . . . . Repair Stations 8 | . 8 . . . . . . . . . . . . . . . . . . . . . . . . . . . . . . . . . . . . . . . . . . . . . . . . . . . . . . . . . . . . . . . . . Recycling Units 57 | . 2 . 2 . . . 1 . . . 1 . 1 . . . . . . . 3 . . . . . 15 . 2 . . . . . . 1 . . . 7 . 3 . . . . 3 . . . 9 . . . . 7 . . . . . . . . . . Scanalyzers 19 | . . . . . . . . . . . 1 . . . . . 2 . . . . . . . . . 3 . . . . . . . . . . 1 . . . . . . . . . . 6 . . . . . . 6 . . . . . . . . . . Garrison Access 58 | . . . . . . . 1 . 3 . 1 . 1 . 1 . 3 . 4 . 2 . . . . . . . 2 . 2 . . . . 3 . 2 . 3 . 5 . . . 4 . . 8 . . . . . . 6 . 2 . . . 5 . . . . Terminal Hacks 284 | . 3 5 6 1 3 . 6 2 3 4 8 2 4 3 8 2 3 2 15 2 . 1 . . . . 7 . 2 3 11 1 4 30 3 1 . 3 1 6 3 6 4 . . 12 . . 19 4 11 4 1 17 . 24 . 10 3 1 . . 4 . 3 3 Record 27 | . . . . . 2 . . . . . . . . . . . . . . . . . . . . . . . . . . . 4 11 2 . . . . . . . . . . . . . . . . 3 . 5 . . . . . . . . . . . . Part Schematic 17 | . . . . . . . . . . . . . . . . . . . . . . . . . . . . . . . . . . 11 . . . . . . . . . . . . . . . . . . . 4 . 2 . . . . . . . . . . Robot Schematic 5 | . . . . . . . . . . . . . . . . . . . . . . . . . . . . . . . . . . 5 . . . . . . . . . . . . . . . . . . . . . . . . . . . . . . . . Robot Analysis 9 | . 1 1 1 . . . 1 . . . . . . . . . . . . . . . . . . . . . . . . . . . . . . . . . . . . . . . . . . . . . . 4 . 1 . . . . . . . . . . Prototype ID Bank 26 | . 2 2 1 . . . 1 . . . . . . . . . 1 . 1 . . . . . . . . . . . . . . 3 . 1 . . . . . 1 . . . . . . 1 . 2 . . 4 . 5 . . . . . . . . 1 . Open Door 14 | . . 2 . 1 . . . . . . . . . 1 . . . . . 1 . 1 . . . . . . . 1 . 1 . . 1 . . . . . . . . . . . . . . . . 1 1 . . . . 3 . . . . . . . . Level Access Points 5 | . . . . . . . . . . . . . . . . . . . . . . . . . . . . . . . . . . . . . . . . . . 1 . . . 1 . . 1 . 1 . . . . 1 . . . . . . . . . . Branch Access Points 8 | . . . . . . . 1 . . . . . . . . . 1 . 1 . . . . . . . . . . . 1 . . . . . . . . 1 . 1 . . . . . . . . 1 . . . . 1 . . . . . . . . . . Emergency Access Points 21 | . . . . . . . 1 1 . 1 . . . 1 . 1 . 1 . 1 . . . . . . . . . 1 2 . . . . . . 1 1 . 1 . . . . 1 . . . 1 . . . . . 3 . 1 1 . . . 1 . . . Machine Index 2 | . . . . . . . . . . . . . . . 1 . . . . . . . . . . . . . . . . . . . . . . . . . . . . . . . . . 1 . . . . . . . . . . . . . . . . . Terminal Index 5 | . . . . . . . . . . . . . 1 . . . . . . . . . . . . . . . . . . . . . . . . 1 . . . . . . . 1 . . . . 1 . . . . . . . . . . . . . 1 . Fabricator Index 2 | . . . . . . . . . . . . . . . . . . . . . . . . . . . . . . . . . . . . . . . . . . . . . . . . . 2 . . . . . . . . . . . . . . . . . Recycling Unit Index 1 | . . . . . . . . . . . . . . . . . . . . . . . . . . . 1 . . . . . . . . . . . . . . . . . . . . . . . . . . . . . . . . . . . . . . . Scanalyzer Index 1 | . . . . . . . . . . . . . . . . . . . . . . . . . . . . . . . . . . . . . . . . . . . . . . . . . . . 1 . . . . . . . . . . . . . . . Garrison Index 7 | . . . . . . . . . . . 1 . 1 . . . . . 1 . . . . . . . . . 1 . . . . . . . . . . 1 . . . . . . . . 1 . . . . . . . . 1 . . . . . . . . Alert Level 26 | . . . 1 . . . 1 . 1 . 2 . 1 . 1 . 1 . 3 . . . . . . . 2 . 1 . 1 . . . . . . 1 . 1 . 1 1 . . . . . 4 . 1 . . . . 1 . 1 . . . . . . . . Unreport Threat 29 | . . . . . . . 1 . 2 . 4 . 1 . 3 . . . 4 . . . . . . . 2 . . . 2 . . . . . . . . 2 . 2 2 . . . . . 4 . . . . . . . . . . . . . . . . . Locate Traps 14 | . . . 1 . . . . . . . . . . . . . . . . . . . . . . . 2 . . . 2 . . . . . . . . . . . 1 . . . . . 3 . . . . . . 3 . 1 . 1 . . . . . . Maintenance Status 3 | . . . . . . . . . . . . . . . . . . . 1 . . . . . . . . . . . . . . . . . . . . . . . . . . . . . . . 1 . . . . 1 . . . . . . . . . . Security Status 2 | . . . . . . . . . . . . . . . . . . . 1 . . . . . . . . . . . . . . . . . . . . . . . . . . . . . . . 1 . . . . . . . . . . . . . . . Patrol Status 3 | . . . . . . . . . . . . . . . . . . . . . . . . . . . . . . . . . . . . . . . . . . . . . . . . . . . . . . . . 2 . 1 . . . . . . . . Extermination Status 1 | . . . . . . . . . . . . . . . . . . . 1 . . . . . . . . . . . . . . . . . . . . . . . . . . . . . . . . . . . . . . . . . . . . . . . Hauler Manifests 5 | . . . . . . . . . . . . . . . . . . . . . . . . . . . . . . . 1 . . . . . . . . 1 . . . . . 1 . . . . . . . . . 2 . . . . . . . . . . Registered Prototypes 1 | . . . . . . . . . . . . . . . . . . . . . . . . . . . . . . . . . . . . . . . . . . . . . . . . . . . . . . . . 1 . . . . . . . . . . Zone Layout 25 | . . . 2 . . . . . . . 1 . . . 3 . . . 2 . . . . . . . . . . . 2 . . . . . . . . . . . . . . 8 . . 2 . 2 . . . . 1 . 2 . . . . . . . . Garrison Registry 7 | . . . . . . . . 1 . 1 . 1 . . . . . 1 . . . . . . . . . . . . . . . . . . . . . . 1 . . . . . . . . 1 . . . . . . . . . . . . 1 . . . Patrol Navigation 8 | . . . . . . . . . . 1 . 1 . . . 1 . . . . . . . . . . . . . 1 . . . . . . . . . . 1 . . . . . . . . 1 . . . . . . . . 1 . . . 1 . . . Security Stations 5 | . . . . . . . . . . 1 . . . 1 . . . . . . . . . . . . . . . . . . . . . . . . . . . . . . . . . . . 1 . . . . . . . . 1 . . . 1 . . . EX-Prototype ID Bank 1 | . . . . . 1 . . . . . . . . . . . . . . . . . . . . . . . . . . . . . . . . . . . . . . . . . . . . . . . . . . . . . . . . . . . . . Disengage Seal 1 | . . . . . . . . . . . . . . . . . . . . . . . . . . . . . . . . . . . . . . . . . . . . . . . . . . . . . . . . . . . . . . . . . 1 . Gate Test 138-A 1 | . . . . . . . . . . . . . . . . . . . . . . . . . . . . . . . . . . . . . . . . . . . . . . . . . . . . . . . . . . . . . . . . . . 1 Gate Test 138-B 1 | . . . . . . . . . . . . . . . . . . . . . . . . . . . . . . . . . . . . . . . . . . . . . . . . . . . . . . . . . . . . . . . . . . 1 Gate Test 138-END 1 | . . . . . . . . . . . . . . . . . . . . . . . . . . . . . . . . . . . . . . . . . . . . . . . . . . . . . . . . . . . . . . . . . . 1 Fabricator Hacks 8 | . . . . . . . . . . . . . . . . . . . . . . . . . . . 1 . . . . . . . 1 . . . . . . . . . . . . . 6 . . . . . . . . . . . . . . . . . Network Status 1 | . . . . . . . . . . . . . . . . . . . . . . . . . . . 1 . . . . . . . . . . . . . . . . . . . . . . . . . . . . . . . . . . . . . . . Load Schematic 4 | . . . . . . . . . . . . . . . . . . . . . . . . . . . . . . . . . . . 1 . . . . . . . . . . . . . 3 . . . . . . . . . . . . . . . . . Build 3 | . . . . . . . . . . . . . . . . . . . . . . . . . . . . . . . . . . . . . . . . . . . . . . . . . 3 . . . . . . . . . . . . . . . . . Repair Station Hacks 8 | . 8 . . . . . . . . . . . . . . . . . . . . . . . . . . . . . . . . . . . . . . . . . . . . . . . . . . . . . . . . . . . . . . . . . Scan Component 7 | . 7 . . . . . . . . . . . . . . . . . . . . . . . . . . . . . . . . . . . . . . . . . . . . . . . . . . . . . . . . . . . . . . . . . Repair 1 | . 1 . . . . . . . . . . . . . . . . . . . . . . . . . . . . . . . . . . . . . . . . . . . . . . . . . . . . . . . . . . . . . . . . . Recycling Unit Hacks 13 | . . . . . . . . . . . . . . . . . . . . . . . . . . . 4 . . . . . . . . 1 . . . 3 . . . . . . 1 . . . 1 . . . . 3 . . . . . . . . . . Retrieve Components 13 | . . . . . . . . . . . . . . . . . . . . . . . . . . . 4 . . . . . . . . 1 . . . 3 . . . . . . 1 . . . 1 . . . . 3 . . . . . . . . . . Scanalyzer 13 | . . . . . . . . . . . 1 . . . . . 2 . . . . . . . . . . . . . . . . . . . . 1 . . . . . . . . . . 6 . . . . . . 3 . . . . . . . . . . Insert Component 9 | . . . . . . . . . . . 1 . . . . . 2 . . . . . . . . . . . . . . . . . . . . 1 . . . . . . . . . . 2 . . . . . . 3 . . . . . . . . . . Analyze 4 | . . . . . . . . . . . . . . . . . . . . . . . . . . . . . . . . . . . . . . . . . . . . . . . . . 4 . . . . . . . . . . . . . . . . . Garrison Access Hacks 29 | . . . . . . . 1 . 1 . 1 . 1 . 1 . 1 . 1 . . . . . . . . . 2 . 1 . . . . 2 . 2 . 2 . 2 . . . 2 . . 4 . . . . . . 2 . 1 . . . 2 . . . . Unlock Access 21 | . . . . . . . 1 . 1 . 1 . 1 . 1 . 1 . 1 . . . . . . . . . 2 . . . . . . . . 2 . 2 . . . . . . . . 4 . . . . . . 1 . 1 . . . 2 . . . . Seal Access 8 | . . . . . . . . . . . . . . . . . . . . . . . . . . . . . . . 1 . . . . 2 . . . . . 2 . . . 2 . . . . . . . . . 1 . . . . . . . . . . Unauthorized Hacks 139 | . 9 . 5 . . . 3 1 1 2 3 1 3 . 2 1 1 2 4 1 2 . . . . . 6 . 5 . 9 . . . . 1 . 1 . 2 . 7 1 . . 9 1 . 6 4 9 . . . . 13 1 7 3 4 . 1 3 . 5 . Terminals 109 | . 7 . 3 . . . 2 1 1 2 2 1 2 . 2 1 1 2 4 1 . . . . . . 2 . 3 . 8 . . . . 1 . 1 . 1 . 4 1 . . 9 . . 5 4 5 . . . . 10 1 7 3 4 . . 3 . 5 . Track 35 | . 1 . . . . . . 1 . . . . . . . . . 1 1 . . . . . . . 1 . . . 5 . . . . . . . . . . 2 . . . 5 . . 2 2 2 . . . . 5 . 2 1 1 . . 1 . 2 . Assimilate 3 | . . . . . . . . . . . . . . . . . . . . . . . . . . . . . 1 . . . . . . . . . . . . . . . . . . . . . . . . . . . . 1 . 1 . . . . . . Botnet 59 | . 1 . 3 . . . 2 . 1 2 2 1 2 . 2 1 1 1 3 1 . . . . . . 1 . 2 . 3 . . . . 1 . 1 . 1 . 2 1 . . 2 . . 3 2 3 . . . . 2 1 3 2 1 . . 2 . 3 . Disrupt 7 | . . . . . . . . . . . . . . . . . . . . . . . . . . . . . . . . . . . . . . . . . . . . . . 2 . . . . . . . . . 3 . 1 . 1 . . . . . . Sabotage 2 | . 2 . . . . . . . . . . . . . . . . . . . . . . . . . . . . . . . . . . . . . . . . . . . . . . . . . . . . . . . . . . . . . . . . . Search 3 | . 3 . . . . . . . . . . . . . . . . . . . . . . . . . . . . . . . . . . . . . . . . . . . . . . . . . . . . . . . . . . . . . . . . . Fabricators 3 | . . . . . . . . . . . . . . . . . . . . . . . . . . . 1 . . . 1 . . . . . . . . . . . . . . . . . 1 . . . . . . . . . . . . . . . . . Prioritize 1 | . . . . . . . . . . . . . . . . . . . . . . . . . . . . . . . . . . . . . . . . . . . . . . . . . 1 . . . . . . . . . . . . . . . . . Liberate 2 | . . . . . . . . . . . . . . . . . . . . . . . . . . . 1 . . . 1 . . . . . . . . . . . . . . . . . . . . . . . . . . . . . . . . . . . Repair Stations . | . . . . . . . . . . . . . . . . . . . . . . . . . . . . . . . . . . . . . . . . . . . . . . . . . . . . . . . . . . . . . . . . . . . Recycling Units 25 | . 2 . 2 . . . 1 . . . 1 . 1 . . . . . . . 1 . . . . . 3 . 2 . . . . . . . . . . 1 . 3 . . . . 1 . . . 4 . . . . 3 . . . . . . . . . . Reject 7 | . . . . . . . . . . . . . . . . . . . . . . . . . . . 1 . . . . . . . . . . . . 1 . 1 . . . . . . . . 2 . . . . 2 . . . . . . . . . . Recyclers 3 | . . . . . . . . . . . . . . . . . . . . . . . . . . . . . . . . . . . . . . . . . . 1 . . . . . . . . 1 . . . . 1 . . . . . . . . . . Mask 8 | . . . . . . . . . . . . . . . . . . . . . 1 . . . . . 2 . 2 . . . . . . . . . . . . 1 . . . . 1 . . . 1 . . . . . . . . . . . . . . . Tunnel 7 | . 2 . 2 . . . 1 . . . 1 . 1 . . . . . . . . . . . . . . . . . . . . . . . . . . . . . . . . . . . . . . . . . . . . . . . . . . . . . Scanalyzers . | . . . . . . . . . . . . . . . . . . . . . . . . . . . . . . . . . . . . . . . . . . . . . . . . . . . . . . . . . . . . . . . . . . . Garrison Access 2 | . . . . . . . . . . . . . . . . . . . . . 1 . . . . . . . . . . . . . . . . . . . . . . . . . . . . . . . . . . . . . . . . 1 . . . . Broadcast 1 | . . . . . . . . . . . . . . . . . . . . . . . . . . . . . . . . . . . . . . . . . . . . . . . . . . . . . . . . . . . . . . 1 . . . . Intercept 1 | . . . . . . . . . . . . . . . . . . . . . 1 . . . . . . . . . . . . . . . . . . . . . . . . . . . . . . . . . . . . . . . . . . . . . Data Cores Recovered 14 | . . . 1 . . . . . 1 . 1 . . . . . . . 1 . . . . . . . 3 . 1 . . . . . . . . 1 . 1 . 1 . . . 1 . . 1 . . . . . . . 1 . . . . . . . . . Used 7 | . . . . . . . . . . . 1 . . . . . . . 1 . . . . . . . 2 . 1 . . . . . . . . 1 . . . . . . . . . . 1 . . . . . . . . . . . . . . . . . Hacking Detections 209 | . 5 1 7 . . . 5 1 5 4 6 1 3 4 9 3 5 2 15 1 2 . . . . . 12 . 7 3 10 . . . 1 4 . 7 2 8 3 8 1 . . 9 2 . 11 3 6 . . . . 12 1 5 2 2 1 2 3 . 5 . Full Trace Events 29 | . 3 1 . . . . 1 1 . . 1 . . 2 . 1 . . 2 . . . . . . . 3 . 1 1 3 . . . . . . . 1 2 1 1 . . . . . . 3 . . . . . . . . . . . . . . . 1 . Feedback Events 2 | . . . . . . . . . . . . . . 1 . . . . . . . . . . . . 1 . . . . . . . . . . . . . . . . . . . . . . . . . . . . . . . . . . . . . . . Corruption 2 | . . . . . . . . . . . . . . 1 . . . . . . . . . . . . 1 . . . . . . . . . . . . . . . . . . . . . . . . . . . . . . . . . . . . . . . Feedback Blocked . | . . . . . . . . . . . . . . . . . . . . . . . . . . . . . . . . . . . . . . . . . . . . . . . . . . . . . . . . . . . . . . . . . . . Robot Schematics Acquired 7 | . . . . . . . . . . . . . . . . . . . . . . . . . . . . . . . . . . 5 . . . . . . . . . . . . . . . . . . . . . . . . . . 2 . . . . . Robots Built . | . . . . . . . . . . . . . . . . . . . . . . . . . . . . . . . . . . . . . . . . . . . . . . . . . . . . . . . . . . . . . . . . . . . Authchips . | . . . . . . . . . . . . . . . . . . . . . . . . . . . . . . . . . . . . . . . . . . . . . . . . . . . . . . . . . . . . . . . . . . . Time . | . . . . . . . . . . . . . . . . . . . . . . . . . . . . . . . . . . . . . . . . . . . . . . . . . . . . . . . . . . . . . . . . . . . Total Robot Build Rating . | . . . . . . . . . . . . . . . . . . . . . . . . . . . . . . . . . . . . . . . . . . . . . . . . . . . . . . . . . . . . . . . . . . . Part Schematics Acquired 32 | . . . . . . . . . . . . . . . . . . . . . . . . . . . . . . . . . . 11 . . . . . . . . . . . . . . 2 . . . . 4 . 2 . . . . 13 . . . . . Parts Built 6 | . . . . . . . . . . . . . . . . . . . . . . . . . . . . . . . . . . . . . . . . . . . . . . . . . 6 . . . . . . . . . . . . . . . . . Authchips . | . . . . . . . . . . . . . . . . . . . . . . . . . . . . . . . . . . . . . . . . . . . . . . . . . . . . . . . . . . . . . . . . . . . Time 202 | . . . . . . . . . . . . . . . . . . . . . . . . . . . . . . . . . . . . . . . . . . . . . . . . . 202 . . . . . . . . . . . . . . . . . Total Part Build Rating 52 | . . . . . . . . . . . . . . . . . . . . . . . . . . . . . . . . . . . . . . . . . . . . . . . . . 52 . . . . . . . . . . . . . . . . . Parts Repaired 1 | . 1 . . . . . . . . . . . . . . . . . . . . . . . . . . . . . . . . . . . . . . . . . . . . . . . . . . . . . . . . . . . . . . . . . Time 26 | . 26 . . . . . . . . . . . . . . . . . . . . . . . . . . . . . . . . . . . . . . . . . . . . . . . . . . . . . . . . . . . . . . . . . Parts Recycled . | . . . . . . . . . . . . . . . . . . . . . . . . . . . . . . . . . . . . . . . . . . . . . . . . . . . . . . . . . . . . . . . . . . . Recycled Matter . | . . . . . . . . . . . . . . . . . . . . . . . . . . . . . . . . . . . . . . . . . . . . . . . . . . . . . . . . . . . . . . . . . . . Retrieved Matter . | . . . . . . . . . . . . . . . . . . . . . . . . . . . . . . . . . . . . . . . . . . . . . . . . . . . . . . . . . . . . . . . . . . . Retrieved Components 73 | . . . . . . . . . . . . . . . . . . . . . . . . . . . 11 . . . . . . . . 10 . . . 24 . . . . . . 1 . . . . . . . . 27 . . . . . . . . . . Parts Scanalyzed 2 | . . . . . . . . . . . . . . . . . . . . . . . . . . . . . . . . . . . . . . . . . . . . . . . . . 2 . . . . . . . . . . . . . . . . . Part Schematics Acquired 2 | . . . . . . . . . . . . . . . . . . . . . . . . . . . . . . . . . . . . . . . . . . . . . . . . . 2 . . . . . . . . . . . . . . . . . Parts Damaged . | . . . . . . . . . . . . . . . . . . . . . . . . . . . . . . . . . . . . . . . . . . . . . . . . . . . . . . . . . . . . . . . . . . . Bothacking | -11 -10 -10 -9 -9 -9 -8 -8 -8 -8 -8 -8 -8 -8 -8 -8 -8 -7 -7 -7 -7 -7 -7 -7 -7 -7 -6 -6 -6 -6 -6 -6 -6 -6 -6 -5 -5 -5 -5 -5 -5 -5 -5 -5 -5 -5 -5 -4 -4 -4 -4 -4 -4 -4 -4 -3 -3 -3 -3 -3 -2 -2 -1 -1 -1 -1 -1 ------------ Run | Scr Mat Min Mat Min Exi Min Mat Gar Mat Gar Mat Gar Mat Gar Mat Gar Fac Gar Fac Gar Fac Low Low Zio Dee Pro Fac Was Fac Gar Fac Low Low Dat Pro Fac Was Fac Gar Fac Gar Fac Ext Cet Arc Hub Fac Was Fac Gar Fac Upp Upp Zhi Pro Res Qua Sec Gar Res Tes Acc Gar Acc Com Ac0 Used RIF Installer . | . . . . . . . . . . . . . . . . . . . . . . . . . . . . . . . . . . . . . . . . . . . . . . . . . . . . . . . . . . . . . . . . . . . Robots Hacked 1 | . . . . . . . . . . . . . . . . . . . . . . . . . . . 1 . . . . . . . . . . . . . . . . . . . . . . . . . . . . . . . . . . . . . . . Non-combat 1 | . . . . . . . . . . . . . . . . . . . . . . . . . . . 1 . . . . . . . . . . . . . . . . . . . . . . . . . . . . . . . . . . . . . . . Combat . | . . . . . . . . . . . . . . . . . . . . . . . . . . . . . . . . . . . . . . . . . . . . . . . . . . . . . . . . . . . . . . . . . . . Robot Hacks Applied 1 | . . . . . . . . . . . . . . . . . . . . . . . . . . . 1 . . . . . . . . . . . . . . . . . . . . . . . . . . . . . . . . . . . . . . . find_chute 1 | . . . . . . . . . . . . . . . . . . . . . . . . . . . 1 . . . . . . . . . . . . . . . . . . . . . . . . . . . . . . . . . . . . . . . Relay Couplers Released 73 | . . . . . . . . 1 . 1 . 4 . 3 . 3 . 2 5 2 . . . . . . . . . 10 . . . . . . . . 7 . 8 . . . . 1 . . . 9 . . . . . 1 . . 9 1 . 1 5 . . . Machine Destruction 66 | . . . . . . . . . . 1 . 4 . 3 . 3 . 2 1 2 . . . . . . . . . 10 . . . . . . . . 7 . 8 . . . . 1 . . . 9 . . . . . . . . 9 1 . . 5 . . . Programmers 7 | . . . . . . . . 1 . . . . . . . . . . 4 . . . . . . . . . . . . . . . . . . . . . . . . . . . . . . . . . . . . 1 . . . . . 1 . . . . Fabnet Peak Effective % . | . . . . . . . . . . . . . . . . . . . . . . . . . . . . . . . . . . . . . . . . . . . . . . . . . . . . . . . . . . . . . . . . . . . Robots Rewired 50 | . . . . . . . . 3 . . . . . . . . . . . 5 . 2 . . . . . . . 4 . 2 2 . 11 . . . . . 5 . 6 . . . . . . 3 1 2 2 . . . . . . . . . 2 . . . Allies Hacked 5 | . . . . . . . . . . . . . . . . . . . . . . . . . . . . . . . . . . . . . . . . . . . 2 . . . . . . . 1 . . . . . . . . . . . . 2 . . Hacks Repelled . | . . . . . . . . . . . . . . . . . . . . . . . . . . . . . . . . . . . . . . . . . . . . . . . . . . . . . . . . . . . . . . . . . . . Allies | -11 -10 -10 -9 -9 -9 -8 -8 -8 -8 -8 -8 -8 -8 -8 -8 -8 -7 -7 -7 -7 -7 -7 -7 -7 -7 -6 -6 -6 -6 -6 -6 -6 -6 -6 -5 -5 -5 -5 -5 -5 -5 -5 -5 -5 -5 -5 -4 -4 -4 -4 -4 -4 -4 -4 -3 -3 -3 -3 -3 -2 -2 -1 -1 -1 -1 -1 -------- Run | Scr Mat Min Mat Min Exi Min Mat Gar Mat Gar Mat Gar Mat Gar Mat Gar Fac Gar Fac Gar Fac Low Low Zio Dee Pro Fac Was Fac Gar Fac Low Low Dat Pro Fac Was Fac Gar Fac Gar Fac Ext Cet Arc Hub Fac Was Fac Gar Fac Upp Upp Zhi Pro Res Qua Sec Gar Res Tes Acc Gar Acc Com Ac0 Total Allies 116 | . . . . 1 . . . 3 . . . . . 1 . . . . . 7 3 2 . . . . . 1 1 4 . 2 2 . 12 . 1 . 2 . 6 . 10 . . . . . 3 7 1 2 2 . . 3 . 1 2 1 . . 4 . 32 . Largest Group 17 | . . . . 1 . . . 3 3 . . . . 1 1 . . . . 3 6 2 2 2 2 . . 1 1 4 4 6 8 8 17 17 1 1 2 2 5 3 10 7 4 . . . 3 7 7 2 4 3 3 3 . 1 2 1 . . 4 4 15 . Highest-Rated Group 875 | . . . . 31 . . . 48 48 . . . . 31 31 . . . . 157 141 32 32 32 32 . . 31 31 179 179 241 299 299 560 560 31 26 142 142 184 184 412 203 132 . . . 138 442 442 77 175 145 145 138 . 45 80 26 . . 398 398 875 . Highest-Rated Ally 234 | . . . . 31 . . . 16 16 . . . . 31 31 . . . . 95 31 16 16 16 16 . . 31 31 51 51 51 51 51 96 68 31 26 80 80 119 119 159 39 39 . . . 46 95 95 47 49 49 49 46 . 45 51 26 . . 119 119 234 . Total Orders 47 | . . . . . . . . 1 . . . . . . . . . . . . 1 . . 1 2 . . . 4 6 4 2 4 1 6 1 . . . . 1 . 2 2 1 . . . . 1 1 . . 1 . . . . . . . . . 5 . . STAY 35 | . . . . . . . . 1 . . . . . . . . . . . . 1 . . 1 2 . . . 3 5 2 1 3 1 4 1 . . . . 1 . 1 1 1 . . . . 1 1 . . 1 . . . . . . . . . 3 . . FOLLOW 12 | . . . . . . . . . . . . . . . . . . . . . . . . . . . . . 1 1 2 1 1 . 2 . . . . . . . 1 1 . . . . . . . . . . . . . . . . . . . 2 . . Ally Attacks 602 | . . . . . . . . . 29 . . . . 5 1 . . . . 44 57 . 1 . 2 . . . 6 1 1 . 2 . 46 20 7 7 1 25 9 11 66 23 21 . . . 12 5 17 . 3 . . . . . . . . . . 60 120 . Total Damage 19339 | . . . . . . . . . 407 . . . . 65 20 . . . . 1423 761 . . . . . . . 21 13 . . 101 . 1247 639 146 102 71 704 126 329 1938 321 238 . . . 203 241 523 . 79 . . . . . . . . . . 2456 7165 . Kills 101 | . . . . . . . . . 4 . . . . . 1 . . . . 17 4 . . . . . . . . . . . . . 8 3 . . . 6 2 3 14 2 2 . . . . 1 . . 1 . . . . . . . . . . 10 23 . Allies Corrupted 5 | . . . . . . . . . . . . . . . . . . . . . . . . . . . . . . . . . . . . . . . . . . 2 1 . . . . . . . . . . . . . . . . . . . . . 2 . Allies Melted . | . . . . . . . . . . . . . . . . . . . . . . . . . . . . . . . . . . . . . . . . . . . . . . . . . . . . . . . . . . . . . . . . . . . Intel | -11 -10 -10 -9 -9 -9 -8 -8 -8 -8 -8 -8 -8 -8 -8 -8 -8 -7 -7 -7 -7 -7 -7 -7 -7 -7 -6 -6 -6 -6 -6 -6 -6 -6 -6 -5 -5 -5 -5 -5 -5 -5 -5 -5 -5 -5 -5 -4 -4 -4 -4 -4 -4 -4 -4 -3 -3 -3 -3 -3 -2 -2 -1 -1 -1 -1 -1 ------- Run | Scr Mat Min Mat Min Exi Min Mat Gar Mat Gar Mat Gar Mat Gar Mat Gar Fac Gar Fac Gar Fac Low Low Zio Dee Pro Fac Was Fac Gar Fac Low Low Dat Pro Fac Was Fac Gar Fac Gar Fac Ext Cet Arc Hub Fac Was Fac Gar Fac Upp Upp Zhi Pro Res Qua Sec Gar Res Tes Acc Gar Acc Com Ac0 Robot Analysis Total 9 | . 1 1 1 . . . 1 . . . . . . . . . . . . . . . . . . . . . . . . . . . . . . . . . . . . . . . . . . . . . . 4 . 1 . . . . . . . . . . Derelict Logs Recovered 16 | . . 1 . 2 . . . . . . . . . . . . . . . . . 2 2 . . 1 . . . . . 2 1 . 2 . . . . . . . . . . . . . . . . 2 1 . . . . . . . . . . . . . Drone Launches . | . . . . . . . . . . . . . . . . . . . . . . . . . . . . . . . . . . . . . . . . . . . . . . . . . . . . . . . . . . . . . . . . . . . Drone Recoveries . | . . . . . . . . . . . . . . . . . . . . . . . . . . . . . . . . . . . . . . . . . . . . . . . . . . . . . . . . . . . . . . . . . . . Exploration | -11 -10 -10 -9 -9 -9 -8 -8 -8 -8 -8 -8 -8 -8 -8 -8 -8 -7 -7 -7 -7 -7 -7 -7 -7 -7 -6 -6 -6 -6 -6 -6 -6 -6 -6 -5 -5 -5 -5 -5 -5 -5 -5 -5 -5 -5 -5 -4 -4 -4 -4 -4 -4 -4 -4 -3 -3 -3 -3 -3 -2 -2 -1 -1 -1 -1 -1 ------------- Run | Scr Mat Min Mat Min Exi Min Mat Gar Mat Gar Mat Gar Mat Gar Mat Gar Fac Gar Fac Gar Fac Low Low Zio Dee Pro Fac Was Fac Gar Fac Low Low Dat Pro Fac Was Fac Gar Fac Gar Fac Ext Cet Arc Hub Fac Was Fac Gar Fac Upp Upp Zhi Pro Res Qua Sec Gar Res Tes Acc Gar Acc Com Ac0 Turns Passed 83234 | 19 3520 1439 3489 991 2876 1256 1420 1221 727 1366 997 1252 297 1212 692 1224 691 1284 2542 1215 1661 518 370 867 532 367 2209 106 772 1213 1883 512 608 22 1786 255 1899 2216 1227 1236 749 1932 1264 943 919 1309 43 97 1770 992 1556 363 596 45 621 2220 1112 1473 706 1513 1719 1131 1216 2744 5117 1095 Spaces Moved 97505 | 11 1856 860 1800 604 1466 609 712 479 401 718 699 660 410 802 1075 730 1136 681 2654 803 2174 1010 775 1336 854 727 3126 192 1418 1070 3645 1254 1286 83 1248 584 233 2416 967 1964 1007 4089 1371 978 389 2012 185 133 3574 1320 3552 900 776 175 809 5472 1437 2293 1222 1781 1540 592 1292 4084 7965 3029 Core 136 | . . . . . . 113 . . . . . . 1 . . . . . . . . . . . . . . . . . . . . . . . . . . . . . . . . . . . . . . . . . . . . . . . . . . . 22 . Treads 9915 | . 1532 860 1800 604 1466 496 712 479 401 718 499 . . . . . . . . . . . . . . . . . . . . . . . . . . . . . . . . . . . . . . . . . . . . . . . . . . . . . 348 . Legs 335 | 11 324 . . . . . . . . . . . . . . . . . . . . . . . . . . . . . . . . . . . . . . . . . . . . . . . . . . . . . . . . . . . . . . . . . Wheels . | . . . . . . . . . . . . . . . . . . . . . . . . . . . . . . . . . . . . . . . . . . . . . . . . . . . . . . . . . . . . . . . . . . . Hover 87119 | . . . . . . . . . . . 200 660 409 802 1075 730 1136 681 2654 803 2174 1010 775 1336 854 727 3126 192 1418 1070 3645 1254 1286 83 1248 584 233 2416 967 1964 1007 4089 1371 978 389 2012 185 133 3574 1320 3552 900 776 175 809 5472 1437 2293 1222 1781 1540 592 1292 4084 7595 3029 Flight . | . . . . . . . . . . . . . . . . . . . . . . . . . . . . . . . . . . . . . . . . . . . . . . . . . . . . . . . . . . . . . . . . . . . Fastest Speed 17 | 120 120 152 152 152 152 50 150 150 150 150 38 38 38 38 38 38 38 38 38 38 38 38 38 38 20 38 20 20 20 20 20 20 20 20 20 20 20 20 20 20 20 20 20 20 20 17 20 20 20 20 20 20 20 20 20 20 20 20 20 20 20 20 20 20 20 20 Average Speed 37 | 120 153 154 152 152 160 146 153 150 150 150 115 38 38 38 38 38 38 38 38 38 38 38 38 38 37 38 22 20 20 20 23 20 20 20 20 20 20 20 21 20 21 20 20 20 20 20 20 20 20 37 21 20 20 20 20 20 20 20 20 21 20 20 20 20 27 20 Slowest Speed 330 | 120 160 160 152 152 232 250 155 150 150 150 162 98 250 38 102 38 38 38 42 38 38 38 38 38 102 38 38 20 96 40 40 20 20 20 20 20 20 20 35 35 83 35 38 20 38 22 20 20 89 40 40 20 20 20 20 20 20 122 20 330 126 20 20 122 325 20 Overloaded Moves 1 | . . . . . . . . . . . . . . . . . . . . . . . . . . . . . . . . . . . . . . . . . . . . . . 1 . . . . . . . . . . . . . . . . . . . . Propulsion Burnouts . | . . . . . . . . . . . . . . . . . . . . . . . . . . . . . . . . . . . . . . . . . . . . . . . . . . . . . . . . . . . . . . . . . . . Robots Hopped . | . . . . . . . . . . . . . . . . . . . . . . . . . . . . . . . . . . . . . . . . . . . . . . . . . . . . . . . . . . . . . . . . . . . Cave-ins Triggered . | . . . . . . . . . . . . . . . . . . . . . . . . . . . . . . . . . . . . . . . . . . . . . . . . . . . . . . . . . . . . . . . . . . . Teleports 3 | . . . . . . . . . . . . . . . . . . . . . . . . . . . . . . . . . . . . . . . . . . . . . . . . . . . . . . . . . . 1 . . . . . . 1 1 Exploration Rate (%) 72 | 2 99 99 97 98 90 96 61 57 47 77 55 64 38 91 88 75 23 70 67 81 35 96 84 87 79 94 59 96 38 77 63 97 97 72 91 16 87 54 76 30 84 56 67 65 93 84 7 94 65 93 54 94 95 62 91 92 85 73 94 49 96 13 95 75 94 94 Regions Visited 66 Branch Regions 26 Pre-discovered Areas 20 | . 2 . 2 . 1 . 1 . . . 1 . 1 . . . . . . . . 1 1 2 . . . . . . . . . 1 1 . . . . . . . . . . . . . . . . 2 1 3 . . . . . . . . . . . . Known Exits Taken 26 | . . . 1 . 1 . 1 . 1 . 1 . 1 . 1 . 1 . 1 . 1 . 1 . . . . . 1 . 1 . 1 . 1 . . 1 . 1 . 1 . . . 1 . . 1 . 1 . . . 1 1 . 1 . 1 . 1 . . . . Unknown Exits Taken 21 | 1 1 1 . 1 . 1 . . . . . . . . . . . . . . . 1 . 1 1 1 . . . . . 1 . 1 . . . . . . . . 1 1 1 . . . . . . 1 1 1 . . 1 . . . 1 . . 1 1 . Scrap Searched 31 | . . 1 . 2 . 1 . . . . . . . . . . . . . . . 4 3 3 . 2 . . . . . 4 2 . 1 . . . . . . . . . . . . . . . . 3 3 . 2 . . . . . . . . . . . Spaces Dug 635 | . 8 . . . . 6 5 5 . . . 10 . 2 18 1 1 2 13 1 3 . . 3 1 . 34 . . 3 2 . 5 . 2 . . 26 14 4 1 42 57 . . 22 . . 2 . 3 . . . . 8 35 37 . 36 . 25 1 99 94 4 Terrain Destroyed 6020 | . 235 . 54 26 31 33 84 16 26 76 37 111 21 108 82 18 46 14 158 15 75 5 4 6 6 4 94 3 59 29 163 11 10 . 28 11 2 44 28 21 20 435 196 19 200 533 . 3 130 135 106 4 17 . . 58 314 80 151 116 118 64 169 430 893 35 Melee 3 | . . . . . . . . . . . . . . . . . . . . . . . . 3 . . . . . . . . . . . . . . . . . . . . . . . . . . . . . . . . . . . . . . . . . . Projectile 1145 | . . . . . 6 31 32 13 25 16 15 8 19 27 49 15 . 8 18 11 15 3 3 2 . 3 23 3 8 21 15 7 6 . 24 9 2 4 27 19 17 98 28 16 22 96 . 3 25 28 17 2 9 . . 16 19 8 19 13 27 7 19 49 88 32 AOE 4288 | . 235 . 54 26 25 . 49 . . 56 21 99 . 70 29 . 43 . 127 . 49 . . . . . 52 . 49 . 132 . . . . . . 35 . . . 330 166 . 177 426 . . 86 95 66 . . . . . 279 65 121 66 59 11 138 298 754 . Terrain Rammed . | . . . . . . . . . . . . . . . . . . . . . . . . . . . . . . . . . . . . . . . . . . . . . . . . . . . . . . . . . . . . . . . . . . . Walls Destroyed . | . . . . . . . . . . . . . . . . . . . . . . . . . . . . . . . . . . . . . . . . . . . . . . . . . . . . . . . . . . . . . . . . . . . Machines Disabled . | . . . . . . . . . . . . . . . . . . . . . . . . . . . . . . . . . . . . . . . . . . . . . . . . . . . . . . . . . . . . . . . . . . . Actions | -11 -10 -10 -9 -9 -9 -8 -8 -8 -8 -8 -8 -8 -8 -8 -8 -8 -7 -7 -7 -7 -7 -7 -7 -7 -7 -6 -6 -6 -6 -6 -6 -6 -6 -6 -5 -5 -5 -5 -5 -5 -5 -5 -5 -5 -5 -5 -4 -4 -4 -4 -4 -4 -4 -4 -3 -3 -3 -3 -3 -2 -2 -1 -1 -1 -1 -1 --------- Run | Scr Mat Min Mat Min Exi Min Mat Gar Mat Gar Mat Gar Mat Gar Mat Gar Fac Gar Fac Gar Fac Low Low Zio Dee Pro Fac Was Fac Gar Fac Low Low Dat Pro Fac Was Fac Gar Fac Gar Fac Ext Cet Arc Hub Fac Was Fac Gar Fac Upp Upp Zhi Pro Res Qua Sec Gar Res Tes Acc Gar Acc Com Ac0 Total 134038 | 15 2331 938 2335 645 1869 897 931 918 472 933 825 1578 489 1602 1279 1600 1302 1604 3955 1637 2672 1117 826 1564 1025 796 4373 244 1831 1945 4315 1466 1603 87 2699 678 2058 3978 1908 2706 1467 4871 2118 1512 1132 2639 190 187 4357 1680 4035 1060 1178 184 1259 6245 2030 2968 1545 2560 2653 1288 2107 5364 9967 3396 Wait 23889 | . 256 34 354 3 219 123 78 343 10 110 28 744 22 636 118 651 51 760 1040 604 158 77 25 86 58 37 941 36 304 708 260 141 261 5 1207 43 1797 1321 775 599 284 385 425 294 599 246 2 32 472 205 177 128 343 . 440 424 345 307 43 409 747 390 660 592 905 12 Move 97428 | 10 1855 859 1799 603 1465 608 712 478 401 716 699 658 409 801 1075 729 1135 678 2653 802 2173 1009 774 1335 853 726 3124 191 1417 1069 3644 1253 1285 82 1247 583 232 2414 965 1962 1006 4087 1370 977 388 2010 185 132 3572 1319 3551 899 775 174 808 5471 1435 2292 1221 1779 1539 591 1290 4082 7964 3028 Hop . | . . . . . . . . . . . . . . . . . . . . . . . . . . . . . . . . . . . . . . . . . . . . . . . . . . . . . . . . . . . . . . . . . . . Pick Up 130 | . 6 2 1 . 24 6 2 2 1 4 5 . . . . 1 8 2 3 . . . . 1 3 . 4 1 3 . 1 1 . . 1 . . 4 . 2 . . . 1 . . . . 2 2 . . . 1 . 5 1 2 . 1 2 1 . 2 5 17 Fast Attach 322 | 3 11 . 2 2 15 11 1 1 . . 3 . 4 . 5 . 2 1 11 4 3 . . 4 15 . 10 . 9 . 3 . 2 . . 3 . 6 . 11 7 9 1 1 . 7 1 . 29 . 8 . . 4 . 4 8 15 . 5 11 . . 9 58 3 Attach 40 | . . . . . 6 6 . . . 2 3 1 . . . . 3 1 . . . . . . 1 . 2 . 1 . . . . . . . . 1 . 1 . . . 1 . . . . 1 . . . . 1 . . 1 3 . . . . . . 2 3 Detach 40 | . . . . . 4 7 . . . . 2 1 . . . . 1 2 . . . . . . 1 . 3 . 3 . . . . . . . . . . . 1 2 . . . . . . 3 . . . . 1 . . . 2 . 2 . . . . 5 . Swap 320 | . 12 2 7 2 2 . . . . 2 1 2 . 4 2 . 1 . 4 . 4 2 . 3 5 1 11 2 3 8 18 . . . . . . 12 4 . 4 15 10 5 20 6 . 2 9 3 6 . . . 2 2 17 4 . 7 22 10 2 18 20 22 Drop 361 | 1 12 3 4 2 37 17 3 1 1 3 8 . . . 1 1 10 1 14 4 2 . . 5 17 . 11 1 9 . 3 1 1 . 1 1 . 8 . 12 6 9 . 1 . . 1 . 28 2 . . . 3 . 9 5 9 . 2 9 1 . 6 59 16 Fire 7992 | 1 129 21 119 13 59 77 86 53 40 58 52 65 45 84 58 62 79 81 190 60 267 20 19 108 42 17 224 13 69 103 299 47 38 . 81 41 25 159 74 95 67 293 217 195 93 258 1 13 194 105 232 16 28 . 5 276 178 250 102 254 211 251 104 468 789 219 Melee 5 | . . . . . . . . . . . . . . . . . . . . . . . . 5 . . . . . . . . . . . . . . . . . . . . . . . . . . . . . . . . . . . . . . . . . . Ram 1 | . . . . . . . . . . . . . . . 1 . . . . . . . . . . . . . . . . . . . . . . . . . . . . . . . . . . . . . . . . . . . . . . . . . . . Kick 1 | . 1 . . . . . . . . . . . . . . . . . . . . . . . . . . . . . . . . . . . . . . . . . . . . . . . . . . . . . . . . . . . . . . . . . Crush 87 | . 9 2 7 10 30 9 4 . 11 . 5 . . . . . . . . . . . . . . . . . . . . . . . . . . . . . . . . . . . . . . . . . . . . . . . . . . . . . . . Escape Stasis 1007 | . . . . . . . . 1 . . . 91 . 52 . 130 . 52 13 117 . . . . . . 11 . . 20 43 . . . . 1 . 17 71 7 51 25 14 . . 4 . . 14 9 . . . . . . 1 25 156 1 28 . 14 39 . . Rewire 352 | . . . . . . . . 13 . . . . . . . . . . . 28 . 6 3 . . . . . . 16 . 17 11 . 140 . . . . . 21 . 36 . . . . . . 12 3 13 22 . . . . . . . . . 10 . 1 . Trap . | . . . . . . . . . . . . . . . . . . . . . . . . . . . . . . . . . . . . . . . . . . . . . . . . . . . . . . . . . . . . . . . . . . . Miscellaneous 2063 | . 40 15 42 10 8 33 45 26 8 38 19 16 9 25 19 26 12 26 27 18 65 3 5 17 30 15 32 . 13 21 44 6 5 . 22 6 4 36 19 17 20 46 45 37 32 108 . 8 33 23 58 4 10 . 4 54 39 59 23 100 84 44 27 148 159 76 Route ------- -11/Scrapyard -10/Materials (discovered 5 exits: *Mat x3 / *Min x2) -10/Mines (discovered 2 exits: *Mat x2) -9/Materials (discovered 4 exits: *Mat x3 / *Min) -9/Mines (discovered 4 exits: *Mat x2 / *Exi / *Zio) -9/Exiles (discovered 2 exits: *Min x2) -8/Mines -8/Materials (discovered 3 exits: *Fac / *Sto / Gar) -8/Garrison (discovered 4 exits: *Fac x3 / *Mat) -8/Materials (discovered 2 exits: *Sto / Gar) -8/Garrison (discovered 3 exits: *Mat x3) -8/Materials (discovered 2 exits: *Fac / Gar) -8/Garrison (discovered 3 exits: *Mat x3) -8/Materials (discovered 2 exits: *Fac / Gar) -8/Garrison (discovered 3 exits: *Mat x3) -8/Materials (discovered 5 exits: *Fac x3 / *Sto / Gar) -8/Garrison (discovered 3 exits: *Fac x3) -7/Factory (discovered 3 exits: *Low x2 / Gar) -7/Garrison (discovered 3 exits: *Fac x3) -7/Factory (discovered 5 exits: *Fac x2 / *Low x2 / Gar) -7/Garrison (discovered 4 exits: *Fac x4) -7/Factory -7/Lower Caves -7/Lower Caves (discovered 2 exits: *Fac / *Zio) -7/Zion (discovered 2 exits: [*Dee] / [*Pro]) -7/Deep Caves -6/Proximity Caves -6/Factory (discovered 2 exits: *Fac x2) -6/Waste -6/Factory (discovered 5 exits: *Fac x2 / *Low / Gar / Gar) -6/Garrison (discovered 3 exits: *Fac x3) -6/Factory (discovered 5 exits: *Fac x3 / *Low x2) -6/Lower Caves -6/Lower Caves (discovered 2 exits: *Fac / *Dat) -6/Data Miner -5/Proximity Caves -5/Factory (discovered 3 exits: *Fac / Upp / Ext) -5/Waste -5/Factory (discovered 6 exits: *Fac / *Upp x2 / *Ext / Gar / Gar) -5/Garrison (discovered 3 exits: *Fac x3) -5/Factory (discovered 6 exits: *Fac / *Upp x2 / Ext x2 / Gar) -5/Garrison (discovered 3 exits: *Fac x3) -5/Factory (discovered 8 exits: *Fac x4 / Upp x2 / *Ext x2) -5/Extension (discovered 2 exits: *Fac / [*Cet]) -5/Cetus (discovered 3 exits: *Fac x2 / [*Arc]) -5/Archives (discovered 3 exits: *Fac / *Hub x2) -5/Hub_04(d) (discovered 4 exits: *Fac x4) -4/Factory -4/Waste -4/Factory (discovered 9 exits: *Res x4 / *Upp / Gar / Gar / Gar / Gar) -4/Garrison (discovered 3 exits: *Fac x3) -4/Factory (discovered 6 exits: *Res x4 / *Upp x2) -4/Upper Caves -4/Upper Caves (discovered 2 exits: *Res / *Zhi) -4/Zhirov -3/Proximity Caves -3/Research (discovered 6 exits: *Res x3 / *Arm / *Qua x2) -3/Quarantine (discovered 2 exits: *Res / *Sec) -3/Section 7 (discovered 2 exits: *Res / Gar) -3/Garrison (discovered 3 exits: *Res x3) -2/Research (discovered 3 exits: *Acc x2 / *Tes) -2/Testing -1/Access (discovered 2 exits: Gar / Gar) -1/Garrison (discovered 3 exits: [*Acc x3]) -1/Access (discovered 2 exits: [*Sur] / *Com) -1/Command (discovered 3 exits: [*Sur x2] / *Ac0) -1/Access_0 Near Former Tau Ceti IV History --------- Turn | Location | Event 1 | -11/Scrapyard | Discovered new exit (range 1) 4 | -11/Scrapyard | Upgraded with Propulsion slot (x1) 4 | -11/Scrapyard | Upgraded with Utility slot (x1) 4 | -11/Scrapyard | Upgraded with Weapon slot (x1) 20 | -11/Scrapyard | Entered Materials 263 | -10/Materials | Discovered new exit (range 16) 304 | -10/Materials | Build established: Mutant 327 | -10/Materials | Discovered new exit (range 12) 500 | -10/Materials | Reached level 2 523 | -10/Materials | Discovered new exit (range 7) 1059 | -10/Materials | Discovered new exit (range 15) 1317 | -10/Materials | Reached level 3 1495 | -10/Materials | Discovered new exit (range 8) 1527 | -10/Materials | Upgraded with Weapon slot (x1) 1530 | -10/Materials | Upgraded with Weapon slot (x1) 1840 | -10/Materials | Build established: Gunner 2620 | -10/Materials | Reached level 4 2910 | -10/Materials | Build established: Mutant 2952 | -10/Materials | Repaired Lgt. Armor Plating 3145 | -10/Materials | Reached level 5 3540 | -10/Materials | Entered Mines 3575 | -10/Mines | Received a Rocket Launcher from a helpful Derelict 3771 | -10/Mines | Build established: Gunner 3937 | -10/Mines | Discovered new exit (range 7) 3954 | -10/Mines | Met a Derelict who couldn't figure out how to use a Trap Extractor 4092 | -10/Mines | Met a Derelict shopkeep closing up shop 4307 | -10/Mines | Reached level 6 4392 | -10/Mines | Discovered new exit (range 6) 4979 | -10/Mines | Entered Materials 4980 | -9/Materials | Identified exit to Mines 4981 | -9/Materials | Reached level 7 5199 | -9/Materials | Reached level 8 5338 | -9/Materials | Discovered new exit (range 12) 6322 | -9/Materials | Discovered new exit (range 4) 6579 | -9/Materials | First assault squad dispatched 6619 | -9/Materials | Reached level 9 6625 | -9/Materials | Upgraded with Utility slot (x1) 6811 | -9/Materials | Discovered new exit (range 13) 6914 | -9/Materials | Build established: Tank 8234 | -9/Materials | Reached level 10 8266 | -9/Materials | Sterilization system engaged 8266 | -9/Materials | Non-combat units ordered to evacuate 8266 | -9/Materials | Destroyed 9 combat bots 8366 | -9/Materials | Combat units ordered to evacuate 8468 | -9/Materials | Entered Mines 8480 | -9/Mines | Met a Derelict bent on vengeance 8552 | -9/Mines | Discovered new exit (range 5) 8596 | -9/Mines | Learned Materials security intel 8718 | -9/Mines | Found a hidden stash of uninstalled traps 8788 | -9/Mines | Found a damaged Exp. Sensor Array with a note attached 8834 | -9/Mines | Discovered new exit (range 9) 8876 | -9/Mines | Received a Mining Laser from a helpful Derelict 8970 | -9/Mines | Found the Drone Emporium 8977 | -9/Mines | Found Prototype Device 8977 | -9/Mines | Identified Splice Drone Bay 9021 | -9/Mines | A Derelict revealed a hidden shortcut to a safe place 9453 | -9/Mines | Deemed a non-threat by the Exiles lab entrance 9453 | -9/Mines | Discovered new exit (range 5) 9459 | -9/Mines | Entered Exiles 9460 | -9/Exiles | Identified exit to Mines 9481 | -9/Exiles | Discovered exit to Mines (range 17) 9503 | -9/Exiles | Met 8R-AWN 9524 | -9/Exiles | Met EX-HEX 9568 | -9/Exiles | Met EX-BIN 9629 | -9/Exiles | Met EX-DEC 9639 | -9/Exiles | Learned location of Zion (-7) 9773 | -9/Exiles | Build established: Mutant 10574 | -9/Exiles | Aligned with FarCom system 10576 | -9/Exiles | Given EX-Vault access code 10615 | -9/Exiles | Opened EX-Vault 10626 | -9/Exiles | Found Cloak of Protection 10660 | -9/Exiles | Warned to stay clear of 0b10 Research branches 10928 | -9/Exiles | Attacked by the Exiles 11038 | -9/Exiles | Build established: Gunner 11054 | -9/Exiles | Core integrity fell below 50% 11119 | -9/Exiles | Core integrity fell below 20% 11132 | -9/Exiles | Destroyed 8R-AWN 11142 | -9/Exiles | Found Prototype Ballistic Gun 11142 | -9/Exiles | Identified 8R-AWN's Boregun 11145 | -9/Exiles | Found 8R-AWN's Boregun 11181 | -9/Exiles | Found Prototype Protection 11181 | -9/Exiles | Identified 8R-AWN's Armor/EX 11329 | -9/Exiles | Destroyed EX-HEX 11405 | -9/Exiles | Destroyed EX-BIN 11445 | -9/Exiles | Destroyed EX-DEC 11449 | -9/Exiles | Build established: Scavenger-Mutant 11478 | -9/Exiles | Found Prototype Device 11479 | -9/Exiles | Identified System Purifier 11644 | -9/Exiles | Found Prototype Processor 11645 | -9/Exiles | Identified Exp. Core Analyzer 11666 | -9/Exiles | Upgraded with Utility slot (x1) 11820 | -9/Exiles | Build established: Scavenger-Gunner 11908 | -9/Exiles | Upgraded with Propulsion slot (x1) 12056 | -9/Exiles | Upgraded with Utility slot (x1) 12172 | -9/Exiles | Build established: Scavenger-Mutant 12283 | -9/Exiles | Found Prototype Processor 12335 | -9/Exiles | Entered Mines 12337 | -8/Mines | Reached level 11 12399 | -8/Mines | 1C-UTU came to Exiles' defense 12422 | -8/Mines | Discovered new exit (range 7) 12669 | -8/Mines | Destroyed 1C-UTU 12679 | -8/Mines | Found Prototype Protection 12679 | -8/Mines | Identified 1C-UTU's Buckler 12682 | -8/Mines | Found Prototype Device 12682 | -8/Mines | Identified Exp. Actuator Array 12691 | -8/Mines | Found Prototype Device 12691 | -8/Mines | Identified Femtoactuators 13591 | -8/Mines | Entered Materials 13592 | -8/Materials | Identified exit to Factory 13593 | -8/Materials | Reached level 12 13593 | -8/Materials | Identified exit to Storage 14054 | -8/Materials | Reached level 13 14105 | -8/Materials | Destroyed 10 combat bots 14791 | -8/Materials | First assault squad dispatched 15011 | -8/Materials | Identified exit to Garrison 15011 | -8/Materials | Entered Garrison 15056 | -8/Garrison | Triggered checkpoint 15148 | -8/Garrison | Triggered checkpoint 15252 | -8/Garrison | Discovered exit to Factory (range 11) 15288 | -8/Garrison | Discovered exit to Factory (range 60) 15288 | -8/Garrison | Discovered exit to Factory (range 85) 15288 | -8/Garrison | Discovered exit to Factory (range 14) 15288 | -8/Garrison | Discovered new exit (range 35) 15288 | -8/Garrison | Reached level 14 15339 | -8/Garrison | Triggered checkpoint 15462 | -8/Garrison | Triggered checkpoint 15675 | -8/Garrison | Upgraded with Utility slot (x1) 15788 | -8/Garrison | Triggered checkpoint 15826 | -8/Garrison | Triggered checkpoint 16232 | -8/Garrison | Entered Materials 16232 | -8/Materials | Accompanied by 3 allies 16933 | -8/Materials | Discovered exit to Storage (range 8) 16959 | -8/Materials | Identified exit to Garrison 16959 | -8/Materials | Entered Garrison 17009 | -8/Garrison | Spotted B-75 Beast 17032 | -8/Garrison | Triggered checkpoint 17045 | -8/Garrison | Destroyed 7 combat bots 17065 | -8/Garrison | Destroyed B-75 Beast 17096 | -8/Garrison | Identified Exp. Targeting Computer 17137 | -8/Garrison | Garrison Relay disabled 17137 | -8/Garrison | Reached level 15 17210 | -8/Garrison | Core integrity fell below 50% 17302 | -8/Garrison | Triggered checkpoint 17375 | -8/Garrison | Triggered checkpoint 17573 | -8/Garrison | Discovered new exit (range 13) 17646 | -8/Garrison | Upgraded with Utility slot (x1) 17680 | -8/Garrison | Triggered checkpoint 17772 | -8/Garrison | Triggered checkpoint 17857 | -8/Garrison | Discovered new exit (range 4) 17923 | -8/Garrison | Discovered new exit (range 20) 17923 | -8/Garrison | Discovered new exit (range 57) 17923 | -8/Garrison | Discovered new exit (range 66) 17937 | -8/Garrison | Phase Generator disabled 18030 | -8/Garrison | Triggered checkpoint 18032 | -8/Garrison | Spotted B-75 Beast 18032 | -8/Garrison | Spotted B-75 Beast 18059 | -8/Garrison | Learned Materials security intel 18174 | -8/Garrison | Attempted to access garrison exit controls, blocked by remote lockdown 18325 | -8/Garrison | Entered Materials 18610 | -8/Materials | Discovered exit to Factory (range 7) 19226 | -8/Materials | Upgraded with Propulsion slot (x1) 19322 | -8/Materials | Identified exit to Garrison 19322 | -8/Materials | Entered Garrison 19328 | -8/Garrison | Discovered new exit (range 65) 19328 | -8/Garrison | Discovered new exit (range 103) 19328 | -8/Garrison | Discovered new exit (range 45) 19336 | -8/Garrison | Triggered checkpoint 19451 | -8/Garrison | Triggered checkpoint 19488 | -8/Garrison | Triggered checkpoint 19538 | -8/Garrison | Destroyed 7 combat bots 19614 | -8/Garrison | Triggered checkpoint 19640 | -8/Garrison | Garrison Relay disabled 19660 | -8/Garrison | Triggered checkpoint 19690 | -8/Garrison | Triggered checkpoint 19734 | -8/Garrison | Phase Generator disabled 19819 | -8/Garrison | Triggered checkpoint 19823 | -8/Garrison | Reached level 16 20541 | -8/Garrison | Attempted to access garrison exit controls, blocked by remote lockdown 20574 | -8/Garrison | Entered Materials 20688 | -8/Materials | Discovered exit to Factory (range 19) 20864 | -8/Materials | Identified exit to Garrison 20871 | -8/Materials | Entered Garrison 20886 | -8/Garrison | Triggered checkpoint 20958 | -8/Garrison | Triggered checkpoint 20971 | -8/Garrison | Triggered checkpoint 21028 | -8/Garrison | Destroyed 8 combat bots 21118 | -8/Garrison | Triggered checkpoint 21177 | -8/Garrison | Garrison Relay disabled 21207 | -8/Garrison | Discovered new exit (range 9) 21234 | -8/Garrison | Triggered checkpoint 21255 | -8/Garrison | Learned Materials security intel 21271 | -8/Garrison | Phase Generator disabled 21276 | -8/Garrison | Discovered new exit (range 12) 21381 | -8/Garrison | Rescued a captive Derelict 21389 | -8/Garrison | Triggered checkpoint 21456 | -8/Garrison | Discovered new exit (range 10) 21462 | -8/Garrison | Spotted B-75 Beast 22083 | -8/Garrison | Entered Materials 22083 | -8/Materials | Accompanied by 1 ally 22173 | -8/Materials | Discovered exit to Factory (range 9) 22441 | -8/Materials | Discovered exit to Factory (range 19) 22534 | -8/Materials | Discovered exit to Factory (range 5) 22563 | -8/Materials | Discovered exit to Storage (range 19) 22775 | -8/Materials | Identified exit to Garrison 22775 | -8/Materials | Entered Garrison 22802 | -8/Garrison | Triggered checkpoint 22855 | -8/Garrison | Garrison Relay disabled 22874 | -8/Garrison | Triggered checkpoint 22905 | -8/Garrison | Triggered checkpoint 22920 | -8/Garrison | Triggered checkpoint 22965 | -8/Garrison | Destroyed 12 combat bots 22979 | -8/Garrison | Discovered exit to Factory (range 12) 22992 | -8/Garrison | Triggered checkpoint 23001 | -8/Garrison | Garrison Relay disabled 23048 | -8/Garrison | Discovered exit to Factory (range 11) 23141 | -8/Garrison | Discovered exit to Factory (range 12) 23150 | -8/Garrison | Reached level 17 23158 | -8/Garrison | Triggered checkpoint 23334 | -8/Garrison | Triggered checkpoint 23999 | -8/Garrison | Entered Factory 24184 | -7/Factory | Discovered new exit (range 8) 24399 | -7/Factory | First assault squad dispatched 24549 | -7/Factory | Identified exit to Lower Caves 24569 | -7/Factory | Identified exit to Garrison 24667 | -7/Factory | High security lockdown imminent 24690 | -7/Factory | Entered Garrison 24692 | -7/Garrison | Reached level 18 24708 | -7/Garrison | Triggered checkpoint 24739 | -7/Garrison | Garrison Relay disabled 24790 | -7/Garrison | Triggered checkpoint 24845 | -7/Garrison | Destroyed 12 combat bots 24862 | -7/Garrison | Triggered checkpoint 24894 | -7/Garrison | Triggered checkpoint 24914 | -7/Garrison | Discovered new exit (range 10) 24917 | -7/Garrison | Discovered new exit (range 60) 24917 | -7/Garrison | Discovered new exit (range 9) 24917 | -7/Garrison | Discovered new exit (range 72) 24928 | -7/Garrison | Triggered checkpoint 25062 | -7/Garrison | Triggered checkpoint 25901 | -7/Garrison | Attempted to access garrison exit controls, blocked by remote lockdown 25940 | -7/Garrison | Attempted to access garrison exit controls, blocked by remote lockdown 25974 | -7/Garrison | Entered Factory 26011 | -7/Factory | Discovered exit to Lower Caves (range 3) 26308 | -7/Factory | Discovered exit to Lower Caves (range 7) 26440 | -7/Factory | Discovered new exit (range 20) 26465 | -7/Factory | Discovered new exit (range 7) 26707 | -7/Factory | Reached level 19 26731 | -7/Factory | Identified exit to Garrison 26774 | -7/Factory | First assault squad dispatched 26936 | -7/Factory | Cargo convoy interrupted 26962 | -7/Factory | Destroyed 7 combat bots 28050 | -7/Factory | Garrison activated, responded to threat 28503 | -7/Factory | High security lockdown imminent 28516 | -7/Factory | Entered Garrison 28527 | -7/Garrison | Destroyed 8 combat bots 28558 | -7/Garrison | Garrison Relay disabled 28598 | -7/Garrison | Found embedded Infiltrators 28658 | -7/Garrison | Triggered checkpoint 28670 | -7/Garrison | Triggered checkpoint 28675 | -7/Garrison | Triggered checkpoint 28794 | -7/Garrison | Discovered new exit (range 17) 28950 | -7/Garrison | Discovered new exit (range 13) 29006 | -7/Garrison | Triggered checkpoint 29082 | -7/Garrison | Triggered checkpoint 29151 | -7/Garrison | Destroyed 7 combat bots 29193 | -7/Garrison | Discovered new exit (range 12) 29230 | -7/Garrison | Triggered checkpoint 29280 | -7/Garrison | Triggered checkpoint 29284 | -7/Garrison | Reached level 20 29321 | -7/Garrison | Discovered new exit (range 6) 29474 | -7/Garrison | Heavy support dispatched to Factory 29710 | -7/Garrison | Heavy support dispatched to Factory 29731 | -7/Garrison | Entered Factory 29731 | -7/Factory | Accompanied by 3 allies 29856 | -7/Factory | Discovered exit to Lower Caves (range 6) 29919 | -7/Factory | Allied Derelicts emerged from ambush trap array 30037 | -7/Factory | Garrison activated, responded to threat 30056 | -7/Factory | High security lockdown imminent 30136 | -7/Factory | High security lockdown engaged 30340 | -7/Factory | Destroyed 11 combat bots 30445 | -7/Factory | Destroyed 11 combat bots 30536 | -7/Factory | Destroyed 11 combat bots 30685 | -7/Factory | Destroyed 14 combat bots 30788 | -7/Factory | Destroyed 14 combat bots 30869 | -7/Factory | Destroyed 15 combat bots 31041 | -7/Factory | Destroyed 18 combat bots 31117 | -7/Factory | Sterilization system engaged 31117 | -7/Factory | Non-combat units ordered to evacuate 31179 | -7/Factory | Destroyed 17 combat bots 31217 | -7/Factory | Combat units ordered to evacuate 31392 | -7/Factory | Entered Lower Caves 31394 | -7/Lower Caves | Learned Factory security intel 31400 | -7/Lower Caves | Met a Warlord Commander 31401 | -7/Lower Caves | Learned location of Warlord (-5) 31410 | -7/Lower Caves | Learned 4 Factory zone layouts 31486 | -7/Lower Caves | Attracted the attention of an 0b10 outpost 31557 | -7/Lower Caves | Destroyed 7 combat bots 31561 | -7/Lower Caves | Encountered a Warlord checkpoint 31725 | -7/Lower Caves | Reached level 21 31825 | -7/Lower Caves | Discovered new exit (range 17) 31910 | -7/Lower Caves | Entered another Lower Caves area 31910 | -7/Lower Caves | Accompanied by 2 allies 31915 | -7/Lower Caves | Attracted the attention of an 0b10 checkpoint 31944 | -7/Lower Caves | Discovered new exit (range 11) 32072 | -7/Lower Caves | Identified exit to Zion 32280 | -7/Lower Caves | Entered Zion 32280 | -7/Zion | Accompanied by 2 allies 32318 | -7/Zion | Discovered new exit (range 14) 32360 | -7/Zion | Given the Hacking Drone Bay 32581 | -7/Zion | Discovered new exit (range 5) 32581 | -7/Zion | Saw the warning signs outside the Deep Caves entrance 32661 | -7/Zion | Attacked by Zionites 32840 | -7/Zion | 12-ASH came to Zion's defense 32848 | -7/Zion | Spotted FH-LWZ(B) 32900 | -7/Zion | Spotted JO-74Z(B) 32910 | -7/Zion | Destroyed 12-ASH 32922 | -7/Zion | Found Exp. Core Analyzer 32948 | -7/Zion | Destroyed JO-74Z(B) 33147 | -7/Zion | Entered Deep Caves 33147 | -7/Deep Caves | Accompanied by 2 allies 33254 | -7/Deep Caves | Attacked by Z-Imprinter 33280 | -7/Deep Caves | Destroyed Z-Imprinter 33283 | -7/Deep Caves | Core integrity fell below 50% 33320 | -7/Deep Caves | Found Prototype Device 33320 | -7/Deep Caves | Identified Zio. Metafield Generator 33346 | -7/Deep Caves | Upgraded with Propulsion slot (x1) 33354 | -7/Deep Caves | Found Prototype Protection 33354 | -7/Deep Caves | Identified Zio. Weapon Casing 33374 | -7/Deep Caves | Z-Facility disabled 33500 | -7/Deep Caves | Discovered new exit (range 6) 33512 | -7/Deep Caves | Destroyed 9 combat bots 33527 | -7/Deep Caves | Spotted as-23931 33679 | -7/Deep Caves | Entered Proximity Caves 33763 | -6/Proximity Caves | Spotted B-75 Beast 33974 | -6/Proximity Caves | Attracted the attention of an 0b10 checkpoint 34035 | -6/Proximity Caves | Discovered new exit (range 13) 34046 | -6/Proximity Caves | Entered Factory 34215 | -6/Factory | Upgraded with Power slot (x1) 34225 | -6/Factory | Upgraded with Utility slot (x1) 34282 | -6/Factory | Garrison activated, responded to threat 34341 | -6/Factory | Spotted B-75 Beast 34344 | -6/Factory | Destroyed 7 combat bots 34676 | -6/Factory | Build established: Scavenger-Sprinter 34746 | -6/Factory | First assault squad dispatched 34774 | -6/Factory | Reached level 22 34820 | -6/Factory | Destroyed 13 combat bots 34831 | -6/Factory | Garrison activated, responded to threat 34989 | -6/Factory | Discovered new exit (range 20) 35063 | -6/Factory | Discovered new exit (range 11) 35123 | -6/Factory | Identified exit to Factory 35247 | -6/Factory | Garrison activated, responded to threat 36233 | -6/Factory | High security lockdown imminent 36255 | -6/Factory | Sucked down chute 36255 | -6/Factory | Entered Waste 36256 | -6/Waste | Met a frightened Derelict 36257 | -6/Waste | Spotted C-40 Crusher 36260 | -6/Waste | Destroyed C-40 Crusher 36266 | -6/Waste | Spotted C-40 Crusher 36267 | -6/Waste | Destroyed C-40 Crusher 36270 | -6/Waste | EMP discharged 36272 | -6/Waste | Spotted C-40 Crusher 36279 | -6/Waste | Destroyed C-40 Crusher 36285 | -6/Waste | Spotted C-40 Crusher 36285 | -6/Waste | Spotted C-40 Crusher 36285 | -6/Waste | Spotted C-40 Crusher 36287 | -6/Waste | Destroyed C-40 Crusher 36294 | -6/Waste | Destroyed C-40 Crusher 36296 | -6/Waste | Destroyed C-40 Crusher 36305 | -6/Waste | Discovered new exit (range 13) 36361 | -6/Waste | Entered Factory 36361 | -6/Factory | Accompanied by 1 ally 36531 | -6/Factory | Identified exit to Garrison 36546 | -6/Factory | Discovered exit to Factory (range 12) 36618 | -6/Factory | Identified exit to Garrison 36623 | -6/Factory | Discovered new exit (range 5) 36675 | -6/Factory | Discovered exit to Factory (range 5) 36689 | -6/Factory | Garrison activated, responded to threat 36711 | -6/Factory | First assault squad dispatched 36737 | -6/Factory | Destroyed 9 combat bots 36769 | -6/Factory | Garrison activated, responded to threat 37077 | -6/Factory | Cargo convoy interrupted 37101 | -6/Factory | High security lockdown imminent 37111 | -6/Factory | Found Prototype Device 37111 | -6/Factory | Identified Exp. ECM Suite 37113 | -6/Factory | Found Prototype Processor 37113 | -6/Factory | Identified Spectral Analyzer 37122 | -6/Factory | Destroyed 10 combat bots 37133 | -6/Factory | Entered Garrison 37186 | -6/Garrison | Triggered checkpoint 37198 | -6/Garrison | Garrison Relay disabled 37216 | -6/Garrison | Triggered checkpoint 37224 | -6/Garrison | Reached level 23 37232 | -6/Garrison | Spotted B-75 Beast 37253 | -6/Garrison | Triggered checkpoint 37272 | -6/Garrison | Destroyed B-75 Beast 37324 | -6/Garrison | Discovered new exit (range 12) 37331 | -6/Garrison | Destroyed 9 combat bots 37336 | -6/Garrison | Triggered checkpoint 37366 | -6/Garrison | Triggered checkpoint 37385 | -6/Garrison | Garrison Relay disabled 37407 | -6/Garrison | Destroyed 8 combat bots 37437 | -6/Garrison | Triggered checkpoint 37455 | -6/Garrison | Garrison Relay disabled 37488 | -6/Garrison | Discovered new exit (range 17) 37505 | -6/Garrison | Garrison Relay disabled 37544 | -6/Garrison | Triggered checkpoint 37556 | -6/Garrison | Triggered checkpoint 37616 | -6/Garrison | Garrison Relay disabled 37634 | -6/Garrison | Discovered new exit (range 12) 37704 | -6/Garrison | Triggered checkpoint 38346 | -6/Garrison | Entered Factory 38346 | -6/Factory | Accompanied by 4 allies 38438 | -6/Factory | Identified exit to Lower Caves 38694 | -6/Factory | Discovered exit to Factory (range 18) 38696 | -6/Factory | First assault squad dispatched 38727 | -6/Factory | Discovered exit to Factory (range 8) 38761 | -6/Factory | Destroyed 7 combat bots 38766 | -6/Factory | Spotted B-75 Beast 38813 | -6/Factory | Destroyed B-75 Beast 39032 | -6/Factory | Garrison activated, responded to threat 39083 | -6/Factory | Build established: Scavenger-Mutant 39102 | -6/Factory | High security lockdown imminent 39123 | -6/Factory | Destroyed 19 combat bots 39182 | -6/Factory | High security lockdown engaged 39525 | -6/Factory | Destroyed 39 combat bots 39556 | -6/Factory | Build established: Scavenger-Sprinter 39663 | -6/Factory | Destroyed 30 combat bots 39697 | -6/Factory | Reached level 24 39766 | -6/Factory | Destroyed 12 combat bots 39796 | -6/Factory | Sterilization system engaged 39796 | -6/Factory | Non-combat units ordered to evacuate 39881 | -6/Factory | Destroyed 22 combat bots 39896 | -6/Factory | Combat units ordered to evacuate 40096 | -6/Factory | Ambient heat levels rising (+10) 40112 | -6/Factory | Discovered exit to Factory (range 13) 40229 | -6/Factory | Entered Lower Caves 40229 | -6/Lower Caves | Accompanied by 4 allies 40308 | -6/Lower Caves | Learned 4 Factory zone layouts 40360 | -6/Lower Caves | Destroyed 12 combat bots 40392 | -6/Lower Caves | Learned Factory stockpile data 40411 | -6/Lower Caves | Attracted the attention of an 0b10 outpost 40473 | -6/Lower Caves | Destroyed 7 combat bots 40581 | -6/Lower Caves | Discovered new exit (range 5) 40741 | -6/Lower Caves | Entered another Lower Caves area 40741 | -6/Lower Caves | Accompanied by 6 allies 40743 | -6/Lower Caves | Discovered exit to Factory (range 5) 40841 | -6/Lower Caves | Identified exit to Data Miner 40893 | -6/Lower Caves | Encountered a Warlord checkpoint 40921 | -6/Lower Caves | Attracted the attention of an 0b10 outpost 40965 | -6/Lower Caves | Destroyed 7 combat bots 41247 | -6/Lower Caves | Found Alien Artifact 41247 | -6/Lower Caves | Identified Core Expander 41247 | -6/Lower Caves | Installed Core Expander, added new Propulsion slot 41264 | -6/Lower Caves | Learned Armory stockpile data 41264 | -6/Lower Caves | Learned Factory stockpile data 41349 | -6/Lower Caves | Entered Data Miner 41349 | -6/Data Miner | Accompanied by 8 allies 41349 | -6/Data Miner | Discovered new exit (range 6) 41357 | -6/Data Miner | Met Data Miner 41363 | -6/Data Miner | Learned location of Section 7 (-3) 41363 | -6/Data Miner | Acquired the access code to Warlord's prototype stash 41366 | -6/Data Miner | Received God Mode back door access code from Data Miner 41371 | -6/Data Miner | Entered Proximity Caves 41371 | -5/Proximity Caves | Accompanied by 8 allies 41393 | -5/Proximity Caves | Escorted by Enhanced Grunt 41421 | -5/Proximity Caves | Destroyed 8 combat bots 41469 | -5/Proximity Caves | Learned Factory trap positions 41485 | -5/Proximity Caves | Destroyed 13 combat bots 41487 | -5/Proximity Caves | Reached level 25 41546 | -5/Proximity Caves | Snuck into a huge 0b10 base via the rear entrance 41780 | -5/Proximity Caves | Spotted B-75 Beast 41826 | -5/Proximity Caves | Destroyed B-75 Beast 41846 | -5/Proximity Caves | Discovered exit to Factory (range 21) 41876 | -5/Proximity Caves | Destroyed 8 combat bots 41900 | -5/Proximity Caves | Learned 4 Factory zone layouts 42293 | -5/Proximity Caves | Build established: Commander-Sprinter 43157 | -5/Proximity Caves | Entered Factory 43157 | -5/Factory | Accompanied by 17 allies 43158 | -5/Factory | Identified exit to Upper Caves 43159 | -5/Factory | Identified exit to Extension 43159 | -5/Factory | Identified exit to Factory 43160 | -5/Factory | Loaded intel: 90 trap records 43218 | -5/Factory | Garrison activated, responded to threat 43269 | -5/Factory | Destroyed 7 combat bots 43335 | -5/Factory | Garrison activated, responded to threat 43381 | -5/Factory | Upgraded with Power slot (x1) 43393 | -5/Factory | High security lockdown imminent 43412 | -5/Factory | Sucked down chute 43412 | -5/Factory | Entered Waste 43413 | -5/Waste | Met a frightened Derelict 43413 | -5/Waste | Spotted C-40 Crusher 43433 | -5/Waste | Destroyed C-40 Crusher 43438 | -5/Waste | Spotted C-40 Crusher 43438 | -5/Waste | Spotted C-40 Crusher 43438 | -5/Waste | Destroyed C-40 Crusher 43446 | -5/Waste | Destroyed C-40 Crusher 43448 | -5/Waste | Spotted C-40 Crusher 43456 | -5/Waste | Spotted C-40 Crusher 43456 | -5/Waste | Destroyed C-40 Crusher 43471 | -5/Waste | Destroyed C-40 Crusher 43488 | -5/Waste | Spotted C-40 Crusher 43495 | -5/Waste | Destroyed C-40 Crusher 43503 | -5/Waste | Discovered new exit (range 12) 43518 | -5/Waste | Build established: Scavenger-Sprinter 45311 | -5/Waste | Entered Factory 45311 | -5/Factory | Accompanied by 1 ally 45323 | -5/Factory | Identified exit to Garrison 45385 | -5/Factory | Spotted B-75 Beast 45401 | -5/Factory | Destroyed B-75 Beast 45422 | -5/Factory | Destroyed 8 combat bots 45433 | -5/Factory | Discovered exit to Upper Caves (range 7) 45545 | -5/Factory | Discovered exit to Factory (range 6) 45911 | -5/Factory | First assault squad dispatched 45982 | -5/Factory | Reached level 26 46120 | -5/Factory | Cargo convoy interrupted 46137 | -5/Factory | Incoming assault squad redirected 46172 | -5/Factory | Destroyed 7 combat bots 46832 | -5/Factory | Incoming assault squad redirected 47350 | -5/Factory | Destroyed 14 combat bots 47350 | -5/Factory | Discovered exit to Extension (range 21) 47358 | -5/Factory | Identified exit to Garrison 47361 | -5/Factory | Garrison activated, responded to threat 47410 | -5/Factory | Discovered exit to Upper Caves (range 21) 47430 | -5/Factory | Incoming assault squad redirected 47509 | -5/Factory | High security lockdown imminent 47527 | -5/Factory | Entered Garrison 47542 | -5/Garrison | Triggered checkpoint 47619 | -5/Garrison | Spotted B-75 Beast 47674 | -5/Garrison | Destroyed 8 combat bots 47675 | -5/Garrison | Triggered checkpoint 47679 | -5/Garrison | Destroyed B-75 Beast 47686 | -5/Garrison | Triggered checkpoint 47711 | -5/Garrison | Discovered new exit (range 18) 47723 | -5/Garrison | Garrison Relay disabled 47728 | -5/Garrison | Triggered checkpoint 47760 | -5/Garrison | Discovered new exit (range 19) 47802 | -5/Garrison | Triggered checkpoint 47890 | -5/Garrison | Garrison Relay disabled 47931 | -5/Garrison | Discovered new exit (range 18) 47939 | -5/Garrison | Found embedded Infiltrators 48754 | -5/Garrison | Entered Factory 48754 | -5/Factory | Accompanied by 2 allies 48787 | -5/Factory | Discovered exit to Factory (range 13) 48817 | -5/Factory | Garrison activated, responded to threat 48850 | -5/Factory | Discovered exit to Upper Caves (range 15) 48889 | -5/Factory | Identified exit to Garrison 48911 | -5/Factory | Incoming assault squad redirected 48938 | -5/Factory | Identified exit to Garrison 49009 | -5/Factory | Garrison activated, responded to threat 49054 | -5/Factory | First assault squad dispatched 49074 | -5/Factory | Destroyed 9 combat bots 49077 | -5/Factory | Incoming assault squad redirected 49382 | -5/Factory | Incoming assault squad redirected 49531 | -5/Factory | Spotted B-75 Beast 49553 | -5/Factory | Cargo convoy interrupted 49586 | -5/Factory | Found Prototype Device 49586 | -5/Factory | Identified Exp. Weapon Cycler 49604 | -5/Factory | Upgraded with Weapon slot (x1) 49678 | -5/Factory | Incoming assault squad redirected 49684 | -5/Factory | Incoming assault squad redirected 49758 | -5/Factory | Garrison activated, responded to threat 49977 | -5/Factory | High security lockdown imminent 49990 | -5/Factory | Entered Garrison 50028 | -5/Garrison | Triggered checkpoint 50058 | -5/Garrison | Triggered checkpoint 50083 | -5/Garrison | Reached level 27 50090 | -5/Garrison | Triggered checkpoint 50139 | -5/Garrison | Discovered new exit (range 11) 50142 | -5/Garrison | Rescued a captive Derelict 50152 | -5/Garrison | Destroyed 23 combat bots 50154 | -5/Garrison | Triggered checkpoint 50195 | -5/Garrison | Garrison Relay disabled 50209 | -5/Garrison | Destroyed 9 combat bots 50214 | -5/Garrison | Triggered checkpoint 50221 | -5/Garrison | Discovered new exit (range 10) 50291 | -5/Garrison | Garrison Relay disabled 50296 | -5/Garrison | Triggered checkpoint 50316 | -5/Garrison | Discovered new exit (range 9) 50339 | -5/Garrison | Discovered new exit (range 6) 50339 | -5/Garrison | Discovered new exit (range 87) 50339 | -5/Garrison | Discovered new exit (range 51) 50344 | -5/Garrison | Triggered checkpoint 50345 | -5/Garrison | Garrison Relay disabled 50422 | -5/Garrison | Spotted Executioner 50422 | -5/Garrison | Spotted Executioner 50425 | -5/Garrison | Destroyed Executioner 50428 | -5/Garrison | Destroyed Executioner 50452 | -5/Garrison | Rewired Executioner 50739 | -5/Garrison | Entered Factory 50739 | -5/Factory | Accompanied by 3 allies 51039 | -5/Factory | First assault squad dispatched 51056 | -5/Factory | Garrison activated, responded to threat 51068 | -5/Factory | Incoming assault squad redirected 51162 | -5/Factory | Destroyed 7 combat bots 51350 | -5/Factory | Spotted B-75 Beast 51362 | -5/Factory | Incoming assault squad redirected 51393 | -5/Factory | Destroyed 9 combat bots 51443 | -5/Factory | Incoming investigation squad redirected 51451 | -5/Factory | Cargo convoy interrupted 51657 | -5/Factory | Incoming assault squad redirected 51658 | -5/Factory | Destroyed B-75 Beast 51826 | -5/Factory | High security lockdown imminent 51847 | -5/Factory | Destroyed 18 combat bots 51906 | -5/Factory | High security lockdown engaged 52052 | -5/Factory | Destroyed 10 combat bots 52132 | -5/Factory | Destroyed 19 combat bots 52175 | -5/Factory | Destroyed 8 combat bots 52413 | -5/Factory | Sterilization system engaged 52413 | -5/Factory | Non-combat units ordered to evacuate 52476 | -5/Factory | Destroyed 20 combat bots 52513 | -5/Factory | Combat units ordered to evacuate 52603 | -5/Factory | Destroyed 30 combat bots 52671 | -5/Factory | Entered Extension 52729 | -5/Extension | Rescued a captive Derelict 52738 | -5/Extension | Rescued A7 52843 | -5/Extension | Spotted B-75 Beast 52856 | -5/Extension | Destroyed B-75 Beast 52860 | -5/Extension | Spotted B-75 Beast 52880 | -5/Extension | Destroyed B-75 Beast 52896 | -5/Extension | Disrupted transfer network 52911 | -5/Extension | Rescued a captive Derelict 52912 | -5/Extension | Rescued a captive Derelict 52971 | -5/Extension | First assault squad dispatched 53001 | -5/Extension | Incoming assault squad redirected 53001 | -5/Extension | Incoming assault squad redirected 53031 | -5/Extension | High security lockdown imminent 53111 | -5/Extension | High security lockdown engaged 53178 | -5/Extension | Reached level 28 53242 | -5/Extension | Destroyed 14 combat bots 53362 | -5/Extension | Destroyed 24 combat bots 53484 | -5/Extension | Extracted ID and sensor layout for unrecognized location from A7's data core 53549 | -5/Extension | Destroyed 29 combat bots 53684 | -5/Extension | Sterilization system engaged 53684 | -5/Extension | Non-combat units ordered to evacuate 53784 | -5/Extension | Combat units ordered to evacuate 53790 | -5/Extension | Discovered new exit (range 21) 53791 | -5/Extension | Discovered exit to Factory (range 20) 53863 | -5/Extension | Destroyed 60 combat bots 53935 | -5/Extension | Entered Cetus 53935 | -5/Cetus | Accompanied by 7 allies 53938 | -5/Cetus | Spotted Cetus Guard 53938 | -5/Cetus | Spotted Cetus Guard 53938 | -5/Cetus | Spotted Cetus Guard 53938 | -5/Cetus | Spotted Cetus Guard 53946 | -5/Cetus | Destroyed Cetus Guard 53950 | -5/Cetus | Destroyed Cetus Guard 53955 | -5/Cetus | Destroyed Cetus Guard 53957 | -5/Cetus | Destroyed Cetus Guard 54012 | -5/Cetus | Upgraded with Utility slot (x1) 54051 | -5/Cetus | High security lockdown imminent 54074 | -5/Cetus | Destroyed 8 combat bots 54081 | -5/Cetus | Discovered exit to Factory (range 20) 54131 | -5/Cetus | High security lockdown engaged 54245 | -5/Cetus | Destroyed 22 combat bots 54353 | -5/Cetus | Destroyed 24 combat bots 54525 | -5/Cetus | Destroyed 31 combat bots 54750 | -5/Cetus | Sterilization system engaged 54750 | -5/Cetus | Non-combat units ordered to evacuate 54753 | -5/Cetus | Destroyed 32 combat bots 54818 | -5/Cetus | Discovered new exit (range 20) 54828 | -5/Cetus | Spotted Cetus Guard 54828 | -5/Cetus | Spotted Cetus Guard 54828 | -5/Cetus | Spotted Cetus Guard 54828 | -5/Cetus | Spotted Cetus Guard 54833 | -5/Cetus | Destroyed Cetus Guard 54836 | -5/Cetus | Destroyed Cetus Guard 54842 | -5/Cetus | Destroyed Cetus Guard 54845 | -5/Cetus | Destroyed Cetus Guard 54850 | -5/Cetus | Combat units ordered to evacuate 54854 | -5/Cetus | Discovered exit to Factory (range 21) 54862 | -5/Cetus | Met Revision 17 54872 | -5/Cetus | Destroyed 21 combat bots 54878 | -5/Cetus | Entered Archives 54878 | -5/Archives | Accompanied by 4 allies 54903 | -5/Archives | High security lockdown imminent 54915 | -5/Archives | Discovered new exit (range 21) 54917 | -5/Archives | Discovered new exit (range 20) 54978 | -5/Archives | Discovered exit to Factory (range 21) 54983 | -5/Archives | High security lockdown engaged 55081 | -5/Archives | Destroyed 19 combat bots 55159 | -5/Archives | Destroyed 21 combat bots 55315 | -5/Archives | Destroyed 25 combat bots 55504 | -5/Archives | Destroyed 27 combat bots 55716 | -5/Archives | Sterilization system engaged 55716 | -5/Archives | Non-combat units ordered to evacuate 55769 | -5/Archives | Destroyed 36 combat bots 55797 | -5/Archives | Entered Hub_04(d) 55797 | -5/Hub_04(d) | Discovered exit to Factory (range 10) 55805 | -5/Hub_04(d) | Discovered exit to Factory (range 10) 55857 | -5/Hub_04(d) | Garrison activated, responded to threat 55994 | -5/Hub_04(d) | Incoming investigation squad redirected 56050 | -5/Hub_04(d) | Network Hub disabled 56050 | -5/Hub_04(d) | High security lockdown imminent 56059 | -5/Hub_04(d) | Spotted Lightning 56059 | -5/Hub_04(d) | Spotted Lightning 56060 | -5/Hub_04(d) | Destroyed Lightning 56062 | -5/Hub_04(d) | Destroyed Lightning 56067 | -5/Hub_04(d) | Network Hub disabled 56093 | -5/Hub_04(d) | Spotted Lightning 56094 | -5/Hub_04(d) | Destroyed Lightning 56101 | -5/Hub_04(d) | Spotted Lightning 56103 | -5/Hub_04(d) | Spotted Lightning 56106 | -5/Hub_04(d) | Destroyed Lightning 56112 | -5/Hub_04(d) | Spotted B-75 Beast 56112 | -5/Hub_04(d) | Destroyed Lightning 56128 | -5/Hub_04(d) | Destroyed B-75 Beast 56130 | -5/Hub_04(d) | High security lockdown engaged 56162 | -5/Hub_04(d) | Destroyed 16 combat bots 56254 | -5/Hub_04(d) | Reached level 29 56338 | -5/Hub_04(d) | Destroyed 36 combat bots 56527 | -5/Hub_04(d) | Destroyed 31 combat bots 56668 | -5/Hub_04(d) | Spotted Lightning 56670 | -5/Hub_04(d) | Spotted Lightning 56673 | -5/Hub_04(d) | Destroyed Lightning 56673 | -5/Hub_04(d) | Network Hub disabled 56673 | -5/Hub_04(d) | Spotted Lightning 56677 | -5/Hub_04(d) | Spotted Lightning 56694 | -5/Hub_04(d) | Destroyed 8 combat bots 56705 | -5/Hub_04(d) | Destroyed Lightning 56709 | -5/Hub_04(d) | Destroyed Lightning 56723 | -5/Hub_04(d) | Destroyed Lightning 56731 | -5/Hub_04(d) | Core integrity fell below 50% 56760 | -5/Hub_04(d) | Destroyed 17 combat bots 56855 | -5/Hub_04(d) | Destroyed 8 combat bots 56869 | -5/Hub_04(d) | Sterilization system engaged 56869 | -5/Hub_04(d) | Non-combat units ordered to evacuate 56898 | -5/Hub_04(d) | Destroyed 7 combat bots 56969 | -5/Hub_04(d) | Combat units ordered to evacuate 57051 | -5/Hub_04(d) | Destroyed 32 combat bots 57083 | -5/Hub_04(d) | Network Hub disabled 57106 | -5/Hub_04(d) | Entered Factory 57132 | -4/Factory | Discovered new exit (range 5) 57142 | -4/Factory | Garrison activated, responded to threat 57149 | -4/Factory | Sucked down chute 57149 | -4/Factory | Entered Waste 57151 | -4/Waste | Spotted C-40 Crusher 57157 | -4/Waste | Spotted C-40 Crusher 57158 | -4/Waste | Destroyed C-40 Crusher 57164 | -4/Waste | EMP discharged 57164 | -4/Waste | Destroyed C-40 Crusher 57174 | -4/Waste | Spotted C-40 Crusher 57181 | -4/Waste | Destroyed C-40 Crusher 57184 | -4/Waste | Spotted C-40 Crusher 57189 | -4/Waste | Destroyed C-40 Crusher 57191 | -4/Waste | Spotted C-40 Crusher 57192 | -4/Waste | Destroyed C-40 Crusher 57195 | -4/Waste | Spotted C-40 Crusher 57197 | -4/Waste | Destroyed C-40 Crusher 57202 | -4/Waste | Discovered new exit (range 21) 57246 | -4/Waste | Entered Factory 57278 | -4/Factory | Discovered new exit (range 21) 57324 | -4/Factory | Upgraded with Utility slot (x1) 57336 | -4/Factory | Identified exit to Garrison 57363 | -4/Factory | Spotted B-86 Titan 57378 | -4/Factory | Incoming investigation squad redirected 57384 | -4/Factory | Garrison activated, responded to threat 57427 | -4/Factory | Fabricated Hyp. Railgun? 57546 | -4/Factory | First assault squad dispatched 57613 | -4/Factory | Destroyed 10 combat bots 57658 | -4/Factory | Allied Derelicts emerged from ambush trap array 57677 | -4/Factory | Discovered new exit (range 21) 57739 | -4/Factory | Incoming assault squad redirected 57884 | -4/Factory | Fabricated Cmb. Linear Gravjet? 57926 | -4/Factory | Identified exit to Garrison 57927 | -4/Factory | Discovered new exit (range 12) 57935 | -4/Factory | Identified exit to Research 57946 | -4/Factory | Garrison activated, responded to threat 57950 | -4/Factory | Spotted B-86 Titan 58133 | -4/Factory | Destroyed B-86 Titan 58170 | -4/Factory | Incoming investigation squad redirected 58196 | -4/Factory | Garrison activated, responded to threat 58220 | -4/Factory | Fabricated Cmb. Linear Gravjet (x2) 58269 | -4/Factory | Incoming assault squad redirected 58283 | -4/Factory | Garrison activated, responded to threat 58284 | -4/Factory | Cargo convoy interrupted 58377 | -4/Factory | Incoming assault squad redirected 58402 | -4/Factory | Destroyed 9 combat bots 58515 | -4/Factory | Incoming assault squad redirected 58534 | -4/Factory | Destroyed 15 combat bots 58618 | -4/Factory | Identified exit to Garrison 58714 | -4/Factory | Destroyed 7 combat bots 58723 | -4/Factory | Identified exit to Garrison 58788 | -4/Factory | Garrison activated, responded to threat 58996 | -4/Factory | High security lockdown imminent 59016 | -4/Factory | Entered Garrison 59028 | -4/Garrison | Triggered checkpoint 59033 | -4/Garrison | Reached level 30 59041 | -4/Garrison | Garrison Relay disabled 59052 | -4/Garrison | Triggered checkpoint 59091 | -4/Garrison | Triggered checkpoint 59115 | -4/Garrison | Spotted B-86 Titan 59128 | -4/Garrison | Triggered checkpoint 59143 | -4/Garrison | Triggered checkpoint 59161 | -4/Garrison | Destroyed B-86 Titan 59196 | -4/Garrison | Destroyed 16 combat bots 59207 | -4/Garrison | Spotted B-90 Cyclops 59228 | -4/Garrison | Destroyed B-90 Cyclops 59254 | -4/Garrison | Discovered new exit (range 10) 59270 | -4/Garrison | Triggered checkpoint 59296 | -4/Garrison | Garrison Relay disabled 59348 | -4/Garrison | Discovered new exit (range 12) 59368 | -4/Garrison | Triggered checkpoint 59383 | -4/Garrison | Garrison Relay disabled 59502 | -4/Garrison | Triggered checkpoint 59505 | -4/Garrison | Discovered new exit (range 20) 59566 | -4/Garrison | Phase Generator disabled 59595 | -4/Garrison | Learned Factory security intel 59600 | -4/Garrison | Garrison Relay disabled 59606 | -4/Garrison | Triggered checkpoint 59616 | -4/Garrison | Triggered checkpoint 59618 | -4/Garrison | Build established: Scavenger-Gunner 59636 | -4/Garrison | Triggered checkpoint 59650 | -4/Garrison | Rescued a captive Derelict 59656 | -4/Garrison | Rescued a captive Derelict 59675 | -4/Garrison | Destroyed 10 combat bots 59704 | -4/Garrison | Triggered checkpoint 59719 | -4/Garrison | Garrison Relay disabled 59753 | -4/Garrison | Discovered new exit (range 64) 59753 | -4/Garrison | Discovered new exit (range 38) 59753 | -4/Garrison | Discovered new exit (range 16) 59761 | -4/Garrison | Found embedded Infiltrators 60008 | -4/Garrison | Entered Factory 60008 | -4/Factory | Accompanied by 7 allies 60016 | -4/Factory | Identified exit to Upper Caves 60258 | -4/Factory | First assault squad dispatched 60258 | -4/Factory | High security lockdown imminent 60338 | -4/Factory | High security lockdown engaged 60399 | -4/Factory | Build established: Scavenger-Sprinter 60476 | -4/Factory | Destroyed 27 combat bots 60674 | -4/Factory | Destroyed 16 combat bots 60817 | -4/Factory | Destroyed 11 combat bots 60959 | -4/Factory | Destroyed 13 combat bots 61258 | -4/Factory | Destroyed 23 combat bots 61321 | -4/Factory | Sterilization system engaged 61321 | -4/Factory | Non-combat units ordered to evacuate 61345 | -4/Factory | Destroyed 11 combat bots 61421 | -4/Factory | Combat units ordered to evacuate 61462 | -4/Factory | Destroyed 7 combat bots 61514 | -4/Factory | Destroyed 7 combat bots 61564 | -4/Factory | Entered Upper Caves 61641 | -4/Upper Caves | Attracted the attention of an 0b10 checkpoint 61656 | -4/Upper Caves | Learned Research trap positions 61656 | -4/Upper Caves | Learned Research security intel 61667 | -4/Upper Caves | Discovered new exit (range 9) 61714 | -4/Upper Caves | Attracted the attention of an 0b10 outpost 61753 | -4/Upper Caves | Destroyed 7 combat bots 61927 | -4/Upper Caves | Entered another Upper Caves area 61927 | -4/Upper Caves | Accompanied by 2 allies 61933 | -4/Upper Caves | Discovered exit to Research (range 13) 62190 | -4/Upper Caves | Destroyed 9 combat bots 62264 | -4/Upper Caves | Encountered a Warlord checkpoint 62285 | -4/Upper Caves | Discovered new exit (range 7) 62523 | -4/Upper Caves | Entered Zhirov 62523 | -4/Zhirov | Accompanied by 3 allies 62523 | -4/Zhirov | Discovered new exit (range 3) 62525 | -4/Zhirov | Reached level 31 62527 | -4/Zhirov | Met Zhirov 62531 | -4/Zhirov | Learned location of Quarantine (-3) 62531 | -4/Zhirov | Learned location of Command (-1) 62535 | -4/Zhirov | Zhirov requested help retrieving the SGEMP Prototype 62539 | -4/Zhirov | Found Alien Artifact 62539 | -4/Zhirov | Identified Integrated Dissipator 62539 | -4/Zhirov | Installed Integrated Dissipator, increased core heat dissipation (+20) 62550 | -4/Zhirov | Found Alien Artifact 62568 | -4/Zhirov | Entered Proximity Caves 62568 | -3/Proximity Caves | Accompanied by 3 allies 62723 | -3/Proximity Caves | Received a Behemoth hack from an annoying Tinkerer 63018 | -3/Proximity Caves | Encountered a Derelict sapper outpost 63118 | -3/Proximity Caves | Attracted the attention of an 0b10 checkpoint 63165 | -3/Proximity Caves | Discovered exit to Research (range 11) 63189 | -3/Proximity Caves | Entered Research 63190 | -3/Research | Loaded intel: 86 trap records 63238 | -3/Research | Identified exit to Armory 63238 | -3/Research | Identified exit to Quarantine 63241 | -3/Research | Discovered new exit (range 20) 63389 | -3/Research | Revision forces began assault on 0b10 63462 | -3/Research | Destroyed 9 combat bots 63521 | -3/Research | Identified Transdimensional Reconstructor 63543 | -3/Research | Found Prototype Launcher 63557 | -3/Research | Identified Adv. Micro-nuke Launcher 63640 | -3/Research | Identified exit to Research 63674 | -3/Research | Destroyed 14 combat bots 63734 | -3/Research | Met up with Revision 17++ 63889 | -3/Research | Research terminal network offline 64011 | -3/Research | Spotted Striker 64025 | -3/Research | Destroyed Striker 64106 | -3/Research | Identified exit to Garrison 64114 | -3/Research | Spotted B-90 Cyclops 64162 | -3/Research | Spotted Striker 64173 | -3/Research | Destroyed Striker 64251 | -3/Research | Reached level 32 64251 | -3/Research | High security lockdown imminent 64331 | -3/Research | High security lockdown engaged 64398 | -3/Research | Destroyed 11 combat bots 64490 | -3/Research | Spotted Striker 64493 | -3/Research | Destroyed Striker 64523 | -3/Research | Destroyed 18 combat bots 64539 | -3/Research | Spotted Striker 64550 | -3/Research | Destroyed Striker 64684 | -3/Research | Destroyed 8 combat bots 64714 | -3/Research | Spotted Executioner 64719 | -3/Research | Destroyed Executioner 64760 | -3/Research | Destroyed 7 combat bots 64921 | -3/Research | Sterilization system engaged 64921 | -3/Research | Non-combat units ordered to evacuate 64923 | -3/Research | Spotted Striker 64930 | -3/Research | Destroyed Striker 64956 | -3/Research | Spotted Striker 64960 | -3/Research | Spotted Striker 64961 | -3/Research | Destroyed Striker 64964 | -3/Research | Destroyed Striker 64992 | -3/Research | Destroyed 25 combat bots 65021 | -3/Research | Combat units ordered to evacuate 65024 | -3/Research | Spotted Striker 65025 | -3/Research | Destroyed Striker 65068 | -3/Research | Spotted Striker 65095 | -3/Research | Destroyed Striker 65221 | -3/Research | Ambient heat levels rising (+10) 65371 | -3/Research | Ambient heat levels rising (+10) 65409 | -3/Research | Entered Quarantine 65446 | -3/Quarantine | High security lockdown imminent 65517 | -3/Quarantine | Found Alien Artifact 65526 | -3/Quarantine | High security lockdown engaged 65528 | -3/Quarantine | Found Alien Artifact 65528 | -3/Quarantine | Identified Core Reset Matrix 65528 | -3/Quarantine | Identified Subatomic Replicator 65528 | -3/Quarantine | Used Core Reset Matrix 65532 | -3/Quarantine | Detected hypermatrix surge 65532 | -3/Quarantine | Sensed 12 artifacts in vicinity 65634 | -3/Quarantine | Reached level 33 65665 | -3/Quarantine | Destroyed 22 combat bots 65699 | -3/Quarantine | Destroyed Investigator 65787 | -3/Quarantine | Destroyed 23 combat bots 65821 | -3/Quarantine | Spotted Striker 65826 | -3/Quarantine | Destroyed Striker 65915 | -3/Quarantine | Destroyed 25 combat bots 65947 | -3/Quarantine | Discovered exit to Research (range 5) 66005 | -3/Quarantine | Destroyed Executioner 66022 | -3/Quarantine | Spotted Executioner 66034 | -3/Quarantine | Destroyed Executioner 66060 | -3/Quarantine | Destroyed 30 combat bots 66261 | -3/Quarantine | Spotted Executioner 66261 | -3/Quarantine | Spotted Executioner 66262 | -3/Quarantine | Destroyed Executioner 66263 | -3/Quarantine | Spotted Striker 66265 | -3/Quarantine | Destroyed Executioner 66269 | -3/Quarantine | Sterilization system engaged 66269 | -3/Quarantine | Non-combat units ordered to evacuate 66276 | -3/Quarantine | Spotted Executioner 66285 | -3/Quarantine | Destroyed Striker 66294 | -3/Quarantine | Destroyed Executioner 66351 | -3/Quarantine | Destroyed 34 combat bots 66369 | -3/Quarantine | Combat units ordered to evacuate 66505 | -3/Quarantine | Spotted Fortress 66519 | -3/Quarantine | Discovered new exit (range 6) 66521 | -3/Quarantine | Entered Section 7 66522 | -3/Section 7 | Sensed 21 artifacts in vicinity 66543 | -3/Section 7 | Spotted S7 Guard 66628 | -3/Section 7 | Spotted S7 Guard 66629 | -3/Section 7 | Found Core Membrane 66629 | -3/Section 7 | Installed Core Membrane, gained immunity to corruption 66643 | -3/Section 7 | Found Integrated Thermoelectric Network 66643 | -3/Section 7 | Installed Integrated Thermoelectric Network, gained heat-energy exchange potential 66658 | -3/Section 7 | Found Integrated Reactor 66658 | -3/Section 7 | Installed Integrated Reactor, increased core energy generation (+10) 66674 | -3/Section 7 | Found Integrated Reactor 66674 | -3/Section 7 | Installed Integrated Reactor, increased core energy generation (+10) 66713 | -3/Section 7 | Discovered exit to Research (range 21) 66771 | -3/Section 7 | First assault squad dispatched 66774 | -3/Section 7 | Spotted Executioner 66775 | -3/Section 7 | Spotted Executioner 66791 | -3/Section 7 | Incoming assault squad redirected 66791 | -3/Section 7 | Incoming assault squad redirected 66791 | -3/Section 7 | Destroyed 8 combat bots 66791 | -3/Section 7 | Spotted B-99 Colossus 66793 | -3/Section 7 | Incoming assault squad redirected 66805 | -3/Section 7 | Found LRC Insulator 66805 | -3/Section 7 | Installed LRC Insulator, gained EM resistance (25) 66808 | -3/Section 7 | Found LRC Armor 66808 | -3/Section 7 | Installed LRC Armor, increased core integrity (+250) 66809 | -3/Section 7 | Found LRC Matter Compressor 66809 | -3/Section 7 | Installed LRC Matter Compressor, increased matter storage capacity (+125) 66834 | -3/Section 7 | Destroyed Executioner 66841 | -3/Section 7 | Destroyed Executioner 66962 | -3/Section 7 | Spotted Striker 67078 | -3/Section 7 | Incoming assault squad redirected 67090 | -3/Section 7 | Spotted Striker 67090 | -3/Section 7 | Spotted Striker 67094 | -3/Section 7 | Destroyed Striker 67100 | -3/Section 7 | Build established: Alien-Sprinter 67101 | -3/Section 7 | Destroyed Striker 67110 | -3/Section 7 | Spotted Striker 67113 | -3/Section 7 | Destroyed Striker 67115 | -3/Section 7 | Destroyed Striker 67181 | -3/Section 7 | Destroyed 8 combat bots 67197 | -3/Section 7 | Spotted Alpha 7 67198 | -3/Section 7 | Spotted Alpha 7 67215 | -3/Section 7 | Identified exit to Garrison 67244 | -3/Section 7 | High security lockdown imminent 67244 | -3/Section 7 | Spotted B-86 Titan 67280 | -3/Section 7 | Destroyed 10 combat bots 67282 | -3/Section 7 | Destroyed B-86 Titan 67324 | -3/Section 7 | High security lockdown engaged 67504 | -3/Section 7 | Destroyed Alpha 7 67508 | -3/Section 7 | Destroyed Alpha 7 67511 | -3/Section 7 | Scanned by Researcher 67512 | -3/Section 7 | Intercept squad dispatched 67513 | -3/Section 7 | Spotted Investigator 67513 | -3/Section 7 | Destroyed Investigator 67521 | -3/Section 7 | Warped through subspace 67540 | -3/Section 7 | Destroyed 22 combat bots 67581 | -3/Section 7 | Destroyed 13 combat bots 67612 | -3/Section 7 | Spotted Tracker 67623 | -3/Section 7 | Destroyed Tracker 67645 | -3/Section 7 | Destroyed Investigator 67696 | -3/Section 7 | Destroyed 19 combat bots 67724 | -3/Section 7 | Found Transdimensional Reconstructor 67810 | -3/Section 7 | Reached level 34 67862 | -3/Section 7 | Sterilization system engaged 67862 | -3/Section 7 | Non-combat units ordered to evacuate 67888 | -3/Section 7 | Destroyed 26 combat bots 67955 | -3/Section 7 | Destroyed B-99 Colossus 67962 | -3/Section 7 | Combat units ordered to evacuate 67994 | -3/Section 7 | Entered Garrison 68004 | -3/Garrison | Triggered checkpoint 68026 | -3/Garrison | Triggered checkpoint 68035 | -3/Garrison | Garrison Relay disabled 68052 | -3/Garrison | Destroyed 8 combat bots 68064 | -3/Garrison | Triggered checkpoint 68079 | -3/Garrison | Learned Research security intel 68083 | -3/Garrison | Garrison Relay disabled 68132 | -3/Garrison | Triggered checkpoint 68214 | -3/Garrison | Discovered exit to Research (range 8) 68222 | -3/Garrison | Destroyed 22 combat bots 68224 | -3/Garrison | Triggered checkpoint 68233 | -3/Garrison | Garrison Relay disabled 68262 | -3/Garrison | Spotted B-86 Titan 68285 | -3/Garrison | Destroyed B-86 Titan 68344 | -3/Garrison | Triggered checkpoint 68354 | -3/Garrison | Garrison Relay disabled 68367 | -3/Garrison | Discovered exit to Research (range 5) 68377 | -3/Garrison | Phase Generator disabled 68464 | -3/Garrison | Discovered exit to Research (range 20) 68465 | -3/Garrison | Triggered checkpoint 68493 | -3/Garrison | Rescued a captive Derelict 68497 | -3/Garrison | Rescued a captive Derelict 68519 | -3/Garrison | Triggered checkpoint 68526 | -3/Garrison | Garrison Relay disabled 68631 | -3/Garrison | Spotted B-86 Titan 68658 | -3/Garrison | Destroyed B-86 Titan 68700 | -3/Garrison | Entered Research 68711 | -2/Research | Spotted B-90 Cyclops 68736 | -2/Research | Discovered new exit (range 12) 68757 | -2/Research | Discovered new exit (range 10) 68777 | -2/Research | Spotted B-90 Cyclops 68822 | -2/Research | Discovered new exit (range 21) 68877 | -2/Research | Intercept squad dispatched 68888 | -2/Research | Destroyed 7 combat bots 68897 | -2/Research | Spotted Tracker 68897 | -2/Research | Spotted Tracker 68899 | -2/Research | Destroyed Tracker 68906 | -2/Research | Destroyed Tracker 68942 | -2/Research | Spotted Combat Programmer 68952 | -2/Research | Destroyed Combat Programmer 68998 | -2/Research | Spotted Combat Programmer 69000 | -2/Research | First assault squad dispatched 69011 | -2/Research | Destroyed Combat Programmer 69048 | -2/Research | Incoming investigation squad redirected 69076 | -2/Research | Destroyed 7 combat bots 69132 | -2/Research | High security lockdown imminent 69153 | -2/Research | Destroyed 8 combat bots 69157 | -2/Research | Identified exit to Testing 69212 | -2/Research | High security lockdown engaged 69235 | -2/Research | Destroyed B-90 Cyclops 69287 | -2/Research | Intercept squad dispatched 69294 | -2/Research | Spotted Tracker 69295 | -2/Research | Spotted Tracker 69300 | -2/Research | Destroyed Tracker 69307 | -2/Research | Destroyed Tracker 69310 | -2/Research | Spotted Combat Programmer 69328 | -2/Research | Destroyed Combat Programmer 69349 | -2/Research | Destroyed 13 combat bots 69350 | -2/Research | Spotted Combat Programmer 69359 | -2/Research | Destroyed Combat Programmer 69365 | -2/Research | Reached level 35 69423 | -2/Research | Spotted Executioner 69423 | -2/Research | Spotted Striker 69430 | -2/Research | Destroyed Executioner 69439 | -2/Research | Destroyed Striker 69488 | -2/Research | Destroyed 20 combat bots 69495 | -2/Research | Spotted Investigator 69495 | -2/Research | Destroyed Investigator 69509 | -2/Research | Destroyed Investigator 69539 | -2/Research | Destroyed 10 combat bots 69652 | -2/Research | Spotted Striker 69657 | -2/Research | Destroyed Striker 69711 | -2/Research | Spotted Executioner 69711 | -2/Research | Spotted Striker 69711 | -2/Research | Spotted Executioner 69718 | -2/Research | Destroyed Striker 69723 | -2/Research | Spotted Striker 69724 | -2/Research | Destroyed Executioner 69727 | -2/Research | Destroyed Executioner 69750 | -2/Research | Destroyed 29 combat bots 69753 | -2/Research | Destroyed Striker 69805 | -2/Research | Sterilization system engaged 69805 | -2/Research | Non-combat units ordered to evacuate 69829 | -2/Research | Destroyed 7 combat bots 69835 | -2/Research | Spotted Executioner 69835 | -2/Research | Spotted Executioner 69837 | -2/Research | Destroyed Executioner 69839 | -2/Research | Destroyed Executioner 69841 | -2/Research | Spotted Striker 69846 | -2/Research | Spotted Executioner 69856 | -2/Research | Destroyed Striker 69863 | -2/Research | Destroyed Executioner 69884 | -2/Research | Destroyed 11 combat bots 69905 | -2/Research | Combat units ordered to evacuate 70105 | -2/Research | Ambient heat levels rising (+10) 70115 | -2/Research | Destroyed B-90 Cyclops 70213 | -2/Research | Entered Testing 70272 | -2/Testing | Found Prototype Energy Cannon 70272 | -2/Testing | Identified Null Cannon 70504 | -2/Testing | First assault squad dispatched 70602 | -2/Testing | Destroyed 9 combat bots 70775 | -2/Testing | Incoming assault squad redirected 70856 | -2/Testing | Spotted PH-CCP2908CPS 70899 | -2/Testing | Destroyed PH-CCP2908CPS 70902 | -2/Testing | Incoming investigation squad redirected 70945 | -2/Testing | Intercept squad dispatched 70959 | -2/Testing | Spotted Tracker 70965 | -2/Testing | Spotted Tracker 70984 | -2/Testing | Destroyed Tracker 70985 | -2/Testing | Incoming assault squad redirected 70985 | -2/Testing | Spotted Combat Programmer 70991 | -2/Testing | Spotted Combat Programmer 70993 | -2/Testing | Incoming assault squad redirected 71000 | -2/Testing | Reached level 36 71000 | -2/Testing | Destroyed Combat Programmer 71010 | -2/Testing | Destroyed Combat Programmer 71027 | -2/Testing | High security lockdown imminent 71048 | -2/Testing | Destroyed Tracker 71069 | -2/Testing | Destroyed 8 combat bots 71107 | -2/Testing | High security lockdown engaged 71225 | -2/Testing | Destroyed 18 combat bots 71267 | -2/Testing | Spotted Investigator 71271 | -2/Testing | Destroyed Investigator 71328 | -2/Testing | Destroyed 17 combat bots 71446 | -2/Testing | Spotted Striker 71446 | -2/Testing | Spotted Striker 71449 | -2/Testing | Spotted Executioner 71449 | -2/Testing | Spotted Executioner 71452 | -2/Testing | Destroyed Striker 71452 | -2/Testing | Destroyed Striker 71455 | -2/Testing | Destroyed Executioner 71455 | -2/Testing | Destroyed Executioner 71479 | -2/Testing | Destroyed 23 combat bots 71615 | -2/Testing | Spotted Striker 71618 | -2/Testing | Spotted Striker 71620 | -2/Testing | Destroyed Executioner 71624 | -2/Testing | Destroyed Striker 71631 | -2/Testing | Spotted Executioner 71633 | -2/Testing | Destroyed Striker 71637 | -2/Testing | Destroyed Executioner 71637 | -2/Testing | Spotted Striker 71642 | -2/Testing | Destroyed Striker 71656 | -2/Testing | Sterilization system engaged 71656 | -2/Testing | Non-combat units ordered to evacuate 71679 | -2/Testing | Destroyed 28 combat bots 71702 | -2/Testing | Spotted Striker 71702 | -2/Testing | Spotted Striker 71706 | -2/Testing | Spotted Alpha 7 71707 | -2/Testing | Destroyed Striker 71714 | -2/Testing | Destroyed Striker 71731 | -2/Testing | Destroyed Alpha 7 71756 | -2/Testing | Combat units ordered to evacuate 71801 | -2/Testing | Discovered new exit (range 18) 71820 | -2/Testing | Found Prototype Energy Gun 71820 | -2/Testing | Identified Tachyon Dispersion Ray 71932 | -2/Testing | Entered Access 71959 | -1/Access | Identified exit to Garrison 72012 | -1/Access | Destroyed 10 combat bots 72040 | -1/Access | Garrison activated, responded to threat 72091 | -1/Access | Identified exit to Garrison 72105 | -1/Access | Reached level 37 72142 | -1/Access | Intercept squad dispatched 72148 | -1/Access | Destroyed 14 combat bots 72158 | -1/Access | Spotted Tracker 72158 | -1/Access | Spotted Tracker 72160 | -1/Access | Destroyed Tracker 72161 | -1/Access | Spotted Combat Programmer 72161 | -1/Access | Destroyed Tracker 72164 | -1/Access | Destroyed Combat Programmer 72197 | -1/Access | Spotted Combat Programmer 72207 | -1/Access | Destroyed Combat Programmer 72228 | -1/Access | First assault squad dispatched 72243 | -1/Access | Incoming assault squad redirected 72247 | -1/Access | Incoming assault squad redirected 72282 | -1/Access | High security lockdown imminent 72362 | -1/Access | High security lockdown engaged 72493 | -1/Access | Destroyed 13 combat bots 72504 | -1/Access | Spotted Executioner 72508 | -1/Access | Destroyed Executioner 72553 | -1/Access | Destroyed 8 combat bots 72614 | -1/Access | Spotted Investigator 72614 | -1/Access | Destroyed Investigator 72638 | -1/Access | Garrison activated, responded to threat 72688 | -1/Access | Spotted Striker 72690 | -1/Access | Destroyed Striker 72736 | -1/Access | Destroyed 31 combat bots 72791 | -1/Access | Reached level 38 72840 | -1/Access | Spotted Striker 72841 | -1/Access | Spotted Striker 72842 | -1/Access | Destroyed Executioner 72844 | -1/Access | Destroyed Striker 72846 | -1/Access | Destroyed Striker 72862 | -1/Access | Sterilization system engaged 72884 | -1/Access | Destroyed 31 combat bots 72910 | -1/Access | Destroyed Striker 72911 | -1/Access | Spotted Striker 72911 | -1/Access | Spotted Striker 72915 | -1/Access | Destroyed Striker 72915 | -1/Access | Spotted Executioner 72917 | -1/Access | Destroyed Striker 72924 | -1/Access | Destroyed Executioner 72952 | -1/Access | Destroyed 16 combat bots 73063 | -1/Access | Entered Garrison 73074 | -1/Garrison | Triggered checkpoint 73082 | -1/Garrison | Garrison Relay disabled 73108 | -1/Garrison | Phase Generator disabled 73129 | -1/Garrison | Spotted B-99 Colossus 73206 | -1/Garrison | Destroyed 11 combat bots 73213 | -1/Garrison | Destroyed B-99 Colossus 73239 | -1/Garrison | Triggered checkpoint 73242 | -1/Garrison | Triggered checkpoint 73251 | -1/Garrison | Triggered checkpoint 73274 | -1/Garrison | Triggered checkpoint 73299 | -1/Garrison | Destroyed 25 combat bots 73317 | -1/Garrison | Triggered checkpoint 73328 | -1/Garrison | Garrison Relay disabled 73332 | -1/Garrison | Discovered new exit (range 20) 73338 | -1/Garrison | Discovered new exit (range 66) 73338 | -1/Garrison | Discovered new exit (range 7) 73338 | -1/Garrison | Discovered new exit (range 74) 73396 | -1/Garrison | Triggered checkpoint 73412 | -1/Garrison | Learned Access security intel 73416 | -1/Garrison | Garrison Relay disabled 73464 | -1/Garrison | Triggered checkpoint 73466 | -1/Garrison | Triggered checkpoint 73477 | -1/Garrison | Attempted to install RIF, but system incompatible 73489 | -1/Garrison | Garrison Relay disabled 73524 | -1/Garrison | Spotted Striker 73534 | -1/Garrison | Destroyed Striker 73602 | -1/Garrison | Rewired Executioner 73611 | -1/Garrison | Rewired Executioner 73626 | -1/Garrison | Found embedded Infiltrators 74279 | -1/Garrison | Entered Access 74279 | -1/Access | Accompanied by 4 allies 74303 | -1/Access | High security lockdown imminent 74319 | -1/Access | P-80 Master assimilated allied D2-6ZL(x) 74371 | -1/Access | Destroyed 7 combat bots 74383 | -1/Access | High security lockdown engaged 74457 | -1/Access | Reached level 39 74599 | -1/Access | Destroyed 15 combat bots 74615 | -1/Access | Spotted Striker 74615 | -1/Access | Spotted Executioner 74625 | -1/Access | Allies destroyed Striker 74631 | -1/Access | Destroyed Executioner 74655 | -1/Access | Destroyed 10 combat bots 74660 | -1/Access | Spotted Investigator 74661 | -1/Access | Destroyed Investigator 74822 | -1/Access | Destroyed 27 combat bots 74963 | -1/Access | Spotted Executioner 74971 | -1/Access | Spotted Striker 74974 | -1/Access | Destroyed Executioner 74986 | -1/Access | Destroyed Striker 74990 | -1/Access | Spotted Executioner 74990 | -1/Access | Spotted Executioner 74996 | -1/Access | Destroyed Executioner 74999 | -1/Access | Destroyed Executioner 75063 | -1/Access | Destroyed 35 combat bots 75104 | -1/Access | Intercept squad dispatched 75131 | -1/Access | Spotted Tracker 75131 | -1/Access | Spotted Tracker 75138 | -1/Access | Destroyed Tracker 75159 | -1/Access | Found Prototype Device 75159 | -1/Access | Identified Exp. Phase Shifter 75181 | -1/Access | Spotted Combat Programmer 75181 | -1/Access | Spotted Combat Programmer 75189 | -1/Access | Combat Programmer assimilated allied Executioner 75191 | -1/Access | Spotted Executioner 75191 | -1/Access | Destroyed Combat Programmer 75201 | -1/Access | Destroyed Combat Programmer 75201 | -1/Access | Destroyed Executioner 75204 | -1/Access | Spotted Striker 75205 | -1/Access | Spotted Executioner 75206 | -1/Access | Spotted Striker 75208 | -1/Access | Spotted Executioner 75210 | -1/Access | Spotted Striker 75214 | -1/Access | Destroyed Executioner 75214 | -1/Access | Destroyed Striker 75216 | -1/Access | Destroyed Executioner 75216 | -1/Access | Spotted Executioner 75218 | -1/Access | Spotted Striker 75218 | -1/Access | Spotted Executioner 75218 | -1/Access | Spotted Executioner 75219 | -1/Access | Destroyed Executioner 75220 | -1/Access | Sterilization system engaged 75221 | -1/Access | Spotted Striker 75223 | -1/Access | Spotted Executioner 75229 | -1/Access | Destroyed Striker 75232 | -1/Access | Destroyed Striker 75236 | -1/Access | Core integrity fell below 50% 75236 | -1/Access | Destroyed Striker 75241 | -1/Access | Destroyed Executioner 75246 | -1/Access | Destroyed Executioner 75251 | -1/Access | Destroyed Investigator 75281 | -1/Access | Destroyed Executioner 75312 | -1/Access | Destroyed 40 combat bots 75431 | -1/Access | Energy Cycler disabled 75478 | -1/Access | Destroyed 9 combat bots 75481 | -1/Access | Upgraded with Propulsion slot (x1) 75520 | -1/Access | Ambient heat levels rising (+10) 75644 | -1/Access | Destroyed 11 combat bots 75670 | -1/Access | Ambient heat levels rising (+10) 75779 | -1/Access | Spotted B-99 Colossus 75795 | -1/Access | Destroyed 12 combat bots 75820 | -1/Access | Ambient heat levels rising (+10) 75970 | -1/Access | Ambient heat levels rising (+10) 75985 | -1/Access | Spotted B-99 Colossus 76041 | -1/Access | Destroyed B-99 Colossus 76107 | -1/Access | Spotted B-99 Colossus 76120 | -1/Access | Ambient heat levels rising (+10) 76270 | -1/Access | Ambient heat levels rising (+10) 76288 | -1/Access | Spotted B-99 Colossus 76420 | -1/Access | Ambient heat levels rising (+10) 76570 | -1/Access | Ambient heat levels rising (+10) 76592 | -1/Access | Destroyed B-99 Colossus 76720 | -1/Access | Ambient heat levels rising (+10) 76812 | -1/Access | Destroyed B-99 Colossus 76817 | -1/Access | Spotted B-99 Colossus 76852 | -1/Access | Destroyed B-99 Colossus 76870 | -1/Access | Ambient heat levels rising (+10) 76898 | -1/Access | Discovered new exit (range 7) 76904 | -1/Access | Spotted B-99 Colossus 76917 | -1/Access | Destroyed B-99 Colossus 76925 | -1/Access | Destroyed B-99 Colossus 77020 | -1/Access | Ambient heat levels rising (+10) 77021 | -1/Access | Discovered new exit (range 9) 77023 | -1/Access | Entered Command 77025 | -1/Command | Reached level 40 77070 | -1/Command | Spotted B-99 Colossus 77133 | -1/Command | Disengaged cave seal 77133 | -1/Command | Assembled emerged from the dark tunnel 77218 | -1/Command | High security lockdown imminent 77298 | -1/Command | High security lockdown engaged 77370 | -1/Command | Spotted Striker 77372 | -1/Command | Destroyed Executioner 77380 | -1/Command | Destroyed Striker 77415 | -1/Command | Destroyed 18 combat bots 77469 | -1/Command | Spotted Executioner 77484 | -1/Command | Destroyed Executioner 77489 | -1/Command | Spotted Investigator 77517 | -1/Command | Destroyed 11 combat bots 77604 | -1/Command | Spotted Striker 77604 | -1/Command | Spotted Striker 77624 | -1/Command | Destroyed Striker 77626 | -1/Command | Destroyed Striker 77657 | -1/Command | Destroyed 28 combat bots 77704 | -1/Command | Destroyed 7 combat bots 77796 | -1/Command | Destroyed Executioner 77848 | -1/Command | Destroyed 12 combat bots 77867 | -1/Command | Spotted Striker 77868 | -1/Command | Spotted Striker 77869 | -1/Command | Destroyed Striker 77869 | -1/Command | Destroyed Striker 77873 | -1/Command | Spotted Executioner 77881 | -1/Command | Spotted Executioner 77888 | -1/Command | Destroyed Executioner 77911 | -1/Command | Destroyed Executioner 77932 | -1/Command | Destroyed 14 combat bots 77941 | -1/Command | Spotted Striker 77946 | -1/Command | Destroyed Striker 77952 | -1/Command | Spotted Alpha 7 77954 | -1/Command | Spotted Executioner 77955 | -1/Command | Spotted Executioner 77960 | -1/Command | Destroyed Executioner 77979 | -1/Command | Destroyed Alpha 7 77997 | -1/Command | Destroyed Executioner 78036 | -1/Command | Spotted Alpha 7 78038 | -1/Command | Spotted Striker 78044 | -1/Command | Spotted Executioner 78046 | -1/Command | Destroyed Striker 78046 | -1/Command | Destroyed Executioner 78050 | -1/Command | Spotted Executioner 78050 | -1/Command | Spotted Executioner 78050 | -1/Command | Destroyed Executioner 78050 | -1/Command | Destroyed Executioner 78057 | -1/Command | Destroyed Alpha 7 78068 | -1/Command | Spotted Executioner 78069 | -1/Command | Spotted Executioner 78070 | -1/Command | Destroyed Investigator 78073 | -1/Command | Spotted Striker 78073 | -1/Command | Spotted Executioner 78091 | -1/Command | Spotted Executioner 78095 | -1/Command | Destroyed Executioner 78095 | -1/Command | Destroyed Executioner 78098 | -1/Command | Destroyed Executioner 78098 | -1/Command | Destroyed Executioner 78108 | -1/Command | Spotted Executioner 78112 | -1/Command | Destroyed Executioner 78140 | -1/Command | Destroyed Striker 78161 | -1/Command | Destroyed 40 combat bots 78357 | -1/Command | Spotted Striker 78357 | -1/Command | Spotted Executioner 78366 | -1/Command | Spotted Executioner 78366 | -1/Command | Destroyed Striker 78366 | -1/Command | Destroyed Executioner 78373 | -1/Command | Destroyed Executioner 78415 | -1/Command | Destroyed 9 combat bots 78510 | -1/Command | Spotted Executioner 78510 | -1/Command | Destroyed Executioner 78517 | -1/Command | Spotted B-99 Colossus 78595 | -1/Command | Destroyed B-99 Colossus 78600 | -1/Command | Spotted B-99 Colossus 78642 | -1/Command | Destroyed B-99 Colossus 78783 | -1/Command | Spotted M Guard 78783 | -1/Command | Spotted M Guard 78784 | -1/Command | Spotted Combat Programmer 78784 | -1/Command | Spotted Combat Programmer 78820 | -1/Command | Destroyed Combat Programmer 78825 | -1/Command | Destroyed Combat Programmer 79190 | -1/Command | Destroyed M Guard 79193 | -1/Command | Found Corrupted Prototype Reactor 79193 | -1/Command | Identified Zero-point Reactor 79196 | -1/Command | Found Corrupted Prototype Device 79196 | -1/Command | Identified AEGIS Remote Shield 79205 | -1/Command | Destroyed M Guard 79205 | -1/Command | All MAIN.C guards destroyed 79217 | -1/Command | Build established: Scavenger-Sprinter 79235 | -1/Command | Found Corrupted Zero-point Reactor 79244 | -1/Command | Found Corrupted Zero-point Reactor 79357 | -1/Command | Destroyed 32 combat bots 79444 | -1/Command | Destroyed 14 combat bots 79699 | -1/Command | Destroyed 100 combat bots 79752 | -1/Command | Destroyed 12 combat bots 79882 | -1/Command | Destroyed 51 combat bots 79956 | -1/Command | Destroyed 14 combat bots 79991 | -1/Command | Destroyed 9 combat bots 80106 | -1/Command | Destroyed 72 combat bots 80173 | -1/Command | Reached level 41 80203 | -1/Command | Destroyed 23 combat bots 80254 | -1/Command | Met MAIN.C 80547 | -1/Command | MAIN.C activated Command garrisons 80618 | -1/Command | 0b10 Conduit disabled 80772 | -1/Command | Destroyed 7 combat bots 80773 | -1/Command | Discovered new exit (range 14) 81154 | -1/Command | Found Prototype Device 81154 | -1/Command | Identified Exp. EM Disruption Field 81158 | -1/Command | Found Prototype Device 81158 | -1/Command | Identified Exp. Focal Shield 81163 | -1/Command | Found Prototype Device 81163 | -1/Command | Identified Exp. System Purifier 81168 | -1/Command | Found Prototype Protection 81168 | -1/Command | Identified Hvy. Regenerative Plating 81423 | -1/Command | Build established: Alien-Tank 81557 | -1/Command | Destroyed MAIN.C Shell 81585 | -1/Command | Destroyed MAIN.C 81609 | -1/Command | Discovered new exit (range 71) 81609 | -1/Command | Discovered new exit (range 64) 81609 | -1/Command | Extracted map data and part IDs from MAIN.C's data core 81803 | -1/Command | Found Exp. Target Analyzer 82029 | -1/Command | Upgraded with Utility slot (x1) 82050 | -1/Command | Build established: Scavenger-Sprinter 82136 | -1/Command | Warped through subspace to slip node 82136 | -1/Command | Discovered new exit (range 5) 82138 | -1/Command | Found Quantum Capacitor 82140 | -1/Command | Entered Access_0 82141 | -1/Access_0 | Sensed 1 artifact in vicinity 82141 | -1/Access_0 | Met Architect 82168 | -1/Access_0 | Subspace Access Node disabled 82203 | -1/Access_0 | Architect warped through subspace 82246 | -1/Access_0 | Architect warped through subspace 82252 | -1/Access_0 | Destroyed A8 82275 | -1/Access_0 | A6 warped into view 82280 | -1/Access_0 | Subspace Access Node disabled 82296 | -1/Access_0 | Architect warped through subspace 82303 | -1/Access_0 | Destroyed A6 82337 | -1/Access_0 | Architect warped through subspace 82377 | -1/Access_0 | A5 warped into view 82379 | -1/Access_0 | Destroyed 7 combat bots 82404 | -1/Access_0 | Architect warped through subspace 82429 | -1/Access_0 | Destroyed A5 82466 | -1/Access_0 | Architect warped through subspace 82512 | -1/Access_0 | Subspace Access Node disabled 82529 | -1/Access_0 | Architect warped through subspace 82552 | -1/Access_0 | Architect warped through subspace 82552 | -1/Access_0 | Destroyed A2 82555 | -1/Access_0 | Extracted Singularity Gate Test 138-C access codes from A2's data core 82590 | -1/Access_0 | A4 warped into view 82625 | -1/Access_0 | Architect warped through subspace 82634 | -1/Access_0 | Destroyed A4 82659 | -1/Access_0 | Architect warped through subspace 82668 | -1/Access_0 | Started Test 138-B, establishing a local singularity 82707 | -1/Access_0 | Architect warped through subspace 82738 | -1/Access_0 | Architect warped through subspace 82797 | -1/Access_0 | Architect warped through subspace 82866 | -1/Access_0 | Architect warped through subspace 82876 | -1/Access_0 | A3 warped into view 82922 | -1/Access_0 | Destroyed A3 82926 | -1/Access_0 | Architect warped through subspace 82926 | -1/Access_0 | Used Subatomic Replicator to replicate Sigix Corpse 82929 | -1/Access_0 | Found Sigix Corpse 82968 | -1/Access_0 | Architect warped through subspace 83014 | -1/Access_0 | Found Hpw. Transdimensional Reconstructor 83080 | -1/Access_0 | Architect warped through subspace 83128 | -1/Access_0 | Architect warped through subspace 83189 | -1/Access_0 | Subspace Access Node disabled 83228 | -1/Access_0 | Destroyed Architect 83229 | -1/Access_0 | Architect triggered a singularity event 83230 | -1/Access_0 | Extracted unknown sensor trigger ID from Architect's data core 83231 | -1/Access_0 | Warped through subspace to slip node 83231 | -1/Access_0 | Discovered new exit (range 8) 83233 | -1/Access_0 | Found Hpw. Transdimensional Reconstructor 83235 | *** | Escaped singularity! Last Messages --------------- 83209_ Quantum Shear penetrates Wall. 83211_ Penetrated by Quantum Shear. 83214_ Quantum Shear penetrates Earth. 83218_ Quantum Shear penetrates Wall. 83225_ Penetrated by Quantum Shear. 83225_ Quantum Shear penetrates Wall. 83226_ Destroyed Exp. Phase Shifter. 83228_ Architect: "If I can't win, no one wins!" 83228_ Architect destroyed. 83229_ A0_COM: Initiating irreversible singularity event. Goodbye. 83230_ A0_COM: 10. 83230_ Acquired data core, extracted unknown sensor trigger ID. 83231_ A0_COM: 9. 83231_ Warped through subspace, drawn to slip node. 83231_ EXIT=FOUND 83232_ A0_COM: 8. 83233_ A0_COM: 7. 83233_ Acquired Hpw. Transdimensional Reconstructor. 83234_ A0_COM: 6. 83235_ A0_COM: 5. Map ----- +----------------------------------------------------+ | | | | | | | | | | | | | | | | | | | | | | | | | | | | | | | | | ?????????????????????????????????????????????????? | | ?????????????????????????????????????????????????? | | ?????????????????????????????????????????????????? | | ?????????????????????????????????????????????????? | | ?????????????????????????????????????????????????? | | ?????????????????????????????????????????????????? | | ????????????????????????###??????????????????????? | | ???????????????????????## ##?????????????????????? | | ???????????????????????# #?????????????????????? | | ???????????????????????# @ #?????????????????????? | | ??????????????????????## #?????????????????????? | | ??????????????????????# #?????????????????????? | | ??????????????????????# ##?????????????????????? | | ??????????????????????## #?????????????????????? | | ??????????????????????# #?????????????????????? | | ??????????????????????# ##?????????????????????? | | ??????????????????????# < #?????????????????????? | | ??????????????????????# ##?????????????????????? | | ??????????????????????## #??????????????????????? | | ???????????????????????####??????????????????????? | | ?????????????????????????????????????????????????? | | ?????????????????????????????????????????????????? | | ?????????????????????????????????????????????????? | | ?????????????????????????????????????????????????? | | ?????????????????????????????????????????????????? | | ?????????????????????????????????????????????????? | | ?????????????????????????????????????????????????? | | ?????????????????????????????????????????????????? | | ?????????????????????????????????????????????????? | | ?????????????????????????????????????????????????? | | ?????????????????????????????????????????????????? | | ?????????????????????????????????????????????????? | | ?????????????????????????????????????????????????? | | ?????????????????????????????????????????????????? | +----------------------------------------------------+ Best States ------------- Heat Dissipation 135 Energy Generation 157 Energy Capacity 990 Matter Stores 675 Matter Capacity 675 Sight Range 21 Robot Scan Range 10 Terrain Scan Density 10 Jamming Range 16 Cloak Strength 5 Power Amplification 40 Additional Mass Support 9 Armor Coverage 1200 Resistance: KI 30 Resistance: TH 10 Resistance: EX 90 Resistance: EM 25 Propulsion Shielding 66 Utility Shielding 90 Weapon Cycling 30 Phase Shifting 20 Evasion (%) 95 Targeting Accuracy 12 Target Analysis 10 Core Analysis 8 Armor Integrity Analysis 40 Recoil Reduction 7 Matter Filtering 50 Salvage Targeting 4 Offensive Hacking 5 Defensive Hacking 5 Item Schematics ----------------- Hdn. Centrium Leg | -2/Testing | Archive Tiamat Missile Launcher | -2/Testing | Archive Exp. Energy Well | -2/Testing | Archive Exp. Q-thruster | -2/Testing | Archive Enh. Coil Gun | -2/Testing | Archive Imp. Energy Well | -2/Testing | Archive Com. Linear Accelerator | -2/Testing | Archive Exp. Matter Compressor | -2/Testing | Archive Exp. Armor Integrity Analyzer | -2/Testing | Archive Hvy. Antimatter Reactor | -2/Testing | Archive Enh. Armored Heavy Treads | -2/Testing | Archive Cld. Impulse Thruster | -2/Testing | Archive Exp. Melee Analysis Suite | -2/Testing | Archive Robot Schematics ------------------ R-10 Processor | -2/Testing | Archive P-80 Master | -2/Testing | Archive Fabricated ------------ Hyp. Railgun | x2 | -4/Factory Cmb. Linear Gravjet | x2 | -4/Factory Cmb. Linear Gravjet | x2 | -4/Factory Alien Tech Used ----------------- Core Expander Integrated Dissipator Core Reset Matrix Core Membrane Integrated Thermoelectric Network Integrated Reactor LRC Insulator LRC Armor LRC Matter Compressor Transdimensional Reconstructor Subatomic Replicator High-powered Transdimensional Reconstructor Achievements -------------- None Challenges ------------ None RPGLIKE | -11 -10 -10 -9 -9 -9 -8 -8 -8 -8 -8 -8 -8 -8 -8 -8 -8 -7 -7 -7 -7 -7 -7 -7 -7 -7 -6 -6 -6 -6 -6 -6 -6 -6 -6 -5 -5 -5 -5 -5 -5 -5 -5 -5 -5 -5 -5 -4 -4 -4 -4 -4 -4 -4 -4 -3 -3 -3 -3 -3 -2 -2 -1 -1 -1 -1 -1 --------- Run | Scr Mat Min Mat Min Exi Min Mat Gar Mat Gar Mat Gar Mat Gar Mat Gar Fac Gar Fac Gar Fac Low Low Zio Dee Pro Fac Was Fac Gar Fac Low Low Dat Pro Fac Was Fac Gar Fac Gar Fac Ext Cet Arc Hub Fac Was Fac Gar Fac Upp Upp Zhi Pro Res Qua Sec Gar Res Tes Acc Gar Acc Com Ac0 Levels Raised 40 | . 4 1 4 . . 1 2 1 . 1 . 1 . . . 1 . 1 1 1 . 1 . . . . 1 . . 1 1 . . . 1 . . 1 . . 1 . 1 . . 1 . . . 1 . . . 1 . 1 1 1 . 1 1 2 . 1 2 . XP Earned 63754 | 3000 6417 1483 6017 742 117 1134 3132 1056 624 677 487 646 240 580 328 412 1293 918 1575 658 1361 111 59 34 83 396 1657 22 582 513 1333 119 125 34 1373 754 22 821 430 543 324 1013 695 484 385 351 122 15 1145 417 881 112 140 31 154 2327 1216 868 198 2255 1110 2777 705 1850 1820 451 XP Spent 55985 | 1500 3700 750 1370 . 4460 1100 2700 3350 225 2200 1200 . . . . . . . . . 630 1050 . . 2660 . 2800 . 1240 . . . . 2425 900 800 520 . . 2690 . 310 . 2900 . . . . 3230 . . . . 2300 . . 1700 . . . . . . 1700 5575 . Upgrades 91 | 3 9 1 4 . 8 2 4 4 1 3 2 . . . . . . . . . 4 6 . . 7 . 2 . 3 . . . . 6 1 1 2 . . 3 . 1 . 2 . . . . 2 . . . . 2 . . 2 . . . . . . 1 5 . Power Slot 2 | . . . . . . . . . . . . . . . . . . . . . . . . . . . 1 . . . . . . . . 1 . . . . . . . . . . . . . . . . . . . . . . . . . . . . . . Propulsion Slot 5 | 1 . . . . 1 . . . . . 1 . . . . . . . . . . . . . 1 . . . . . . . . . . . . . . . . . . . . . . . . . . . . . . . . . . . . . . 1 . . Utility Slot 10 | 1 . . 1 . 2 . . 1 . 1 . . . . . . . . . . . . . . . . 1 . . . . . . . . . . . . . . . . 1 . . . . 1 . . . . . . . . . . . . . . . 1 . Weapon Slot 4 | 1 2 . . . . . . . . . . . . . . . . . . . . . . . . . . . . . . . . . . . . . . 1 . . . . . . . . . . . . . . . . . . . . . . . . . . Core Integrity 4 | . . . . . 4 . . . . . . . . . . . . . . . . . . . . . . . . . . . . . . . . . . . . . . . . . . . . . . . . . . . . . . . . . . . . . Heat Dissipation 15 | . 1 . 1 . . . . . . 2 . . . . . . . . . . 1 . . . 3 . . . 2 . . . . . . . 2 . . 1 . 1 . . . . . . 1 . . . . . . . . . . . . . . . . . Energy Generation 3 | . . . 1 . . . . . . . . . . . . . . . . . . 1 . . . . . . 1 . . . . . . . . . . . . . . . . . . . . . . . . . . . . . . . . . . . . . Energy Storage 7 | . . . 1 . . . . . . . . . . . . . . . . . . . . . 3 . . . . . . . . 1 . . . . . . . . . . . . . . . . . . . . . . . . . . . . . . 2 . Matter Storage 5 | . 1 . . . . . . . 1 . . . . . . . . . . . . . . . . . . . . . . . . 2 . . . . . . . . . 1 . . . . . . . . . . . . . . . . . . . . . . Mass Support 3 | . . . . . . . . . . . 1 . . . . . . . . . . . . . . . . . . . . . . . . . . . . . . . . . . . . . . . . . . . . . 2 . . . . . . . . . Inventory Capacity 6 | . 2 1 . . 1 . . 1 . . . . . . . . . . . . . . . . . . . . . . . . . . . . . . . . . . . . . . . . . . . . . . . . . . . . . . . . 1 . Sight Range 5 | . 2 . . . . . 2 . . . . . . . . . . . . . . . . . . . . . . . . . . . 1 . . . . . . . . . . . . . . . . . . . . . . . . . . . . . . . Sensor Range 5 | . . . . . . . . . . . . . . . . . . . . . . 5 . . . . . . . . . . . . . . . . . . . . . . . . . . . . . . . . . . . . . . . . . . . . Ranged Accuracy 9 | . 1 . . . . 2 2 . . . . . . . . . . . . . . . . . . . . . . . . . . 1 . . . . . 1 . . . . . . . . . . . . . 2 . . . . . . . . . . . . Hack Attack % 1 | . . . . . . . . 1 . . . . . . . . . . . . . . . . . . . . . . . . . . . . . . . . . . . . . . . . . . . . . . . . . . . . . . . . . . Hack Defense % 1 | . . . . . . . . 1 . . . . . . . . . . . . . . . . . . . . . . . . . . . . . . . . . . . . . . . . . . . . . . . . . . . . . . . . . . KI Resistance % 2 | . . . . . . . . . . . . . . . . . . . . . 1 . . . . . . . . . . . . 1 . . . . . . . . . . . . . . . . . . . . . . . . . . . . . . . . TH Resistance % 2 | . . . . . . . . . . . . . . . . . . . . . 1 . . . . . . . . . . . . 1 . . . . . . . . . . . . . . . . . . . . . . . . . . . . . . . . KI Damage % 1 | . . . . . . . . . . . . . . . . . . . . . 1 . . . . . . . . . . . . . . . . . . . . . . . . . . . . . . . . . . . . . . . . . . . . . TH Damage % 1 | . . . . . . . . . . . . . . . . . . . . . . . . . . . . . . . . . . . . . . . . . . . . . . . . . . . . . . . . . . . . . . . . . 1 . Protomatter Created 69184 | . 518 109 540 66 5 239 375 177 115 322 286 748 204 410 251 238 328 621 1260 328 2537 176 32 270 178 257 1539 87 647 871 2658 337 373 . 784 287 171 1294 871 1039 539 3107 2311 1645 1831 2644 . 255 1852 1058 2532 154 295 . 105 3184 2399 2161 1387 2731 1902 2364 753 3997 7412 1018 Integrity Restored 36605 | . 654 236 723 114 186 712 874 510 130 796 349 152 113 396 324 415 205 503 353 281 1335 52 88 309 623 302 410 . 152 324 683 76 81 . 332 75 79 540 224 214 262 718 788 583 491 2179 . 94 490 328 1066 47 149 . 40 966 721 1123 352 2032 1704 732 383 2909 3033 1490 Core 23737 | . 490 173 561 71 186 602 238 142 68 612 52 106 89 188 185 280 137 341 251 217 897 41 59 150 459 179 273 . 82 184 422 42 35 . 227 30 42 278 125 116 156 503 549 271 346 1149 . 1 334 241 596 43 112 . 28 674 383 806 263 1421 1102 522 270 1967 2224 1146 Parts 12868 | . 164 63 162 43 . 110 636 368 62 184 297 46 24 208 139 135 68 162 102 64 438 11 29 159 164 123 137 . 70 140 261 34 46 . 105 45 37 262 99 98 106 215 239 312 145 1030 . 93 156 87 470 4 37 . 12 292 338 317 89 611 602 210 113 942 809 344 Protomatter Decayed 60232 | . 247 26 276 35 . . 68 . 284 52 166 660 123 271 138 137 195 557 1153 382 2264 157 . 99 75 132 1277 . 465 753 2603 304 344 . 796 219 143 1168 819 1150 497 2991 2260 1364 795 2095 . . 1619 979 2785 137 241 . 39 7525 1640 2092 1180 1977 891 2291 612 2532 5640 512 Game ------ Seed GyrokineticInsulatedRail Manual? 0 Play Time 14:49:02 Cumulative 879.6 hours Start 2022.11.25 @ 18:29:44 End 2022.11.27 @ 13:39:33 Sessions 5 Manual Loads 0 Difficulty Rogue Special Mode Winter2019/RPGLIKE Game No. 389 Rogue 388 Adventurer 1 Explorer 0 Win Type 6 Total 120 Types 31/11/17/4/2/1/50/3/1 Lore% 100 Gallery% 99 Achievement% 91 Wizard Run 0 Options --------- ASCII 1 Keyboard 1 Movement Numpad Keybinds 0 Fullscreen 0 Font 18/Smallcaps Map View 76x50 Tactical HUD 1 Map Filters NONE Filters NONE Steam 1 RUN: 885e8818-ba6f-4184-a990-f71fd4e6a231